{"text_format":"1","workbook":"xlsx","n_sheets":3,"sheets":["data","drow","top3"],"not_rendered":{"charts":2,"images":0,"macros":1,"external_links":0,"defined_names":3,"comments":0,"pivot_tables":0},"unopened":[],"bounds":{"document_bytes":16777216,"sheet_cells":100000,"rows_first":2000,"rows_last":500,"rows_between":2000,"halvings":0,"cell_chars":16384,"cell_head_chars":4096},"cells_cut":0,"cells_raw":0,"read":"whole","date_system":"1900"}

{"sheet":"data","index":0,"n_rows":172,"n_cols":10,"rows_kept":172,"cut":false,"hidden":false,"merged":[[59,0,59,1],[61,1,61,2]]}
["عمود1","عمود2","عمود3","عمود4","عمود5","عمود6","عمود7","عمود8","عمود9","عمود10"]
["الاسم والكنية ","اسم الأب","اسم الأم","المواليد","الجنس","تاريخ فتح الحساب","رقم الحساب","الرصيد","نوع آخر عملية للعميل","تاريخ آخر عملية"]
["إبراهيم سالوخة","صفوان","نهى","2001-06-14","ذكر","2018-09-06",3453553673,5325987,"سحب ","2018-03-02"]
["قاهر الدناوي","بشار","ديمة","1961-05-23","ذكر","1990-09-09",2342342,2425252,"سحب ","2018-09-02"]
["محمود سعيد","علاء","سوسن","1975-08-03","ذكر","2007-09-05",2342345,22342400,"إيداع","2017-08-05"]
["صديقة طاطروس","مفيد","سوزان","1965-10-07","انثى","1999-09-04",3353455,23423400,"تحويل ","2016-05-04"]
["بانة الرحال","أسعد","سوزي","1982-05-03","انثى","2007-09-04",34575675,2342322546,"سحب ","2019-06-03"]
["سالم الجردي","عارف","سونا","1987-11-03","ذكر","2009-08-06",53535355,53200000,"إيداع","2019-06-04"]
["شاديا حماد","فراس","نسرين","1974-06-05","انثى","1999-04-05",3453456,23400000,"تحويل ","2019-06-05"]
["سمير جاموس","وسيم","سيرين","1980-06-06","ذكر","2010-09-06",63453453,2340000,"تحويل ","2019-06-06"]
["بدر حبيب","بسام","روزانا","1990-09-04","ذكر","2018-10-05",2345345345,2340000,"تحويل ","2019-06-07"]
["جورجيت سليط","وائل","ليندا","1973-08-05","انثى","2001-05-05",34535345,95436,"سحب ","2019-06-08"]
["محمود سعيد","علي ","لين","1978-07-05","ذكر","1999-08-09",3453525,2353000,"تحويل ","2019-06-09"]
["علا نبهان","غديل","مايا","1967-09-04","انثى","1997-08-07",3453234,23420000,"إيداع","2019-06-10"]
["محمد عبد اللطيف","حمزة","نايا","1987-03-02","ذكر","2009-04-06",3453453,1300000,"إيداع","2019-06-11"]
["عبد المالك الحموش","معتز","جودي","1980-06-05","ذكر","2017-09-04",34532325,1400000,"إيداع","2019-06-12"]
["ميشيل ديب","غياث","جولي","1950-06-05","ذكر","2004-09-08",8658856,340000,"سحب ","2019-06-13"]
["أحلام جعفر","فداء","بانة","1981-11-10","انثى","2011-09-05",8668556,45500000,"إيداع","2019-06-14"]
["نبيلة علي","باسم","شاديا","1988-10-23","انثى","2012-08-09",85685678,2400000,"تحويل ","2019-06-15"]
["طاهر عبد الله","دريد","صديقة","1964-08-04","ذكر","1998-07-08",5678567,160000,"إيداع","2019-06-16"]
["أحلام جعفر","فارس","نبيلة","1959-08-05","انثى","1997-09-08",5678567,42340000,"سحب ","2019-06-17"]
["عمر عمري","برهان","منى","1998-09-05","ذكر","2018-11-09",9456745745,23400000,"سحب ","2019-06-18"]
["سمير خطاب","سليمان","فاتن","1950-06-04","ذكر","1983-09-05",456745,44234000,"سحب ","2019-06-19"]
["نور أحمد","حيدر","سوسن","1980-09-05","انثى","2010-09-08",456745674,4400000,"إيداع","2019-06-20"]
["منى عبود ","أحمد","رولا","1990-09-04","انثى","2017-10-09",4574567544,5550000,"تحويل ","2019-06-21"]
["عبد الرحمن رضوان","يامن","حليمة","1983-10-05","ذكر","2016-09-08",456745674,6660000,"تحويل ","2019-06-22"]
["يوسف محفوض","ياسر","مريم","1985-06-05","ذكر","2015-06-01",84567456,42324000,"تحويل ","2019-06-23"]
["أحمد حسن","يوسف","عواطف","1996-08-04","ذكر","2019-02-04",4567456745,439999,"إيداع","2019-06-24"]
["رولا سليمان","آدم","نبيه","1967-12-05","انثى","1990-06-24",456745674,2400000,"إيداع","2019-06-25"]
["يوسف حنوف","علاء","منى ","1998-07-05","ذكر","2017-01-04",5677567775,4300000,"سحب ","2019-06-26"]
["فاتن باشا","يوشع","كوكب","1984-09-04","انثى","2016-07-09",5675757567,32400000,"إيداع","2019-06-27"]
["نورا زعور","غانم","نور","1978-05-06","انثى","1998-01-09",57656757,42340000,"إيداع","2019-06-28"]
["حليمة اسرب","أحمد ","تاج","1976-11-05","انثى","2001-03-07",5756754,12000000,"تحويل ","2019-06-29"]
["عواطف سلامة","محمد ","ملك","1964-04-23","انثى","1988-09-08",8567454,488320000,"سحب ","2019-06-30"]
["سالم صالح ","حسن","إيمان ","1983-06-04","ذكر","2013-09-05",458456785,23400000,"إيداع","2019-07-01"]
["نبيه يوسف","حمزة","داليا","1984-09-08","انثى","2014-07-08",5456754,54000000,"سحب ","2019-07-02"]
["أحمد سلامة","فؤاد","رشيدة","1984-03-03","ذكر","2018-08-09",456458544,200000,"إيداع","2019-07-03"]
["مريم خوري","ماهر","سوسن","1960-08-04","انثى","1980-09-05",8456848484,5200000,"سحب ","2019-07-04"]
["سليمان يوسف","يونس","فاتن","1974-08-03","ذكر","1999-09-05",8455346854,24000000,"تحويل ","2019-07-05"]
["سهيل زهرة","زياد","شاديا","1955-08-03","ذكر","1979-09-06",2452456,234000000,"تحويل ","2019-07-06"]
["نور نجاري","أيهم","أمل","1964-08-05","ذكر","1983-08-09",3454363,54500000,"سحب ","2019-07-07"]
["مرح مرتكوش","طارق","ملك ","1984-09-03","انثى","2006-09-04",456345646,23400000,"تحويل ","2019-07-08"]
["إيمان يوسف","علي ","منى ","1986-08-06","انثى","2009-09-08",456478564,543000000,"تحويل ","2019-07-09"]
["مصطفى أنوس","محمد ","نوال","1987-09-03","ذكر","2018-12-23",8345734564,2400000,"سحب ","2019-07-10"]
["حنين حسن","مصطفى","نورا","1956-11-29","انثى","2000-02-09",345634564,680000,"تحويل ","2019-07-11"]
["جميلة نجوم","جود","صفاء","1990-09-03","انثى","2017-09-08",345632326,9200000,"إيداع","2019-07-12"]
["أحمد عبدو","سامر","نجوى","1997-09-05","ذكر","2017-08-09",4567344567,234000000,"إيداع","2019-07-13"]
["علي الرمة ","نافذ","دعاء","1954-09-07","ذكر","1984-09-03",34534535,25250000,"تحويل ","2019-07-14"]
["سميع مخلوف","فؤاد","نوال","1985-09-09","ذكر","2011-10-09",235234525,234002340,"إيداع","2019-07-15"]
["سعاد فتاحي","أحمد","منى","1987-09-04","انثى","2012-09-08",2352345235,5200000,"إيداع","2019-07-16"]
["محمد الخير","أحمد","ديمة","1988-04-02","ذكر","2018-08-04",2345252,20000000,"إيداع","2019-07-17"]
["سالم معروف","علي ","نوال","1990-08-04","ذكر","2015-08-03",75467457,23400000,"سحب ","2019-07-18"]
[]
[" "]
[]
[]
[]
[]
[]
[]
[]
[]
[]
[]
[]
[]
[]
[]
[]
[]
[]
[]
[]
[]
[]
[]
[]
[]
[]
[]
[]
[]
["وفيق عدرة",{"$f":"(YEAR(NOW())-YEAR(F23))","v":37}]
["نيفين كحيلة",{"$f":"(YEAR(NOW())-YEAR(F24))","v":10}]
[]
["ساره بولس",{"$f":"(YEAR(NOW())-YEAR(F33))","v":19}]
["حلا حمود",32]
["نور ابراهيم",7]
["ايليا فرح",6]
[]
["فواز درويش",40]
["محمد جلعود",21]
[]
[]
[]
[]
[]
[]
[]
[]
[]
[]
[]
[]
[]
[]
[]
[]
[]
[]
[]
[]
[]
[]
[]
[]
[]
[]
[]
["الطلب السابع"]
[]
[]
[]
[]
[{"$f":"A5","v":"محمود سعيد"},{"$f":"I5","v":"إيداع"}]
["صديقة طاطروس","تحويل "]
[]
["سالم الجردي","إيداع"]
["شاديا حماد","تحويل "]
["سمير جاموس","تحويل "]
["بدر حبيب","تحويل "]
[]
["محمود سعيد","تحويل "]
["علا نبهان","إيداع"]
["محمد عبد اللطيف","إيداع"]
["عبد المالك الحموش","إيداع"]
[]
["أحلام جعفر","إيداع"]
["نبيلة علي","تحويل "]
["طاهر عبد الله","إيداع"]
[]
[]
[]
["نور أحمد","إيداع"]
["منى عبود ","تحويل "]
["عبد الرحمن رضوان","تحويل "]
["يوسف محفوض","تحويل "]
["أحمد حسن","إيداع"]
["رولا سليمان","إيداع"]
[]
["فاتن باشا","إيداع"]
["نورا زعور","إيداع"]
["حليمة اسرب","تحويل "]
[]
[{"$f":"A35","v":"سالم صالح "},{"$f":"I35","v":"إيداع"}]
[]
["أحمد سلامة","إيداع"]
[]
["سليمان يوسف","تحويل "]
["سهيل زهرة","تحويل "]
[]
["مرح مرتكوش","تحويل "]
["إيمان يوسف","تحويل "]
[]
["حنين حسن","تحويل "]
["جميلة نجوم","إيداع"]
["أحمد عبدو","إيداع"]
["علي الرمة ","تحويل "]
["سميع مخلوف","إيداع"]
["سعاد فتاحي","إيداع"]
["محمد الخير","إيداع"]
["سالم معروف","سحب "]

{"sheet":"drow","index":1,"n_rows":134,"n_cols":10,"rows_kept":134,"cut":false,"hidden":false,"merged":[]}
[null,null,null,null,"عملية","سحب ","count",{"$f":"SUMPRODUCT(--ISNUMBER(SEARCH(F1,عملية)))","v":15}]
[]
[]
["الاسم والكنية ","اسم الأب","اسم الأم","المواليد","الجنس","تاريخ فتح الحساب","رقم الحساب","الرصيد","نوع آخر عملية للعميل","تاريخ آخر عملية"]
[{"$f":"IF(ROWS(A$5:A5)>$H$1,\"\",INDEX(name,SMALL(IF(ISNUMBER(SEARCH($F$1,عملية)),ROW(عملية)-ROW(data!$I$3)+1),ROWS(drow!A$5:A5))))","v":"إبراهيم سالوخة"},{"$f":"IF(ROWS(B$5:B5)>$H$1,\"\",INDEX(name,SMALL(IF(ISNUMBER(SEARCH($F$1,عملية)),ROW(عملية)-ROW(data!$I$3)+1),ROWS(drow!B$5:B5))))","v":"صفوان"},{"$f":"IF(ROWS(C$5:C5)>$H$1,\"\",INDEX(name,SMALL(IF(ISNUMBER(SEARCH($F$1,عملية)),ROW(عملية)-ROW(data!$I$3)+1),ROWS(drow!C$5:C5))))","v":"نهى"},{"$f":"IF(ROWS(D$5:D5)>$H$1,\"\",INDEX(name,SMALL(IF(ISNUMBER(SEARCH($F$1,عملية)),ROW(عملية)-ROW(data!$I$3)+1),ROWS(drow!D$5:D5))))","v":37056},{"$f":"IF(ROWS(E$5:E5)>$H$1,\"\",INDEX(name,SMALL(IF(ISNUMBER(SEARCH($F$1,عملية)),ROW(عملية)-ROW(data!$I$3)+1),ROWS(drow!E$5:E5))))","v":"ذكر"},{"$f":"IF(ROWS(F$5:F5)>$H$1,\"\",INDEX(name,SMALL(IF(ISNUMBER(SEARCH($F$1,عملية)),ROW(عملية)-ROW(data!$I$3)+1),ROWS(drow!F$5:F5))))","v":"2018-09-06"},{"$f":"IF(ROWS(G$5:G5)>$H$1,\"\",INDEX(name,SMALL(IF(ISNUMBER(SEARCH($F$1,عملية)),ROW(عملية)-ROW(data!$I$3)+1),ROWS(drow!G$5:G5))))","v":3453553673},{"$f":"IF(ROWS(H$5:H5)>$H$1,\"\",INDEX(name,SMALL(IF(ISNUMBER(SEARCH($F$1,عملية)),ROW(عملية)-ROW(data!$I$3)+1),ROWS(drow!H$5:H5))))","v":5325987},{"$f":"IF(ROWS(I$5:I5)>$H$1,\"\",INDEX(name,SMALL(IF(ISNUMBER(SEARCH($F$1,عملية)),ROW(عملية)-ROW(data!$I$3)+1),ROWS(drow!I$5:I5))))","v":"سحب "},{"$f":"IF(ROWS(J$5:J5)>$H$1,\"\",INDEX(name,SMALL(IF(ISNUMBER(SEARCH($F$1,عملية)),ROW(عملية)-ROW(data!$I$3)+1),ROWS(drow!J$5:J5))))","v":"2018-03-02"}]
[{"$f":"IF(ROWS(A$5:A6)>$H$1,\"\",INDEX(name,SMALL(IF(ISNUMBER(SEARCH($F$1,عملية)),ROW(عملية)-ROW(data!$I$3)+1),ROWS(drow!A$5:A6))))","v":"قاهر الدناوي"},{"$f":"IF(ROWS(B$5:B6)>$H$1,\"\",INDEX(name,SMALL(IF(ISNUMBER(SEARCH($F$1,عملية)),ROW(عملية)-ROW(data!$I$3)+1),ROWS(drow!B$5:B6))))","v":"بشار"},{"$f":"IF(ROWS(C$5:C6)>$H$1,\"\",INDEX(name,SMALL(IF(ISNUMBER(SEARCH($F$1,عملية)),ROW(عملية)-ROW(data!$I$3)+1),ROWS(drow!C$5:C6))))","v":"ديمة"},{"$f":"IF(ROWS(D$5:D6)>$H$1,\"\",INDEX(name,SMALL(IF(ISNUMBER(SEARCH($F$1,عملية)),ROW(عملية)-ROW(data!$I$3)+1),ROWS(drow!D$5:D6))))","v":22424},{"$f":"IF(ROWS(E$5:E6)>$H$1,\"\",INDEX(name,SMALL(IF(ISNUMBER(SEARCH($F$1,عملية)),ROW(عملية)-ROW(data!$I$3)+1),ROWS(drow!E$5:E6))))","v":"ذكر"},{"$f":"IF(ROWS(F$5:F6)>$H$1,\"\",INDEX(name,SMALL(IF(ISNUMBER(SEARCH($F$1,عملية)),ROW(عملية)-ROW(data!$I$3)+1),ROWS(drow!F$5:F6))))","v":"1990-09-09"},{"$f":"IF(ROWS(G$5:G6)>$H$1,\"\",INDEX(name,SMALL(IF(ISNUMBER(SEARCH($F$1,عملية)),ROW(عملية)-ROW(data!$I$3)+1),ROWS(drow!G$5:G6))))","v":2342342},{"$f":"IF(ROWS(H$5:H6)>$H$1,\"\",INDEX(name,SMALL(IF(ISNUMBER(SEARCH($F$1,عملية)),ROW(عملية)-ROW(data!$I$3)+1),ROWS(drow!H$5:H6))))","v":2425252},{"$f":"IF(ROWS(I$5:I6)>$H$1,\"\",INDEX(name,SMALL(IF(ISNUMBER(SEARCH($F$1,عملية)),ROW(عملية)-ROW(data!$I$3)+1),ROWS(drow!I$5:I6))))","v":"سحب "},{"$f":"IF(ROWS(J$5:J6)>$H$1,\"\",INDEX(name,SMALL(IF(ISNUMBER(SEARCH($F$1,عملية)),ROW(عملية)-ROW(data!$I$3)+1),ROWS(drow!J$5:J6))))","v":"2018-09-02"}]
[{"$f":"IF(ROWS(A$5:A7)>$H$1,\"\",INDEX(name,SMALL(IF(ISNUMBER(SEARCH($F$1,عملية)),ROW(عملية)-ROW(data!$I$3)+1),ROWS(drow!A$5:A7))))","v":"بانة الرحال"},{"$f":"IF(ROWS(B$5:B7)>$H$1,\"\",INDEX(name,SMALL(IF(ISNUMBER(SEARCH($F$1,عملية)),ROW(عملية)-ROW(data!$I$3)+1),ROWS(drow!B$5:B7))))","v":"أسعد"},{"$f":"IF(ROWS(C$5:C7)>$H$1,\"\",INDEX(name,SMALL(IF(ISNUMBER(SEARCH($F$1,عملية)),ROW(عملية)-ROW(data!$I$3)+1),ROWS(drow!C$5:C7))))","v":"سوزي"},{"$f":"IF(ROWS(D$5:D7)>$H$1,\"\",INDEX(name,SMALL(IF(ISNUMBER(SEARCH($F$1,عملية)),ROW(عملية)-ROW(data!$I$3)+1),ROWS(drow!D$5:D7))))","v":30074},{"$f":"IF(ROWS(E$5:E7)>$H$1,\"\",INDEX(name,SMALL(IF(ISNUMBER(SEARCH($F$1,عملية)),ROW(عملية)-ROW(data!$I$3)+1),ROWS(drow!E$5:E7))))","v":"انثى"},{"$f":"IF(ROWS(F$5:F7)>$H$1,\"\",INDEX(name,SMALL(IF(ISNUMBER(SEARCH($F$1,عملية)),ROW(عملية)-ROW(data!$I$3)+1),ROWS(drow!F$5:F7))))","v":"2007-09-04"},{"$f":"IF(ROWS(G$5:G7)>$H$1,\"\",INDEX(name,SMALL(IF(ISNUMBER(SEARCH($F$1,عملية)),ROW(عملية)-ROW(data!$I$3)+1),ROWS(drow!G$5:G7))))","v":34575675},{"$f":"IF(ROWS(H$5:H7)>$H$1,\"\",INDEX(name,SMALL(IF(ISNUMBER(SEARCH($F$1,عملية)),ROW(عملية)-ROW(data!$I$3)+1),ROWS(drow!H$5:H7))))","v":2342322546},{"$f":"IF(ROWS(I$5:I7)>$H$1,\"\",INDEX(name,SMALL(IF(ISNUMBER(SEARCH($F$1,عملية)),ROW(عملية)-ROW(data!$I$3)+1),ROWS(drow!I$5:I7))))","v":"سحب "},{"$f":"IF(ROWS(J$5:J7)>$H$1,\"\",INDEX(name,SMALL(IF(ISNUMBER(SEARCH($F$1,عملية)),ROW(عملية)-ROW(data!$I$3)+1),ROWS(drow!J$5:J7))))","v":"2019-06-03"}]
[{"$f":"IF(ROWS(A$5:A8)>$H$1,\"\",INDEX(name,SMALL(IF(ISNUMBER(SEARCH($F$1,عملية)),ROW(عملية)-ROW(data!$I$3)+1),ROWS(drow!A$5:A8))))","v":"جورجيت سليط"},{"$f":"IF(ROWS(B$5:B8)>$H$1,\"\",INDEX(name,SMALL(IF(ISNUMBER(SEARCH($F$1,عملية)),ROW(عملية)-ROW(data!$I$3)+1),ROWS(drow!B$5:B8))))","v":"وائل"},{"$f":"IF(ROWS(C$5:C8)>$H$1,\"\",INDEX(name,SMALL(IF(ISNUMBER(SEARCH($F$1,عملية)),ROW(عملية)-ROW(data!$I$3)+1),ROWS(drow!C$5:C8))))","v":"ليندا"},{"$f":"IF(ROWS(D$5:D8)>$H$1,\"\",INDEX(name,SMALL(IF(ISNUMBER(SEARCH($F$1,عملية)),ROW(عملية)-ROW(data!$I$3)+1),ROWS(drow!D$5:D8))))","v":26881},{"$f":"IF(ROWS(E$5:E8)>$H$1,\"\",INDEX(name,SMALL(IF(ISNUMBER(SEARCH($F$1,عملية)),ROW(عملية)-ROW(data!$I$3)+1),ROWS(drow!E$5:E8))))","v":"انثى"},{"$f":"IF(ROWS(F$5:F8)>$H$1,\"\",INDEX(name,SMALL(IF(ISNUMBER(SEARCH($F$1,عملية)),ROW(عملية)-ROW(data!$I$3)+1),ROWS(drow!F$5:F8))))","v":"2001-05-05"},{"$f":"IF(ROWS(G$5:G8)>$H$1,\"\",INDEX(name,SMALL(IF(ISNUMBER(SEARCH($F$1,عملية)),ROW(عملية)-ROW(data!$I$3)+1),ROWS(drow!G$5:G8))))","v":34535345},{"$f":"IF(ROWS(H$5:H8)>$H$1,\"\",INDEX(name,SMALL(IF(ISNUMBER(SEARCH($F$1,عملية)),ROW(عملية)-ROW(data!$I$3)+1),ROWS(drow!H$5:H8))))","v":95436},{"$f":"IF(ROWS(I$5:I8)>$H$1,\"\",INDEX(name,SMALL(IF(ISNUMBER(SEARCH($F$1,عملية)),ROW(عملية)-ROW(data!$I$3)+1),ROWS(drow!I$5:I8))))","v":"سحب "},{"$f":"IF(ROWS(J$5:J8)>$H$1,\"\",INDEX(name,SMALL(IF(ISNUMBER(SEARCH($F$1,عملية)),ROW(عملية)-ROW(data!$I$3)+1),ROWS(drow!J$5:J8))))","v":"2019-06-08"}]
[{"$f":"IF(ROWS(A$5:A9)>$H$1,\"\",INDEX(name,SMALL(IF(ISNUMBER(SEARCH($F$1,عملية)),ROW(عملية)-ROW(data!$I$3)+1),ROWS(drow!A$5:A9))))","v":"ميشيل ديب"},{"$f":"IF(ROWS(B$5:B9)>$H$1,\"\",INDEX(name,SMALL(IF(ISNUMBER(SEARCH($F$1,عملية)),ROW(عملية)-ROW(data!$I$3)+1),ROWS(drow!B$5:B9))))","v":"غياث"},{"$f":"IF(ROWS(C$5:C9)>$H$1,\"\",INDEX(name,SMALL(IF(ISNUMBER(SEARCH($F$1,عملية)),ROW(عملية)-ROW(data!$I$3)+1),ROWS(drow!C$5:C9))))","v":"جولي"},{"$f":"IF(ROWS(D$5:D9)>$H$1,\"\",INDEX(name,SMALL(IF(ISNUMBER(SEARCH($F$1,عملية)),ROW(عملية)-ROW(data!$I$3)+1),ROWS(drow!D$5:D9))))","v":18419},{"$f":"IF(ROWS(E$5:E9)>$H$1,\"\",INDEX(name,SMALL(IF(ISNUMBER(SEARCH($F$1,عملية)),ROW(عملية)-ROW(data!$I$3)+1),ROWS(drow!E$5:E9))))","v":"ذكر"},{"$f":"IF(ROWS(F$5:F9)>$H$1,\"\",INDEX(name,SMALL(IF(ISNUMBER(SEARCH($F$1,عملية)),ROW(عملية)-ROW(data!$I$3)+1),ROWS(drow!F$5:F9))))","v":"2004-09-08"},{"$f":"IF(ROWS(G$5:G9)>$H$1,\"\",INDEX(name,SMALL(IF(ISNUMBER(SEARCH($F$1,عملية)),ROW(عملية)-ROW(data!$I$3)+1),ROWS(drow!G$5:G9))))","v":8658856},{"$f":"IF(ROWS(H$5:H9)>$H$1,\"\",INDEX(name,SMALL(IF(ISNUMBER(SEARCH($F$1,عملية)),ROW(عملية)-ROW(data!$I$3)+1),ROWS(drow!H$5:H9))))","v":340000},{"$f":"IF(ROWS(I$5:I9)>$H$1,\"\",INDEX(name,SMALL(IF(ISNUMBER(SEARCH($F$1,عملية)),ROW(عملية)-ROW(data!$I$3)+1),ROWS(drow!I$5:I9))))","v":"سحب "},{"$f":"IF(ROWS(J$5:J9)>$H$1,\"\",INDEX(name,SMALL(IF(ISNUMBER(SEARCH($F$1,عملية)),ROW(عملية)-ROW(data!$I$3)+1),ROWS(drow!J$5:J9))))","v":"2019-06-13"}]
[{"$f":"IF(ROWS(A$5:A10)>$H$1,\"\",INDEX(name,SMALL(IF(ISNUMBER(SEARCH($F$1,عملية)),ROW(عملية)-ROW(data!$I$3)+1),ROWS(drow!A$5:A10))))","v":"أحلام جعفر"},{"$f":"IF(ROWS(B$5:B10)>$H$1,\"\",INDEX(name,SMALL(IF(ISNUMBER(SEARCH($F$1,عملية)),ROW(عملية)-ROW(data!$I$3)+1),ROWS(drow!B$5:B10))))","v":"فارس"},{"$f":"IF(ROWS(C$5:C10)>$H$1,\"\",INDEX(name,SMALL(IF(ISNUMBER(SEARCH($F$1,عملية)),ROW(عملية)-ROW(data!$I$3)+1),ROWS(drow!C$5:C10))))","v":"نبيلة"},{"$f":"IF(ROWS(D$5:D10)>$H$1,\"\",INDEX(name,SMALL(IF(ISNUMBER(SEARCH($F$1,عملية)),ROW(عملية)-ROW(data!$I$3)+1),ROWS(drow!D$5:D10))))","v":21767},{"$f":"IF(ROWS(E$5:E10)>$H$1,\"\",INDEX(name,SMALL(IF(ISNUMBER(SEARCH($F$1,عملية)),ROW(عملية)-ROW(data!$I$3)+1),ROWS(drow!E$5:E10))))","v":"انثى"},{"$f":"IF(ROWS(F$5:F10)>$H$1,\"\",INDEX(name,SMALL(IF(ISNUMBER(SEARCH($F$1,عملية)),ROW(عملية)-ROW(data!$I$3)+1),ROWS(drow!F$5:F10))))","v":"1997-09-08"},{"$f":"IF(ROWS(G$5:G10)>$H$1,\"\",INDEX(name,SMALL(IF(ISNUMBER(SEARCH($F$1,عملية)),ROW(عملية)-ROW(data!$I$3)+1),ROWS(drow!G$5:G10))))","v":5678567},{"$f":"IF(ROWS(H$5:H10)>$H$1,\"\",INDEX(name,SMALL(IF(ISNUMBER(SEARCH($F$1,عملية)),ROW(عملية)-ROW(data!$I$3)+1),ROWS(drow!H$5:H10))))","v":42340000},{"$f":"IF(ROWS(I$5:I10)>$H$1,\"\",INDEX(name,SMALL(IF(ISNUMBER(SEARCH($F$1,عملية)),ROW(عملية)-ROW(data!$I$3)+1),ROWS(drow!I$5:I10))))","v":"سحب "},{"$f":"IF(ROWS(J$5:J10)>$H$1,\"\",INDEX(name,SMALL(IF(ISNUMBER(SEARCH($F$1,عملية)),ROW(عملية)-ROW(data!$I$3)+1),ROWS(drow!J$5:J10))))","v":"2019-06-17"}]
[{"$f":"IF(ROWS(A$5:A11)>$H$1,\"\",INDEX(name,SMALL(IF(ISNUMBER(SEARCH($F$1,عملية)),ROW(عملية)-ROW(data!$I$3)+1),ROWS(drow!A$5:A11))))","v":"عمر عمري"},{"$f":"IF(ROWS(B$5:B11)>$H$1,\"\",INDEX(name,SMALL(IF(ISNUMBER(SEARCH($F$1,عملية)),ROW(عملية)-ROW(data!$I$3)+1),ROWS(drow!B$5:B11))))","v":"برهان"},{"$f":"IF(ROWS(C$5:C11)>$H$1,\"\",INDEX(name,SMALL(IF(ISNUMBER(SEARCH($F$1,عملية)),ROW(عملية)-ROW(data!$I$3)+1),ROWS(drow!C$5:C11))))","v":"منى"},{"$f":"IF(ROWS(D$5:D11)>$H$1,\"\",INDEX(name,SMALL(IF(ISNUMBER(SEARCH($F$1,عملية)),ROW(عملية)-ROW(data!$I$3)+1),ROWS(drow!D$5:D11))))","v":36043},{"$f":"IF(ROWS(E$5:E11)>$H$1,\"\",INDEX(name,SMALL(IF(ISNUMBER(SEARCH($F$1,عملية)),ROW(عملية)-ROW(data!$I$3)+1),ROWS(drow!E$5:E11))))","v":"ذكر"},{"$f":"IF(ROWS(F$5:F11)>$H$1,\"\",INDEX(name,SMALL(IF(ISNUMBER(SEARCH($F$1,عملية)),ROW(عملية)-ROW(data!$I$3)+1),ROWS(drow!F$5:F11))))","v":"2018-11-09"},{"$f":"IF(ROWS(G$5:G11)>$H$1,\"\",INDEX(name,SMALL(IF(ISNUMBER(SEARCH($F$1,عملية)),ROW(عملية)-ROW(data!$I$3)+1),ROWS(drow!G$5:G11))))","v":9456745745},{"$f":"IF(ROWS(H$5:H11)>$H$1,\"\",INDEX(name,SMALL(IF(ISNUMBER(SEARCH($F$1,عملية)),ROW(عملية)-ROW(data!$I$3)+1),ROWS(drow!H$5:H11))))","v":23400000},{"$f":"IF(ROWS(I$5:I11)>$H$1,\"\",INDEX(name,SMALL(IF(ISNUMBER(SEARCH($F$1,عملية)),ROW(عملية)-ROW(data!$I$3)+1),ROWS(drow!I$5:I11))))","v":"سحب "},{"$f":"IF(ROWS(J$5:J11)>$H$1,\"\",INDEX(name,SMALL(IF(ISNUMBER(SEARCH($F$1,عملية)),ROW(عملية)-ROW(data!$I$3)+1),ROWS(drow!J$5:J11))))","v":"2019-06-18"}]
[{"$f":"IF(ROWS(A$5:A12)>$H$1,\"\",INDEX(name,SMALL(IF(ISNUMBER(SEARCH($F$1,عملية)),ROW(عملية)-ROW(data!$I$3)+1),ROWS(drow!A$5:A12))))","v":"سمير خطاب"},{"$f":"IF(ROWS(B$5:B12)>$H$1,\"\",INDEX(name,SMALL(IF(ISNUMBER(SEARCH($F$1,عملية)),ROW(عملية)-ROW(data!$I$3)+1),ROWS(drow!B$5:B12))))","v":"سليمان"},{"$f":"IF(ROWS(C$5:C12)>$H$1,\"\",INDEX(name,SMALL(IF(ISNUMBER(SEARCH($F$1,عملية)),ROW(عملية)-ROW(data!$I$3)+1),ROWS(drow!C$5:C12))))","v":"فاتن"},{"$f":"IF(ROWS(D$5:D12)>$H$1,\"\",INDEX(name,SMALL(IF(ISNUMBER(SEARCH($F$1,عملية)),ROW(عملية)-ROW(data!$I$3)+1),ROWS(drow!D$5:D12))))","v":18418},{"$f":"IF(ROWS(E$5:E12)>$H$1,\"\",INDEX(name,SMALL(IF(ISNUMBER(SEARCH($F$1,عملية)),ROW(عملية)-ROW(data!$I$3)+1),ROWS(drow!E$5:E12))))","v":"ذكر"},{"$f":"IF(ROWS(F$5:F12)>$H$1,\"\",INDEX(name,SMALL(IF(ISNUMBER(SEARCH($F$1,عملية)),ROW(عملية)-ROW(data!$I$3)+1),ROWS(drow!F$5:F12))))","v":"1983-09-05"},{"$f":"IF(ROWS(G$5:G12)>$H$1,\"\",INDEX(name,SMALL(IF(ISNUMBER(SEARCH($F$1,عملية)),ROW(عملية)-ROW(data!$I$3)+1),ROWS(drow!G$5:G12))))","v":456745},{"$f":"IF(ROWS(H$5:H12)>$H$1,\"\",INDEX(name,SMALL(IF(ISNUMBER(SEARCH($F$1,عملية)),ROW(عملية)-ROW(data!$I$3)+1),ROWS(drow!H$5:H12))))","v":44234000},{"$f":"IF(ROWS(I$5:I12)>$H$1,\"\",INDEX(name,SMALL(IF(ISNUMBER(SEARCH($F$1,عملية)),ROW(عملية)-ROW(data!$I$3)+1),ROWS(drow!I$5:I12))))","v":"سحب "},{"$f":"IF(ROWS(J$5:J12)>$H$1,\"\",INDEX(name,SMALL(IF(ISNUMBER(SEARCH($F$1,عملية)),ROW(عملية)-ROW(data!$I$3)+1),ROWS(drow!J$5:J12))))","v":"2019-06-19"}]
[{"$f":"IF(ROWS(A$5:A13)>$H$1,\"\",INDEX(name,SMALL(IF(ISNUMBER(SEARCH($F$1,عملية)),ROW(عملية)-ROW(data!$I$3)+1),ROWS(drow!A$5:A13))))","v":"يوسف حنوف"},{"$f":"IF(ROWS(B$5:B13)>$H$1,\"\",INDEX(name,SMALL(IF(ISNUMBER(SEARCH($F$1,عملية)),ROW(عملية)-ROW(data!$I$3)+1),ROWS(drow!B$5:B13))))","v":"علاء"},{"$f":"IF(ROWS(C$5:C13)>$H$1,\"\",INDEX(name,SMALL(IF(ISNUMBER(SEARCH($F$1,عملية)),ROW(عملية)-ROW(data!$I$3)+1),ROWS(drow!C$5:C13))))","v":"منى "},{"$f":"IF(ROWS(D$5:D13)>$H$1,\"\",INDEX(name,SMALL(IF(ISNUMBER(SEARCH($F$1,عملية)),ROW(عملية)-ROW(data!$I$3)+1),ROWS(drow!D$5:D13))))","v":35981},{"$f":"IF(ROWS(E$5:E13)>$H$1,\"\",INDEX(name,SMALL(IF(ISNUMBER(SEARCH($F$1,عملية)),ROW(عملية)-ROW(data!$I$3)+1),ROWS(drow!E$5:E13))))","v":"ذكر"},{"$f":"IF(ROWS(F$5:F13)>$H$1,\"\",INDEX(name,SMALL(IF(ISNUMBER(SEARCH($F$1,عملية)),ROW(عملية)-ROW(data!$I$3)+1),ROWS(drow!F$5:F13))))","v":"2017-01-04"},{"$f":"IF(ROWS(G$5:G13)>$H$1,\"\",INDEX(name,SMALL(IF(ISNUMBER(SEARCH($F$1,عملية)),ROW(عملية)-ROW(data!$I$3)+1),ROWS(drow!G$5:G13))))","v":5677567775},{"$f":"IF(ROWS(H$5:H13)>$H$1,\"\",INDEX(name,SMALL(IF(ISNUMBER(SEARCH($F$1,عملية)),ROW(عملية)-ROW(data!$I$3)+1),ROWS(drow!H$5:H13))))","v":4300000},{"$f":"IF(ROWS(I$5:I13)>$H$1,\"\",INDEX(name,SMALL(IF(ISNUMBER(SEARCH($F$1,عملية)),ROW(عملية)-ROW(data!$I$3)+1),ROWS(drow!I$5:I13))))","v":"سحب "},{"$f":"IF(ROWS(J$5:J13)>$H$1,\"\",INDEX(name,SMALL(IF(ISNUMBER(SEARCH($F$1,عملية)),ROW(عملية)-ROW(data!$I$3)+1),ROWS(drow!J$5:J13))))","v":"2019-06-26"}]
[{"$f":"IF(ROWS(A$5:A14)>$H$1,\"\",INDEX(name,SMALL(IF(ISNUMBER(SEARCH($F$1,عملية)),ROW(عملية)-ROW(data!$I$3)+1),ROWS(drow!A$5:A14))))","v":"عواطف سلامة"},{"$f":"IF(ROWS(B$5:B14)>$H$1,\"\",INDEX(name,SMALL(IF(ISNUMBER(SEARCH($F$1,عملية)),ROW(عملية)-ROW(data!$I$3)+1),ROWS(drow!B$5:B14))))","v":"محمد "},{"$f":"IF(ROWS(C$5:C14)>$H$1,\"\",INDEX(name,SMALL(IF(ISNUMBER(SEARCH($F$1,عملية)),ROW(عملية)-ROW(data!$I$3)+1),ROWS(drow!C$5:C14))))","v":"ملك"},{"$f":"IF(ROWS(D$5:D14)>$H$1,\"\",INDEX(name,SMALL(IF(ISNUMBER(SEARCH($F$1,عملية)),ROW(عملية)-ROW(data!$I$3)+1),ROWS(drow!D$5:D14))))","v":23490},{"$f":"IF(ROWS(E$5:E14)>$H$1,\"\",INDEX(name,SMALL(IF(ISNUMBER(SEARCH($F$1,عملية)),ROW(عملية)-ROW(data!$I$3)+1),ROWS(drow!E$5:E14))))","v":"انثى"},{"$f":"IF(ROWS(F$5:F14)>$H$1,\"\",INDEX(name,SMALL(IF(ISNUMBER(SEARCH($F$1,عملية)),ROW(عملية)-ROW(data!$I$3)+1),ROWS(drow!F$5:F14))))","v":"1988-09-08"},{"$f":"IF(ROWS(G$5:G14)>$H$1,\"\",INDEX(name,SMALL(IF(ISNUMBER(SEARCH($F$1,عملية)),ROW(عملية)-ROW(data!$I$3)+1),ROWS(drow!G$5:G14))))","v":8567454},{"$f":"IF(ROWS(H$5:H14)>$H$1,\"\",INDEX(name,SMALL(IF(ISNUMBER(SEARCH($F$1,عملية)),ROW(عملية)-ROW(data!$I$3)+1),ROWS(drow!H$5:H14))))","v":488320000},{"$f":"IF(ROWS(I$5:I14)>$H$1,\"\",INDEX(name,SMALL(IF(ISNUMBER(SEARCH($F$1,عملية)),ROW(عملية)-ROW(data!$I$3)+1),ROWS(drow!I$5:I14))))","v":"سحب "},{"$f":"IF(ROWS(J$5:J14)>$H$1,\"\",INDEX(name,SMALL(IF(ISNUMBER(SEARCH($F$1,عملية)),ROW(عملية)-ROW(data!$I$3)+1),ROWS(drow!J$5:J14))))","v":"2019-06-30"}]
[{"$f":"IF(ROWS(A$5:A15)>$H$1,\"\",INDEX(name,SMALL(IF(ISNUMBER(SEARCH($F$1,عملية)),ROW(عملية)-ROW(data!$I$3)+1),ROWS(drow!A$5:A15))))","v":"نبيه يوسف"},{"$f":"IF(ROWS(B$5:B15)>$H$1,\"\",INDEX(name,SMALL(IF(ISNUMBER(SEARCH($F$1,عملية)),ROW(عملية)-ROW(data!$I$3)+1),ROWS(drow!B$5:B15))))","v":"حمزة"},{"$f":"IF(ROWS(C$5:C15)>$H$1,\"\",INDEX(name,SMALL(IF(ISNUMBER(SEARCH($F$1,عملية)),ROW(عملية)-ROW(data!$I$3)+1),ROWS(drow!C$5:C15))))","v":"داليا"},{"$f":"IF(ROWS(D$5:D15)>$H$1,\"\",INDEX(name,SMALL(IF(ISNUMBER(SEARCH($F$1,عملية)),ROW(عملية)-ROW(data!$I$3)+1),ROWS(drow!D$5:D15))))","v":30933},{"$f":"IF(ROWS(E$5:E15)>$H$1,\"\",INDEX(name,SMALL(IF(ISNUMBER(SEARCH($F$1,عملية)),ROW(عملية)-ROW(data!$I$3)+1),ROWS(drow!E$5:E15))))","v":"انثى"},{"$f":"IF(ROWS(F$5:F15)>$H$1,\"\",INDEX(name,SMALL(IF(ISNUMBER(SEARCH($F$1,عملية)),ROW(عملية)-ROW(data!$I$3)+1),ROWS(drow!F$5:F15))))","v":"2014-07-08"},{"$f":"IF(ROWS(G$5:G15)>$H$1,\"\",INDEX(name,SMALL(IF(ISNUMBER(SEARCH($F$1,عملية)),ROW(عملية)-ROW(data!$I$3)+1),ROWS(drow!G$5:G15))))","v":5456754},{"$f":"IF(ROWS(H$5:H15)>$H$1,\"\",INDEX(name,SMALL(IF(ISNUMBER(SEARCH($F$1,عملية)),ROW(عملية)-ROW(data!$I$3)+1),ROWS(drow!H$5:H15))))","v":54000000},{"$f":"IF(ROWS(I$5:I15)>$H$1,\"\",INDEX(name,SMALL(IF(ISNUMBER(SEARCH($F$1,عملية)),ROW(عملية)-ROW(data!$I$3)+1),ROWS(drow!I$5:I15))))","v":"سحب "},{"$f":"IF(ROWS(J$5:J15)>$H$1,\"\",INDEX(name,SMALL(IF(ISNUMBER(SEARCH($F$1,عملية)),ROW(عملية)-ROW(data!$I$3)+1),ROWS(drow!J$5:J15))))","v":"2019-07-02"}]
[{"$f":"IF(ROWS(A$5:A16)>$H$1,\"\",INDEX(name,SMALL(IF(ISNUMBER(SEARCH($F$1,عملية)),ROW(عملية)-ROW(data!$I$3)+1),ROWS(drow!A$5:A16))))","v":"مريم خوري"},{"$f":"IF(ROWS(B$5:B16)>$H$1,\"\",INDEX(name,SMALL(IF(ISNUMBER(SEARCH($F$1,عملية)),ROW(عملية)-ROW(data!$I$3)+1),ROWS(drow!B$5:B16))))","v":"ماهر"},{"$f":"IF(ROWS(C$5:C16)>$H$1,\"\",INDEX(name,SMALL(IF(ISNUMBER(SEARCH($F$1,عملية)),ROW(عملية)-ROW(data!$I$3)+1),ROWS(drow!C$5:C16))))","v":"سوسن"},{"$f":"IF(ROWS(D$5:D16)>$H$1,\"\",INDEX(name,SMALL(IF(ISNUMBER(SEARCH($F$1,عملية)),ROW(عملية)-ROW(data!$I$3)+1),ROWS(drow!D$5:D16))))","v":22132},{"$f":"IF(ROWS(E$5:E16)>$H$1,\"\",INDEX(name,SMALL(IF(ISNUMBER(SEARCH($F$1,عملية)),ROW(عملية)-ROW(data!$I$3)+1),ROWS(drow!E$5:E16))))","v":"انثى"},{"$f":"IF(ROWS(F$5:F16)>$H$1,\"\",INDEX(name,SMALL(IF(ISNUMBER(SEARCH($F$1,عملية)),ROW(عملية)-ROW(data!$I$3)+1),ROWS(drow!F$5:F16))))","v":"1980-09-05"},{"$f":"IF(ROWS(G$5:G16)>$H$1,\"\",INDEX(name,SMALL(IF(ISNUMBER(SEARCH($F$1,عملية)),ROW(عملية)-ROW(data!$I$3)+1),ROWS(drow!G$5:G16))))","v":8456848484},{"$f":"IF(ROWS(H$5:H16)>$H$1,\"\",INDEX(name,SMALL(IF(ISNUMBER(SEARCH($F$1,عملية)),ROW(عملية)-ROW(data!$I$3)+1),ROWS(drow!H$5:H16))))","v":5200000},{"$f":"IF(ROWS(I$5:I16)>$H$1,\"\",INDEX(name,SMALL(IF(ISNUMBER(SEARCH($F$1,عملية)),ROW(عملية)-ROW(data!$I$3)+1),ROWS(drow!I$5:I16))))","v":"سحب "},{"$f":"IF(ROWS(J$5:J16)>$H$1,\"\",INDEX(name,SMALL(IF(ISNUMBER(SEARCH($F$1,عملية)),ROW(عملية)-ROW(data!$I$3)+1),ROWS(drow!J$5:J16))))","v":"2019-07-04"}]
[{"$f":"IF(ROWS(A$5:A17)>$H$1,\"\",INDEX(name,SMALL(IF(ISNUMBER(SEARCH($F$1,عملية)),ROW(عملية)-ROW(data!$I$3)+1),ROWS(drow!A$5:A17))))","v":"نور نجاري"},{"$f":"IF(ROWS(B$5:B17)>$H$1,\"\",INDEX(name,SMALL(IF(ISNUMBER(SEARCH($F$1,عملية)),ROW(عملية)-ROW(data!$I$3)+1),ROWS(drow!B$5:B17))))","v":"أيهم"},{"$f":"IF(ROWS(C$5:C17)>$H$1,\"\",INDEX(name,SMALL(IF(ISNUMBER(SEARCH($F$1,عملية)),ROW(عملية)-ROW(data!$I$3)+1),ROWS(drow!C$5:C17))))","v":"أمل"},{"$f":"IF(ROWS(D$5:D17)>$H$1,\"\",INDEX(name,SMALL(IF(ISNUMBER(SEARCH($F$1,عملية)),ROW(عملية)-ROW(data!$I$3)+1),ROWS(drow!D$5:D17))))","v":23594},{"$f":"IF(ROWS(E$5:E17)>$H$1,\"\",INDEX(name,SMALL(IF(ISNUMBER(SEARCH($F$1,عملية)),ROW(عملية)-ROW(data!$I$3)+1),ROWS(drow!E$5:E17))))","v":"ذكر"},{"$f":"IF(ROWS(F$5:F17)>$H$1,\"\",INDEX(name,SMALL(IF(ISNUMBER(SEARCH($F$1,عملية)),ROW(عملية)-ROW(data!$I$3)+1),ROWS(drow!F$5:F17))))","v":"1983-08-09"},{"$f":"IF(ROWS(G$5:G17)>$H$1,\"\",INDEX(name,SMALL(IF(ISNUMBER(SEARCH($F$1,عملية)),ROW(عملية)-ROW(data!$I$3)+1),ROWS(drow!G$5:G17))))","v":3454363},{"$f":"IF(ROWS(H$5:H17)>$H$1,\"\",INDEX(name,SMALL(IF(ISNUMBER(SEARCH($F$1,عملية)),ROW(عملية)-ROW(data!$I$3)+1),ROWS(drow!H$5:H17))))","v":54500000},{"$f":"IF(ROWS(I$5:I17)>$H$1,\"\",INDEX(name,SMALL(IF(ISNUMBER(SEARCH($F$1,عملية)),ROW(عملية)-ROW(data!$I$3)+1),ROWS(drow!I$5:I17))))","v":"سحب "},{"$f":"IF(ROWS(J$5:J17)>$H$1,\"\",INDEX(name,SMALL(IF(ISNUMBER(SEARCH($F$1,عملية)),ROW(عملية)-ROW(data!$I$3)+1),ROWS(drow!J$5:J17))))","v":"2019-07-07"}]
[{"$f":"IF(ROWS(A$5:A18)>$H$1,\"\",INDEX(name,SMALL(IF(ISNUMBER(SEARCH($F$1,عملية)),ROW(عملية)-ROW(data!$I$3)+1),ROWS(drow!A$5:A18))))","v":"مصطفى أنوس"},{"$f":"IF(ROWS(B$5:B18)>$H$1,\"\",INDEX(name,SMALL(IF(ISNUMBER(SEARCH($F$1,عملية)),ROW(عملية)-ROW(data!$I$3)+1),ROWS(drow!B$5:B18))))","v":"محمد "},{"$f":"IF(ROWS(C$5:C18)>$H$1,\"\",INDEX(name,SMALL(IF(ISNUMBER(SEARCH($F$1,عملية)),ROW(عملية)-ROW(data!$I$3)+1),ROWS(drow!C$5:C18))))","v":"نوال"},{"$f":"IF(ROWS(D$5:D18)>$H$1,\"\",INDEX(name,SMALL(IF(ISNUMBER(SEARCH($F$1,عملية)),ROW(عملية)-ROW(data!$I$3)+1),ROWS(drow!D$5:D18))))","v":32023},{"$f":"IF(ROWS(E$5:E18)>$H$1,\"\",INDEX(name,SMALL(IF(ISNUMBER(SEARCH($F$1,عملية)),ROW(عملية)-ROW(data!$I$3)+1),ROWS(drow!E$5:E18))))","v":"ذكر"},{"$f":"IF(ROWS(F$5:F18)>$H$1,\"\",INDEX(name,SMALL(IF(ISNUMBER(SEARCH($F$1,عملية)),ROW(عملية)-ROW(data!$I$3)+1),ROWS(drow!F$5:F18))))","v":"2018-12-23"},{"$f":"IF(ROWS(G$5:G18)>$H$1,\"\",INDEX(name,SMALL(IF(ISNUMBER(SEARCH($F$1,عملية)),ROW(عملية)-ROW(data!$I$3)+1),ROWS(drow!G$5:G18))))","v":8345734564},{"$f":"IF(ROWS(H$5:H18)>$H$1,\"\",INDEX(name,SMALL(IF(ISNUMBER(SEARCH($F$1,عملية)),ROW(عملية)-ROW(data!$I$3)+1),ROWS(drow!H$5:H18))))","v":2400000},{"$f":"IF(ROWS(I$5:I18)>$H$1,\"\",INDEX(name,SMALL(IF(ISNUMBER(SEARCH($F$1,عملية)),ROW(عملية)-ROW(data!$I$3)+1),ROWS(drow!I$5:I18))))","v":"سحب "},{"$f":"IF(ROWS(J$5:J18)>$H$1,\"\",INDEX(name,SMALL(IF(ISNUMBER(SEARCH($F$1,عملية)),ROW(عملية)-ROW(data!$I$3)+1),ROWS(drow!J$5:J18))))","v":"2019-07-10"}]
[{"$f":"IF(ROWS(A$5:A19)>$H$1,\"\",INDEX(name,SMALL(IF(ISNUMBER(SEARCH($F$1,عملية)),ROW(عملية)-ROW(data!$I$3)+1),ROWS(drow!A$5:A19))))","v":"سالم معروف"},{"$f":"IF(ROWS(B$5:B19)>$H$1,\"\",INDEX(name,SMALL(IF(ISNUMBER(SEARCH($F$1,عملية)),ROW(عملية)-ROW(data!$I$3)+1),ROWS(drow!B$5:B19))))","v":"علي "},{"$f":"IF(ROWS(C$5:C19)>$H$1,\"\",INDEX(name,SMALL(IF(ISNUMBER(SEARCH($F$1,عملية)),ROW(عملية)-ROW(data!$I$3)+1),ROWS(drow!C$5:C19))))","v":"نوال"},{"$f":"IF(ROWS(D$5:D19)>$H$1,\"\",INDEX(name,SMALL(IF(ISNUMBER(SEARCH($F$1,عملية)),ROW(عملية)-ROW(data!$I$3)+1),ROWS(drow!D$5:D19))))","v":33089},{"$f":"IF(ROWS(E$5:E19)>$H$1,\"\",INDEX(name,SMALL(IF(ISNUMBER(SEARCH($F$1,عملية)),ROW(عملية)-ROW(data!$I$3)+1),ROWS(drow!E$5:E19))))","v":"ذكر"},{"$f":"IF(ROWS(F$5:F19)>$H$1,\"\",INDEX(name,SMALL(IF(ISNUMBER(SEARCH($F$1,عملية)),ROW(عملية)-ROW(data!$I$3)+1),ROWS(drow!F$5:F19))))","v":"2015-08-03"},{"$f":"IF(ROWS(G$5:G19)>$H$1,\"\",INDEX(name,SMALL(IF(ISNUMBER(SEARCH($F$1,عملية)),ROW(عملية)-ROW(data!$I$3)+1),ROWS(drow!G$5:G19))))","v":75467457},{"$f":"IF(ROWS(H$5:H19)>$H$1,\"\",INDEX(name,SMALL(IF(ISNUMBER(SEARCH($F$1,عملية)),ROW(عملية)-ROW(data!$I$3)+1),ROWS(drow!H$5:H19))))","v":23400000},{"$f":"IF(ROWS(I$5:I19)>$H$1,\"\",INDEX(name,SMALL(IF(ISNUMBER(SEARCH($F$1,عملية)),ROW(عملية)-ROW(data!$I$3)+1),ROWS(drow!I$5:I19))))","v":"سحب "},{"$f":"IF(ROWS(J$5:J19)>$H$1,\"\",INDEX(name,SMALL(IF(ISNUMBER(SEARCH($F$1,عملية)),ROW(عملية)-ROW(data!$I$3)+1),ROWS(drow!J$5:J19))))","v":"2019-07-18"}]
[{"$f":"IF(ROWS(A$5:A20)>$H$1,\"\",INDEX(name,SMALL(IF(ISNUMBER(SEARCH($F$1,عملية)),ROW(عملية)-ROW(data!$I$3)+1),ROWS(drow!A$5:A20))))","v":""},{"$f":"IF(ROWS(B$5:B20)>$H$1,\"\",INDEX(name,SMALL(IF(ISNUMBER(SEARCH($F$1,عملية)),ROW(عملية)-ROW(data!$I$3)+1),ROWS(drow!B$5:B20))))","v":""},{"$f":"IF(ROWS(C$5:C20)>$H$1,\"\",INDEX(name,SMALL(IF(ISNUMBER(SEARCH($F$1,عملية)),ROW(عملية)-ROW(data!$I$3)+1),ROWS(drow!C$5:C20))))","v":""},{"$f":"IF(ROWS(D$5:D20)>$H$1,\"\",INDEX(name,SMALL(IF(ISNUMBER(SEARCH($F$1,عملية)),ROW(عملية)-ROW(data!$I$3)+1),ROWS(drow!D$5:D20))))","v":""},{"$f":"IF(ROWS(E$5:E20)>$H$1,\"\",INDEX(name,SMALL(IF(ISNUMBER(SEARCH($F$1,عملية)),ROW(عملية)-ROW(data!$I$3)+1),ROWS(drow!E$5:E20))))","v":""},{"$f":"IF(ROWS(F$5:F20)>$H$1,\"\",INDEX(name,SMALL(IF(ISNUMBER(SEARCH($F$1,عملية)),ROW(عملية)-ROW(data!$I$3)+1),ROWS(drow!F$5:F20))))","v":""},{"$f":"IF(ROWS(G$5:G20)>$H$1,\"\",INDEX(name,SMALL(IF(ISNUMBER(SEARCH($F$1,عملية)),ROW(عملية)-ROW(data!$I$3)+1),ROWS(drow!G$5:G20))))","v":""},{"$f":"IF(ROWS(H$5:H20)>$H$1,\"\",INDEX(name,SMALL(IF(ISNUMBER(SEARCH($F$1,عملية)),ROW(عملية)-ROW(data!$I$3)+1),ROWS(drow!H$5:H20))))","v":""},{"$f":"IF(ROWS(I$5:I20)>$H$1,\"\",INDEX(name,SMALL(IF(ISNUMBER(SEARCH($F$1,عملية)),ROW(عملية)-ROW(data!$I$3)+1),ROWS(drow!I$5:I20))))","v":""},{"$f":"IF(ROWS(J$5:J20)>$H$1,\"\",INDEX(name,SMALL(IF(ISNUMBER(SEARCH($F$1,عملية)),ROW(عملية)-ROW(data!$I$3)+1),ROWS(drow!J$5:J20))))","v":""}]
[{"$f":"IF(ROWS(A$5:A21)>$H$1,\"\",INDEX(name,SMALL(IF(ISNUMBER(SEARCH($F$1,عملية)),ROW(عملية)-ROW(data!$I$3)+1),ROWS(drow!A$5:A21))))","v":""},{"$f":"IF(ROWS(B$5:B21)>$H$1,\"\",INDEX(name,SMALL(IF(ISNUMBER(SEARCH($F$1,عملية)),ROW(عملية)-ROW(data!$I$3)+1),ROWS(drow!B$5:B21))))","v":""},{"$f":"IF(ROWS(C$5:C21)>$H$1,\"\",INDEX(name,SMALL(IF(ISNUMBER(SEARCH($F$1,عملية)),ROW(عملية)-ROW(data!$I$3)+1),ROWS(drow!C$5:C21))))","v":""},{"$f":"IF(ROWS(D$5:D21)>$H$1,\"\",INDEX(name,SMALL(IF(ISNUMBER(SEARCH($F$1,عملية)),ROW(عملية)-ROW(data!$I$3)+1),ROWS(drow!D$5:D21))))","v":""},{"$f":"IF(ROWS(E$5:E21)>$H$1,\"\",INDEX(name,SMALL(IF(ISNUMBER(SEARCH($F$1,عملية)),ROW(عملية)-ROW(data!$I$3)+1),ROWS(drow!E$5:E21))))","v":""},{"$f":"IF(ROWS(F$5:F21)>$H$1,\"\",INDEX(name,SMALL(IF(ISNUMBER(SEARCH($F$1,عملية)),ROW(عملية)-ROW(data!$I$3)+1),ROWS(drow!F$5:F21))))","v":""},{"$f":"IF(ROWS(G$5:G21)>$H$1,\"\",INDEX(name,SMALL(IF(ISNUMBER(SEARCH($F$1,عملية)),ROW(عملية)-ROW(data!$I$3)+1),ROWS(drow!G$5:G21))))","v":""},{"$f":"IF(ROWS(H$5:H21)>$H$1,\"\",INDEX(name,SMALL(IF(ISNUMBER(SEARCH($F$1,عملية)),ROW(عملية)-ROW(data!$I$3)+1),ROWS(drow!H$5:H21))))","v":""},{"$f":"IF(ROWS(I$5:I21)>$H$1,\"\",INDEX(name,SMALL(IF(ISNUMBER(SEARCH($F$1,عملية)),ROW(عملية)-ROW(data!$I$3)+1),ROWS(drow!I$5:I21))))","v":""},{"$f":"IF(ROWS(J$5:J21)>$H$1,\"\",INDEX(name,SMALL(IF(ISNUMBER(SEARCH($F$1,عملية)),ROW(عملية)-ROW(data!$I$3)+1),ROWS(drow!J$5:J21))))","v":""}]
[{"$f":"IF(ROWS(A$5:A22)>$H$1,\"\",INDEX(name,SMALL(IF(ISNUMBER(SEARCH($F$1,عملية)),ROW(عملية)-ROW(data!$I$3)+1),ROWS(drow!A$5:A22))))","v":""},{"$f":"IF(ROWS(B$5:B22)>$H$1,\"\",INDEX(name,SMALL(IF(ISNUMBER(SEARCH($F$1,عملية)),ROW(عملية)-ROW(data!$I$3)+1),ROWS(drow!B$5:B22))))","v":""},{"$f":"IF(ROWS(C$5:C22)>$H$1,\"\",INDEX(name,SMALL(IF(ISNUMBER(SEARCH($F$1,عملية)),ROW(عملية)-ROW(data!$I$3)+1),ROWS(drow!C$5:C22))))","v":""},{"$f":"IF(ROWS(D$5:D22)>$H$1,\"\",INDEX(name,SMALL(IF(ISNUMBER(SEARCH($F$1,عملية)),ROW(عملية)-ROW(data!$I$3)+1),ROWS(drow!D$5:D22))))","v":""},{"$f":"IF(ROWS(E$5:E22)>$H$1,\"\",INDEX(name,SMALL(IF(ISNUMBER(SEARCH($F$1,عملية)),ROW(عملية)-ROW(data!$I$3)+1),ROWS(drow!E$5:E22))))","v":""},{"$f":"IF(ROWS(F$5:F22)>$H$1,\"\",INDEX(name,SMALL(IF(ISNUMBER(SEARCH($F$1,عملية)),ROW(عملية)-ROW(data!$I$3)+1),ROWS(drow!F$5:F22))))","v":""},{"$f":"IF(ROWS(G$5:G22)>$H$1,\"\",INDEX(name,SMALL(IF(ISNUMBER(SEARCH($F$1,عملية)),ROW(عملية)-ROW(data!$I$3)+1),ROWS(drow!G$5:G22))))","v":""},{"$f":"IF(ROWS(H$5:H22)>$H$1,\"\",INDEX(name,SMALL(IF(ISNUMBER(SEARCH($F$1,عملية)),ROW(عملية)-ROW(data!$I$3)+1),ROWS(drow!H$5:H22))))","v":""},{"$f":"IF(ROWS(I$5:I22)>$H$1,\"\",INDEX(name,SMALL(IF(ISNUMBER(SEARCH($F$1,عملية)),ROW(عملية)-ROW(data!$I$3)+1),ROWS(drow!I$5:I22))))","v":""},{"$f":"IF(ROWS(J$5:J22)>$H$1,\"\",INDEX(name,SMALL(IF(ISNUMBER(SEARCH($F$1,عملية)),ROW(عملية)-ROW(data!$I$3)+1),ROWS(drow!J$5:J22))))","v":""}]
[{"$f":"IF(ROWS(A$5:A23)>$H$1,\"\",INDEX(name,SMALL(IF(ISNUMBER(SEARCH($F$1,عملية)),ROW(عملية)-ROW(data!$I$3)+1),ROWS(drow!A$5:A23))))","v":""},{"$f":"IF(ROWS(B$5:B23)>$H$1,\"\",INDEX(name,SMALL(IF(ISNUMBER(SEARCH($F$1,عملية)),ROW(عملية)-ROW(data!$I$3)+1),ROWS(drow!B$5:B23))))","v":""},{"$f":"IF(ROWS(C$5:C23)>$H$1,\"\",INDEX(name,SMALL(IF(ISNUMBER(SEARCH($F$1,عملية)),ROW(عملية)-ROW(data!$I$3)+1),ROWS(drow!C$5:C23))))","v":""},{"$f":"IF(ROWS(D$5:D23)>$H$1,\"\",INDEX(name,SMALL(IF(ISNUMBER(SEARCH($F$1,عملية)),ROW(عملية)-ROW(data!$I$3)+1),ROWS(drow!D$5:D23))))","v":""},{"$f":"IF(ROWS(E$5:E23)>$H$1,\"\",INDEX(name,SMALL(IF(ISNUMBER(SEARCH($F$1,عملية)),ROW(عملية)-ROW(data!$I$3)+1),ROWS(drow!E$5:E23))))","v":""},{"$f":"IF(ROWS(F$5:F23)>$H$1,\"\",INDEX(name,SMALL(IF(ISNUMBER(SEARCH($F$1,عملية)),ROW(عملية)-ROW(data!$I$3)+1),ROWS(drow!F$5:F23))))","v":""},{"$f":"IF(ROWS(G$5:G23)>$H$1,\"\",INDEX(name,SMALL(IF(ISNUMBER(SEARCH($F$1,عملية)),ROW(عملية)-ROW(data!$I$3)+1),ROWS(drow!G$5:G23))))","v":""},{"$f":"IF(ROWS(H$5:H23)>$H$1,\"\",INDEX(name,SMALL(IF(ISNUMBER(SEARCH($F$1,عملية)),ROW(عملية)-ROW(data!$I$3)+1),ROWS(drow!H$5:H23))))","v":""},{"$f":"IF(ROWS(I$5:I23)>$H$1,\"\",INDEX(name,SMALL(IF(ISNUMBER(SEARCH($F$1,عملية)),ROW(عملية)-ROW(data!$I$3)+1),ROWS(drow!I$5:I23))))","v":""},{"$f":"IF(ROWS(J$5:J23)>$H$1,\"\",INDEX(name,SMALL(IF(ISNUMBER(SEARCH($F$1,عملية)),ROW(عملية)-ROW(data!$I$3)+1),ROWS(drow!J$5:J23))))","v":""}]
[{"$f":"IF(ROWS(A$5:A24)>$H$1,\"\",INDEX(name,SMALL(IF(ISNUMBER(SEARCH($F$1,عملية)),ROW(عملية)-ROW(data!$I$3)+1),ROWS(drow!A$5:A24))))","v":""},{"$f":"IF(ROWS(B$5:B24)>$H$1,\"\",INDEX(name,SMALL(IF(ISNUMBER(SEARCH($F$1,عملية)),ROW(عملية)-ROW(data!$I$3)+1),ROWS(drow!B$5:B24))))","v":""},{"$f":"IF(ROWS(C$5:C24)>$H$1,\"\",INDEX(name,SMALL(IF(ISNUMBER(SEARCH($F$1,عملية)),ROW(عملية)-ROW(data!$I$3)+1),ROWS(drow!C$5:C24))))","v":""},{"$f":"IF(ROWS(D$5:D24)>$H$1,\"\",INDEX(name,SMALL(IF(ISNUMBER(SEARCH($F$1,عملية)),ROW(عملية)-ROW(data!$I$3)+1),ROWS(drow!D$5:D24))))","v":""},{"$f":"IF(ROWS(E$5:E24)>$H$1,\"\",INDEX(name,SMALL(IF(ISNUMBER(SEARCH($F$1,عملية)),ROW(عملية)-ROW(data!$I$3)+1),ROWS(drow!E$5:E24))))","v":""},{"$f":"IF(ROWS(F$5:F24)>$H$1,\"\",INDEX(name,SMALL(IF(ISNUMBER(SEARCH($F$1,عملية)),ROW(عملية)-ROW(data!$I$3)+1),ROWS(drow!F$5:F24))))","v":""},{"$f":"IF(ROWS(G$5:G24)>$H$1,\"\",INDEX(name,SMALL(IF(ISNUMBER(SEARCH($F$1,عملية)),ROW(عملية)-ROW(data!$I$3)+1),ROWS(drow!G$5:G24))))","v":""},{"$f":"IF(ROWS(H$5:H24)>$H$1,\"\",INDEX(name,SMALL(IF(ISNUMBER(SEARCH($F$1,عملية)),ROW(عملية)-ROW(data!$I$3)+1),ROWS(drow!H$5:H24))))","v":""},{"$f":"IF(ROWS(I$5:I24)>$H$1,\"\",INDEX(name,SMALL(IF(ISNUMBER(SEARCH($F$1,عملية)),ROW(عملية)-ROW(data!$I$3)+1),ROWS(drow!I$5:I24))))","v":""},{"$f":"IF(ROWS(J$5:J24)>$H$1,\"\",INDEX(name,SMALL(IF(ISNUMBER(SEARCH($F$1,عملية)),ROW(عملية)-ROW(data!$I$3)+1),ROWS(drow!J$5:J24))))","v":""}]
[{"$f":"IF(ROWS(A$5:A25)>$H$1,\"\",INDEX(name,SMALL(IF(ISNUMBER(SEARCH($F$1,عملية)),ROW(عملية)-ROW(data!$I$3)+1),ROWS(drow!A$5:A25))))","v":""},{"$f":"IF(ROWS(B$5:B25)>$H$1,\"\",INDEX(name,SMALL(IF(ISNUMBER(SEARCH($F$1,عملية)),ROW(عملية)-ROW(data!$I$3)+1),ROWS(drow!B$5:B25))))","v":""},{"$f":"IF(ROWS(C$5:C25)>$H$1,\"\",INDEX(name,SMALL(IF(ISNUMBER(SEARCH($F$1,عملية)),ROW(عملية)-ROW(data!$I$3)+1),ROWS(drow!C$5:C25))))","v":""},{"$f":"IF(ROWS(D$5:D25)>$H$1,\"\",INDEX(name,SMALL(IF(ISNUMBER(SEARCH($F$1,عملية)),ROW(عملية)-ROW(data!$I$3)+1),ROWS(drow!D$5:D25))))","v":""},{"$f":"IF(ROWS(E$5:E25)>$H$1,\"\",INDEX(name,SMALL(IF(ISNUMBER(SEARCH($F$1,عملية)),ROW(عملية)-ROW(data!$I$3)+1),ROWS(drow!E$5:E25))))","v":""},{"$f":"IF(ROWS(F$5:F25)>$H$1,\"\",INDEX(name,SMALL(IF(ISNUMBER(SEARCH($F$1,عملية)),ROW(عملية)-ROW(data!$I$3)+1),ROWS(drow!F$5:F25))))","v":""},{"$f":"IF(ROWS(G$5:G25)>$H$1,\"\",INDEX(name,SMALL(IF(ISNUMBER(SEARCH($F$1,عملية)),ROW(عملية)-ROW(data!$I$3)+1),ROWS(drow!G$5:G25))))","v":""},{"$f":"IF(ROWS(H$5:H25)>$H$1,\"\",INDEX(name,SMALL(IF(ISNUMBER(SEARCH($F$1,عملية)),ROW(عملية)-ROW(data!$I$3)+1),ROWS(drow!H$5:H25))))","v":""},{"$f":"IF(ROWS(I$5:I25)>$H$1,\"\",INDEX(name,SMALL(IF(ISNUMBER(SEARCH($F$1,عملية)),ROW(عملية)-ROW(data!$I$3)+1),ROWS(drow!I$5:I25))))","v":""},{"$f":"IF(ROWS(J$5:J25)>$H$1,\"\",INDEX(name,SMALL(IF(ISNUMBER(SEARCH($F$1,عملية)),ROW(عملية)-ROW(data!$I$3)+1),ROWS(drow!J$5:J25))))","v":""}]
[{"$f":"IF(ROWS(A$5:A26)>$H$1,\"\",INDEX(name,SMALL(IF(ISNUMBER(SEARCH($F$1,عملية)),ROW(عملية)-ROW(data!$I$3)+1),ROWS(drow!A$5:A26))))","v":""},{"$f":"IF(ROWS(B$5:B26)>$H$1,\"\",INDEX(name,SMALL(IF(ISNUMBER(SEARCH($F$1,عملية)),ROW(عملية)-ROW(data!$I$3)+1),ROWS(drow!B$5:B26))))","v":""},{"$f":"IF(ROWS(C$5:C26)>$H$1,\"\",INDEX(name,SMALL(IF(ISNUMBER(SEARCH($F$1,عملية)),ROW(عملية)-ROW(data!$I$3)+1),ROWS(drow!C$5:C26))))","v":""},{"$f":"IF(ROWS(D$5:D26)>$H$1,\"\",INDEX(name,SMALL(IF(ISNUMBER(SEARCH($F$1,عملية)),ROW(عملية)-ROW(data!$I$3)+1),ROWS(drow!D$5:D26))))","v":""},{"$f":"IF(ROWS(E$5:E26)>$H$1,\"\",INDEX(name,SMALL(IF(ISNUMBER(SEARCH($F$1,عملية)),ROW(عملية)-ROW(data!$I$3)+1),ROWS(drow!E$5:E26))))","v":""},{"$f":"IF(ROWS(F$5:F26)>$H$1,\"\",INDEX(name,SMALL(IF(ISNUMBER(SEARCH($F$1,عملية)),ROW(عملية)-ROW(data!$I$3)+1),ROWS(drow!F$5:F26))))","v":""},{"$f":"IF(ROWS(G$5:G26)>$H$1,\"\",INDEX(name,SMALL(IF(ISNUMBER(SEARCH($F$1,عملية)),ROW(عملية)-ROW(data!$I$3)+1),ROWS(drow!G$5:G26))))","v":""},{"$f":"IF(ROWS(H$5:H26)>$H$1,\"\",INDEX(name,SMALL(IF(ISNUMBER(SEARCH($F$1,عملية)),ROW(عملية)-ROW(data!$I$3)+1),ROWS(drow!H$5:H26))))","v":""},{"$f":"IF(ROWS(I$5:I26)>$H$1,\"\",INDEX(name,SMALL(IF(ISNUMBER(SEARCH($F$1,عملية)),ROW(عملية)-ROW(data!$I$3)+1),ROWS(drow!I$5:I26))))","v":""},{"$f":"IF(ROWS(J$5:J26)>$H$1,\"\",INDEX(name,SMALL(IF(ISNUMBER(SEARCH($F$1,عملية)),ROW(عملية)-ROW(data!$I$3)+1),ROWS(drow!J$5:J26))))","v":""}]
[{"$f":"IF(ROWS(A$5:A27)>$H$1,\"\",INDEX(name,SMALL(IF(ISNUMBER(SEARCH($F$1,عملية)),ROW(عملية)-ROW(data!$I$3)+1),ROWS(drow!A$5:A27))))","v":""},{"$f":"IF(ROWS(B$5:B27)>$H$1,\"\",INDEX(name,SMALL(IF(ISNUMBER(SEARCH($F$1,عملية)),ROW(عملية)-ROW(data!$I$3)+1),ROWS(drow!B$5:B27))))","v":""},{"$f":"IF(ROWS(C$5:C27)>$H$1,\"\",INDEX(name,SMALL(IF(ISNUMBER(SEARCH($F$1,عملية)),ROW(عملية)-ROW(data!$I$3)+1),ROWS(drow!C$5:C27))))","v":""},{"$f":"IF(ROWS(D$5:D27)>$H$1,\"\",INDEX(name,SMALL(IF(ISNUMBER(SEARCH($F$1,عملية)),ROW(عملية)-ROW(data!$I$3)+1),ROWS(drow!D$5:D27))))","v":""},{"$f":"IF(ROWS(E$5:E27)>$H$1,\"\",INDEX(name,SMALL(IF(ISNUMBER(SEARCH($F$1,عملية)),ROW(عملية)-ROW(data!$I$3)+1),ROWS(drow!E$5:E27))))","v":""},{"$f":"IF(ROWS(F$5:F27)>$H$1,\"\",INDEX(name,SMALL(IF(ISNUMBER(SEARCH($F$1,عملية)),ROW(عملية)-ROW(data!$I$3)+1),ROWS(drow!F$5:F27))))","v":""},{"$f":"IF(ROWS(G$5:G27)>$H$1,\"\",INDEX(name,SMALL(IF(ISNUMBER(SEARCH($F$1,عملية)),ROW(عملية)-ROW(data!$I$3)+1),ROWS(drow!G$5:G27))))","v":""},{"$f":"IF(ROWS(H$5:H27)>$H$1,\"\",INDEX(name,SMALL(IF(ISNUMBER(SEARCH($F$1,عملية)),ROW(عملية)-ROW(data!$I$3)+1),ROWS(drow!H$5:H27))))","v":""},{"$f":"IF(ROWS(I$5:I27)>$H$1,\"\",INDEX(name,SMALL(IF(ISNUMBER(SEARCH($F$1,عملية)),ROW(عملية)-ROW(data!$I$3)+1),ROWS(drow!I$5:I27))))","v":""},{"$f":"IF(ROWS(J$5:J27)>$H$1,\"\",INDEX(name,SMALL(IF(ISNUMBER(SEARCH($F$1,عملية)),ROW(عملية)-ROW(data!$I$3)+1),ROWS(drow!J$5:J27))))","v":""}]
[{"$f":"IF(ROWS(A$5:A28)>$H$1,\"\",INDEX(name,SMALL(IF(ISNUMBER(SEARCH($F$1,عملية)),ROW(عملية)-ROW(data!$I$3)+1),ROWS(drow!A$5:A28))))","v":""},{"$f":"IF(ROWS(B$5:B28)>$H$1,\"\",INDEX(name,SMALL(IF(ISNUMBER(SEARCH($F$1,عملية)),ROW(عملية)-ROW(data!$I$3)+1),ROWS(drow!B$5:B28))))","v":""},{"$f":"IF(ROWS(C$5:C28)>$H$1,\"\",INDEX(name,SMALL(IF(ISNUMBER(SEARCH($F$1,عملية)),ROW(عملية)-ROW(data!$I$3)+1),ROWS(drow!C$5:C28))))","v":""},{"$f":"IF(ROWS(D$5:D28)>$H$1,\"\",INDEX(name,SMALL(IF(ISNUMBER(SEARCH($F$1,عملية)),ROW(عملية)-ROW(data!$I$3)+1),ROWS(drow!D$5:D28))))","v":""},{"$f":"IF(ROWS(E$5:E28)>$H$1,\"\",INDEX(name,SMALL(IF(ISNUMBER(SEARCH($F$1,عملية)),ROW(عملية)-ROW(data!$I$3)+1),ROWS(drow!E$5:E28))))","v":""},{"$f":"IF(ROWS(F$5:F28)>$H$1,\"\",INDEX(name,SMALL(IF(ISNUMBER(SEARCH($F$1,عملية)),ROW(عملية)-ROW(data!$I$3)+1),ROWS(drow!F$5:F28))))","v":""},{"$f":"IF(ROWS(G$5:G28)>$H$1,\"\",INDEX(name,SMALL(IF(ISNUMBER(SEARCH($F$1,عملية)),ROW(عملية)-ROW(data!$I$3)+1),ROWS(drow!G$5:G28))))","v":""},{"$f":"IF(ROWS(H$5:H28)>$H$1,\"\",INDEX(name,SMALL(IF(ISNUMBER(SEARCH($F$1,عملية)),ROW(عملية)-ROW(data!$I$3)+1),ROWS(drow!H$5:H28))))","v":""},{"$f":"IF(ROWS(I$5:I28)>$H$1,\"\",INDEX(name,SMALL(IF(ISNUMBER(SEARCH($F$1,عملية)),ROW(عملية)-ROW(data!$I$3)+1),ROWS(drow!I$5:I28))))","v":""},{"$f":"IF(ROWS(J$5:J28)>$H$1,\"\",INDEX(name,SMALL(IF(ISNUMBER(SEARCH($F$1,عملية)),ROW(عملية)-ROW(data!$I$3)+1),ROWS(drow!J$5:J28))))","v":""}]
[{"$f":"IF(ROWS(A$5:A29)>$H$1,\"\",INDEX(name,SMALL(IF(ISNUMBER(SEARCH($F$1,عملية)),ROW(عملية)-ROW(data!$I$3)+1),ROWS(drow!A$5:A29))))","v":""},{"$f":"IF(ROWS(B$5:B29)>$H$1,\"\",INDEX(name,SMALL(IF(ISNUMBER(SEARCH($F$1,عملية)),ROW(عملية)-ROW(data!$I$3)+1),ROWS(drow!B$5:B29))))","v":""},{"$f":"IF(ROWS(C$5:C29)>$H$1,\"\",INDEX(name,SMALL(IF(ISNUMBER(SEARCH($F$1,عملية)),ROW(عملية)-ROW(data!$I$3)+1),ROWS(drow!C$5:C29))))","v":""},{"$f":"IF(ROWS(D$5:D29)>$H$1,\"\",INDEX(name,SMALL(IF(ISNUMBER(SEARCH($F$1,عملية)),ROW(عملية)-ROW(data!$I$3)+1),ROWS(drow!D$5:D29))))","v":""},{"$f":"IF(ROWS(E$5:E29)>$H$1,\"\",INDEX(name,SMALL(IF(ISNUMBER(SEARCH($F$1,عملية)),ROW(عملية)-ROW(data!$I$3)+1),ROWS(drow!E$5:E29))))","v":""},{"$f":"IF(ROWS(F$5:F29)>$H$1,\"\",INDEX(name,SMALL(IF(ISNUMBER(SEARCH($F$1,عملية)),ROW(عملية)-ROW(data!$I$3)+1),ROWS(drow!F$5:F29))))","v":""},{"$f":"IF(ROWS(G$5:G29)>$H$1,\"\",INDEX(name,SMALL(IF(ISNUMBER(SEARCH($F$1,عملية)),ROW(عملية)-ROW(data!$I$3)+1),ROWS(drow!G$5:G29))))","v":""},{"$f":"IF(ROWS(H$5:H29)>$H$1,\"\",INDEX(name,SMALL(IF(ISNUMBER(SEARCH($F$1,عملية)),ROW(عملية)-ROW(data!$I$3)+1),ROWS(drow!H$5:H29))))","v":""},{"$f":"IF(ROWS(I$5:I29)>$H$1,\"\",INDEX(name,SMALL(IF(ISNUMBER(SEARCH($F$1,عملية)),ROW(عملية)-ROW(data!$I$3)+1),ROWS(drow!I$5:I29))))","v":""},{"$f":"IF(ROWS(J$5:J29)>$H$1,\"\",INDEX(name,SMALL(IF(ISNUMBER(SEARCH($F$1,عملية)),ROW(عملية)-ROW(data!$I$3)+1),ROWS(drow!J$5:J29))))","v":""}]
[{"$f":"IF(ROWS(A$5:A30)>$H$1,\"\",INDEX(name,SMALL(IF(ISNUMBER(SEARCH($F$1,عملية)),ROW(عملية)-ROW(data!$I$3)+1),ROWS(drow!A$5:A30))))","v":""},{"$f":"IF(ROWS(B$5:B30)>$H$1,\"\",INDEX(name,SMALL(IF(ISNUMBER(SEARCH($F$1,عملية)),ROW(عملية)-ROW(data!$I$3)+1),ROWS(drow!B$5:B30))))","v":""},{"$f":"IF(ROWS(C$5:C30)>$H$1,\"\",INDEX(name,SMALL(IF(ISNUMBER(SEARCH($F$1,عملية)),ROW(عملية)-ROW(data!$I$3)+1),ROWS(drow!C$5:C30))))","v":""},{"$f":"IF(ROWS(D$5:D30)>$H$1,\"\",INDEX(name,SMALL(IF(ISNUMBER(SEARCH($F$1,عملية)),ROW(عملية)-ROW(data!$I$3)+1),ROWS(drow!D$5:D30))))","v":""},{"$f":"IF(ROWS(E$5:E30)>$H$1,\"\",INDEX(name,SMALL(IF(ISNUMBER(SEARCH($F$1,عملية)),ROW(عملية)-ROW(data!$I$3)+1),ROWS(drow!E$5:E30))))","v":""},{"$f":"IF(ROWS(F$5:F30)>$H$1,\"\",INDEX(name,SMALL(IF(ISNUMBER(SEARCH($F$1,عملية)),ROW(عملية)-ROW(data!$I$3)+1),ROWS(drow!F$5:F30))))","v":""},{"$f":"IF(ROWS(G$5:G30)>$H$1,\"\",INDEX(name,SMALL(IF(ISNUMBER(SEARCH($F$1,عملية)),ROW(عملية)-ROW(data!$I$3)+1),ROWS(drow!G$5:G30))))","v":""},{"$f":"IF(ROWS(H$5:H30)>$H$1,\"\",INDEX(name,SMALL(IF(ISNUMBER(SEARCH($F$1,عملية)),ROW(عملية)-ROW(data!$I$3)+1),ROWS(drow!H$5:H30))))","v":""},{"$f":"IF(ROWS(I$5:I30)>$H$1,\"\",INDEX(name,SMALL(IF(ISNUMBER(SEARCH($F$1,عملية)),ROW(عملية)-ROW(data!$I$3)+1),ROWS(drow!I$5:I30))))","v":""},{"$f":"IF(ROWS(J$5:J30)>$H$1,\"\",INDEX(name,SMALL(IF(ISNUMBER(SEARCH($F$1,عملية)),ROW(عملية)-ROW(data!$I$3)+1),ROWS(drow!J$5:J30))))","v":""}]
[{"$f":"IF(ROWS(A$5:A31)>$H$1,\"\",INDEX(name,SMALL(IF(ISNUMBER(SEARCH($F$1,عملية)),ROW(عملية)-ROW(data!$I$3)+1),ROWS(drow!A$5:A31))))","v":""},{"$f":"IF(ROWS(B$5:B31)>$H$1,\"\",INDEX(name,SMALL(IF(ISNUMBER(SEARCH($F$1,عملية)),ROW(عملية)-ROW(data!$I$3)+1),ROWS(drow!B$5:B31))))","v":""},{"$f":"IF(ROWS(C$5:C31)>$H$1,\"\",INDEX(name,SMALL(IF(ISNUMBER(SEARCH($F$1,عملية)),ROW(عملية)-ROW(data!$I$3)+1),ROWS(drow!C$5:C31))))","v":""},{"$f":"IF(ROWS(D$5:D31)>$H$1,\"\",INDEX(name,SMALL(IF(ISNUMBER(SEARCH($F$1,عملية)),ROW(عملية)-ROW(data!$I$3)+1),ROWS(drow!D$5:D31))))","v":""},{"$f":"IF(ROWS(E$5:E31)>$H$1,\"\",INDEX(name,SMALL(IF(ISNUMBER(SEARCH($F$1,عملية)),ROW(عملية)-ROW(data!$I$3)+1),ROWS(drow!E$5:E31))))","v":""},{"$f":"IF(ROWS(F$5:F31)>$H$1,\"\",INDEX(name,SMALL(IF(ISNUMBER(SEARCH($F$1,عملية)),ROW(عملية)-ROW(data!$I$3)+1),ROWS(drow!F$5:F31))))","v":""},{"$f":"IF(ROWS(G$5:G31)>$H$1,\"\",INDEX(name,SMALL(IF(ISNUMBER(SEARCH($F$1,عملية)),ROW(عملية)-ROW(data!$I$3)+1),ROWS(drow!G$5:G31))))","v":""},{"$f":"IF(ROWS(H$5:H31)>$H$1,\"\",INDEX(name,SMALL(IF(ISNUMBER(SEARCH($F$1,عملية)),ROW(عملية)-ROW(data!$I$3)+1),ROWS(drow!H$5:H31))))","v":""},{"$f":"IF(ROWS(I$5:I31)>$H$1,\"\",INDEX(name,SMALL(IF(ISNUMBER(SEARCH($F$1,عملية)),ROW(عملية)-ROW(data!$I$3)+1),ROWS(drow!I$5:I31))))","v":""},{"$f":"IF(ROWS(J$5:J31)>$H$1,\"\",INDEX(name,SMALL(IF(ISNUMBER(SEARCH($F$1,عملية)),ROW(عملية)-ROW(data!$I$3)+1),ROWS(drow!J$5:J31))))","v":""}]
[{"$f":"IF(ROWS(A$5:A32)>$H$1,\"\",INDEX(name,SMALL(IF(ISNUMBER(SEARCH($F$1,عملية)),ROW(عملية)-ROW(data!$I$3)+1),ROWS(drow!A$5:A32))))","v":""},{"$f":"IF(ROWS(B$5:B32)>$H$1,\"\",INDEX(name,SMALL(IF(ISNUMBER(SEARCH($F$1,عملية)),ROW(عملية)-ROW(data!$I$3)+1),ROWS(drow!B$5:B32))))","v":""},{"$f":"IF(ROWS(C$5:C32)>$H$1,\"\",INDEX(name,SMALL(IF(ISNUMBER(SEARCH($F$1,عملية)),ROW(عملية)-ROW(data!$I$3)+1),ROWS(drow!C$5:C32))))","v":""},{"$f":"IF(ROWS(D$5:D32)>$H$1,\"\",INDEX(name,SMALL(IF(ISNUMBER(SEARCH($F$1,عملية)),ROW(عملية)-ROW(data!$I$3)+1),ROWS(drow!D$5:D32))))","v":""},{"$f":"IF(ROWS(E$5:E32)>$H$1,\"\",INDEX(name,SMALL(IF(ISNUMBER(SEARCH($F$1,عملية)),ROW(عملية)-ROW(data!$I$3)+1),ROWS(drow!E$5:E32))))","v":""},{"$f":"IF(ROWS(F$5:F32)>$H$1,\"\",INDEX(name,SMALL(IF(ISNUMBER(SEARCH($F$1,عملية)),ROW(عملية)-ROW(data!$I$3)+1),ROWS(drow!F$5:F32))))","v":""},{"$f":"IF(ROWS(G$5:G32)>$H$1,\"\",INDEX(name,SMALL(IF(ISNUMBER(SEARCH($F$1,عملية)),ROW(عملية)-ROW(data!$I$3)+1),ROWS(drow!G$5:G32))))","v":""},{"$f":"IF(ROWS(H$5:H32)>$H$1,\"\",INDEX(name,SMALL(IF(ISNUMBER(SEARCH($F$1,عملية)),ROW(عملية)-ROW(data!$I$3)+1),ROWS(drow!H$5:H32))))","v":""},{"$f":"IF(ROWS(I$5:I32)>$H$1,\"\",INDEX(name,SMALL(IF(ISNUMBER(SEARCH($F$1,عملية)),ROW(عملية)-ROW(data!$I$3)+1),ROWS(drow!I$5:I32))))","v":""},{"$f":"IF(ROWS(J$5:J32)>$H$1,\"\",INDEX(name,SMALL(IF(ISNUMBER(SEARCH($F$1,عملية)),ROW(عملية)-ROW(data!$I$3)+1),ROWS(drow!J$5:J32))))","v":""}]
[{"$f":"IF(ROWS(A$5:A33)>$H$1,\"\",INDEX(name,SMALL(IF(ISNUMBER(SEARCH($F$1,عملية)),ROW(عملية)-ROW(data!$I$3)+1),ROWS(drow!A$5:A33))))","v":""},{"$f":"IF(ROWS(B$5:B33)>$H$1,\"\",INDEX(name,SMALL(IF(ISNUMBER(SEARCH($F$1,عملية)),ROW(عملية)-ROW(data!$I$3)+1),ROWS(drow!B$5:B33))))","v":""},{"$f":"IF(ROWS(C$5:C33)>$H$1,\"\",INDEX(name,SMALL(IF(ISNUMBER(SEARCH($F$1,عملية)),ROW(عملية)-ROW(data!$I$3)+1),ROWS(drow!C$5:C33))))","v":""},{"$f":"IF(ROWS(D$5:D33)>$H$1,\"\",INDEX(name,SMALL(IF(ISNUMBER(SEARCH($F$1,عملية)),ROW(عملية)-ROW(data!$I$3)+1),ROWS(drow!D$5:D33))))","v":""},{"$f":"IF(ROWS(E$5:E33)>$H$1,\"\",INDEX(name,SMALL(IF(ISNUMBER(SEARCH($F$1,عملية)),ROW(عملية)-ROW(data!$I$3)+1),ROWS(drow!E$5:E33))))","v":""},{"$f":"IF(ROWS(F$5:F33)>$H$1,\"\",INDEX(name,SMALL(IF(ISNUMBER(SEARCH($F$1,عملية)),ROW(عملية)-ROW(data!$I$3)+1),ROWS(drow!F$5:F33))))","v":""},{"$f":"IF(ROWS(G$5:G33)>$H$1,\"\",INDEX(name,SMALL(IF(ISNUMBER(SEARCH($F$1,عملية)),ROW(عملية)-ROW(data!$I$3)+1),ROWS(drow!G$5:G33))))","v":""},{"$f":"IF(ROWS(H$5:H33)>$H$1,\"\",INDEX(name,SMALL(IF(ISNUMBER(SEARCH($F$1,عملية)),ROW(عملية)-ROW(data!$I$3)+1),ROWS(drow!H$5:H33))))","v":""},{"$f":"IF(ROWS(I$5:I33)>$H$1,\"\",INDEX(name,SMALL(IF(ISNUMBER(SEARCH($F$1,عملية)),ROW(عملية)-ROW(data!$I$3)+1),ROWS(drow!I$5:I33))))","v":""},{"$f":"IF(ROWS(J$5:J33)>$H$1,\"\",INDEX(name,SMALL(IF(ISNUMBER(SEARCH($F$1,عملية)),ROW(عملية)-ROW(data!$I$3)+1),ROWS(drow!J$5:J33))))","v":""}]
[{"$f":"IF(ROWS(A$5:A34)>$H$1,\"\",INDEX(name,SMALL(IF(ISNUMBER(SEARCH($F$1,عملية)),ROW(عملية)-ROW(data!$I$3)+1),ROWS(drow!A$5:A34))))","v":""},{"$f":"IF(ROWS(B$5:B34)>$H$1,\"\",INDEX(name,SMALL(IF(ISNUMBER(SEARCH($F$1,عملية)),ROW(عملية)-ROW(data!$I$3)+1),ROWS(drow!B$5:B34))))","v":""},{"$f":"IF(ROWS(C$5:C34)>$H$1,\"\",INDEX(name,SMALL(IF(ISNUMBER(SEARCH($F$1,عملية)),ROW(عملية)-ROW(data!$I$3)+1),ROWS(drow!C$5:C34))))","v":""},{"$f":"IF(ROWS(D$5:D34)>$H$1,\"\",INDEX(name,SMALL(IF(ISNUMBER(SEARCH($F$1,عملية)),ROW(عملية)-ROW(data!$I$3)+1),ROWS(drow!D$5:D34))))","v":""},{"$f":"IF(ROWS(E$5:E34)>$H$1,\"\",INDEX(name,SMALL(IF(ISNUMBER(SEARCH($F$1,عملية)),ROW(عملية)-ROW(data!$I$3)+1),ROWS(drow!E$5:E34))))","v":""},{"$f":"IF(ROWS(F$5:F34)>$H$1,\"\",INDEX(name,SMALL(IF(ISNUMBER(SEARCH($F$1,عملية)),ROW(عملية)-ROW(data!$I$3)+1),ROWS(drow!F$5:F34))))","v":""},{"$f":"IF(ROWS(G$5:G34)>$H$1,\"\",INDEX(name,SMALL(IF(ISNUMBER(SEARCH($F$1,عملية)),ROW(عملية)-ROW(data!$I$3)+1),ROWS(drow!G$5:G34))))","v":""},{"$f":"IF(ROWS(H$5:H34)>$H$1,\"\",INDEX(name,SMALL(IF(ISNUMBER(SEARCH($F$1,عملية)),ROW(عملية)-ROW(data!$I$3)+1),ROWS(drow!H$5:H34))))","v":""},{"$f":"IF(ROWS(I$5:I34)>$H$1,\"\",INDEX(name,SMALL(IF(ISNUMBER(SEARCH($F$1,عملية)),ROW(عملية)-ROW(data!$I$3)+1),ROWS(drow!I$5:I34))))","v":""},{"$f":"IF(ROWS(J$5:J34)>$H$1,\"\",INDEX(name,SMALL(IF(ISNUMBER(SEARCH($F$1,عملية)),ROW(عملية)-ROW(data!$I$3)+1),ROWS(drow!J$5:J34))))","v":""}]
[{"$f":"IF(ROWS(A$5:A35)>$H$1,\"\",INDEX(name,SMALL(IF(ISNUMBER(SEARCH($F$1,عملية)),ROW(عملية)-ROW(data!$I$3)+1),ROWS(drow!A$5:A35))))","v":""},{"$f":"IF(ROWS(B$5:B35)>$H$1,\"\",INDEX(name,SMALL(IF(ISNUMBER(SEARCH($F$1,عملية)),ROW(عملية)-ROW(data!$I$3)+1),ROWS(drow!B$5:B35))))","v":""},{"$f":"IF(ROWS(C$5:C35)>$H$1,\"\",INDEX(name,SMALL(IF(ISNUMBER(SEARCH($F$1,عملية)),ROW(عملية)-ROW(data!$I$3)+1),ROWS(drow!C$5:C35))))","v":""},{"$f":"IF(ROWS(D$5:D35)>$H$1,\"\",INDEX(name,SMALL(IF(ISNUMBER(SEARCH($F$1,عملية)),ROW(عملية)-ROW(data!$I$3)+1),ROWS(drow!D$5:D35))))","v":""},{"$f":"IF(ROWS(E$5:E35)>$H$1,\"\",INDEX(name,SMALL(IF(ISNUMBER(SEARCH($F$1,عملية)),ROW(عملية)-ROW(data!$I$3)+1),ROWS(drow!E$5:E35))))","v":""},{"$f":"IF(ROWS(F$5:F35)>$H$1,\"\",INDEX(name,SMALL(IF(ISNUMBER(SEARCH($F$1,عملية)),ROW(عملية)-ROW(data!$I$3)+1),ROWS(drow!F$5:F35))))","v":""},{"$f":"IF(ROWS(G$5:G35)>$H$1,\"\",INDEX(name,SMALL(IF(ISNUMBER(SEARCH($F$1,عملية)),ROW(عملية)-ROW(data!$I$3)+1),ROWS(drow!G$5:G35))))","v":""},{"$f":"IF(ROWS(H$5:H35)>$H$1,\"\",INDEX(name,SMALL(IF(ISNUMBER(SEARCH($F$1,عملية)),ROW(عملية)-ROW(data!$I$3)+1),ROWS(drow!H$5:H35))))","v":""},{"$f":"IF(ROWS(I$5:I35)>$H$1,\"\",INDEX(name,SMALL(IF(ISNUMBER(SEARCH($F$1,عملية)),ROW(عملية)-ROW(data!$I$3)+1),ROWS(drow!I$5:I35))))","v":""},{"$f":"IF(ROWS(J$5:J35)>$H$1,\"\",INDEX(name,SMALL(IF(ISNUMBER(SEARCH($F$1,عملية)),ROW(عملية)-ROW(data!$I$3)+1),ROWS(drow!J$5:J35))))","v":""}]
[{"$f":"IF(ROWS(A$5:A36)>$H$1,\"\",INDEX(name,SMALL(IF(ISNUMBER(SEARCH($F$1,عملية)),ROW(عملية)-ROW(data!$I$3)+1),ROWS(drow!A$5:A36))))","v":""},{"$f":"IF(ROWS(B$5:B36)>$H$1,\"\",INDEX(name,SMALL(IF(ISNUMBER(SEARCH($F$1,عملية)),ROW(عملية)-ROW(data!$I$3)+1),ROWS(drow!B$5:B36))))","v":""},{"$f":"IF(ROWS(C$5:C36)>$H$1,\"\",INDEX(name,SMALL(IF(ISNUMBER(SEARCH($F$1,عملية)),ROW(عملية)-ROW(data!$I$3)+1),ROWS(drow!C$5:C36))))","v":""},{"$f":"IF(ROWS(D$5:D36)>$H$1,\"\",INDEX(name,SMALL(IF(ISNUMBER(SEARCH($F$1,عملية)),ROW(عملية)-ROW(data!$I$3)+1),ROWS(drow!D$5:D36))))","v":""},{"$f":"IF(ROWS(E$5:E36)>$H$1,\"\",INDEX(name,SMALL(IF(ISNUMBER(SEARCH($F$1,عملية)),ROW(عملية)-ROW(data!$I$3)+1),ROWS(drow!E$5:E36))))","v":""},{"$f":"IF(ROWS(F$5:F36)>$H$1,\"\",INDEX(name,SMALL(IF(ISNUMBER(SEARCH($F$1,عملية)),ROW(عملية)-ROW(data!$I$3)+1),ROWS(drow!F$5:F36))))","v":""},{"$f":"IF(ROWS(G$5:G36)>$H$1,\"\",INDEX(name,SMALL(IF(ISNUMBER(SEARCH($F$1,عملية)),ROW(عملية)-ROW(data!$I$3)+1),ROWS(drow!G$5:G36))))","v":""},{"$f":"IF(ROWS(H$5:H36)>$H$1,\"\",INDEX(name,SMALL(IF(ISNUMBER(SEARCH($F$1,عملية)),ROW(عملية)-ROW(data!$I$3)+1),ROWS(drow!H$5:H36))))","v":""},{"$f":"IF(ROWS(I$5:I36)>$H$1,\"\",INDEX(name,SMALL(IF(ISNUMBER(SEARCH($F$1,عملية)),ROW(عملية)-ROW(data!$I$3)+1),ROWS(drow!I$5:I36))))","v":""},{"$f":"IF(ROWS(J$5:J36)>$H$1,\"\",INDEX(name,SMALL(IF(ISNUMBER(SEARCH($F$1,عملية)),ROW(عملية)-ROW(data!$I$3)+1),ROWS(drow!J$5:J36))))","v":""}]
[{"$f":"IF(ROWS(A$5:A37)>$H$1,\"\",INDEX(name,SMALL(IF(ISNUMBER(SEARCH($F$1,عملية)),ROW(عملية)-ROW(data!$I$3)+1),ROWS(drow!A$5:A37))))","v":""},{"$f":"IF(ROWS(B$5:B37)>$H$1,\"\",INDEX(name,SMALL(IF(ISNUMBER(SEARCH($F$1,عملية)),ROW(عملية)-ROW(data!$I$3)+1),ROWS(drow!B$5:B37))))","v":""},{"$f":"IF(ROWS(C$5:C37)>$H$1,\"\",INDEX(name,SMALL(IF(ISNUMBER(SEARCH($F$1,عملية)),ROW(عملية)-ROW(data!$I$3)+1),ROWS(drow!C$5:C37))))","v":""},{"$f":"IF(ROWS(D$5:D37)>$H$1,\"\",INDEX(name,SMALL(IF(ISNUMBER(SEARCH($F$1,عملية)),ROW(عملية)-ROW(data!$I$3)+1),ROWS(drow!D$5:D37))))","v":""},{"$f":"IF(ROWS(E$5:E37)>$H$1,\"\",INDEX(name,SMALL(IF(ISNUMBER(SEARCH($F$1,عملية)),ROW(عملية)-ROW(data!$I$3)+1),ROWS(drow!E$5:E37))))","v":""},{"$f":"IF(ROWS(F$5:F37)>$H$1,\"\",INDEX(name,SMALL(IF(ISNUMBER(SEARCH($F$1,عملية)),ROW(عملية)-ROW(data!$I$3)+1),ROWS(drow!F$5:F37))))","v":""},{"$f":"IF(ROWS(G$5:G37)>$H$1,\"\",INDEX(name,SMALL(IF(ISNUMBER(SEARCH($F$1,عملية)),ROW(عملية)-ROW(data!$I$3)+1),ROWS(drow!G$5:G37))))","v":""},{"$f":"IF(ROWS(H$5:H37)>$H$1,\"\",INDEX(name,SMALL(IF(ISNUMBER(SEARCH($F$1,عملية)),ROW(عملية)-ROW(data!$I$3)+1),ROWS(drow!H$5:H37))))","v":""},{"$f":"IF(ROWS(I$5:I37)>$H$1,\"\",INDEX(name,SMALL(IF(ISNUMBER(SEARCH($F$1,عملية)),ROW(عملية)-ROW(data!$I$3)+1),ROWS(drow!I$5:I37))))","v":""},{"$f":"IF(ROWS(J$5:J37)>$H$1,\"\",INDEX(name,SMALL(IF(ISNUMBER(SEARCH($F$1,عملية)),ROW(عملية)-ROW(data!$I$3)+1),ROWS(drow!J$5:J37))))","v":""}]
[{"$f":"IF(ROWS(A$5:A38)>$H$1,\"\",INDEX(name,SMALL(IF(ISNUMBER(SEARCH($F$1,عملية)),ROW(عملية)-ROW(data!$I$3)+1),ROWS(drow!A$5:A38))))","v":""},{"$f":"IF(ROWS(B$5:B38)>$H$1,\"\",INDEX(name,SMALL(IF(ISNUMBER(SEARCH($F$1,عملية)),ROW(عملية)-ROW(data!$I$3)+1),ROWS(drow!B$5:B38))))","v":""},{"$f":"IF(ROWS(C$5:C38)>$H$1,\"\",INDEX(name,SMALL(IF(ISNUMBER(SEARCH($F$1,عملية)),ROW(عملية)-ROW(data!$I$3)+1),ROWS(drow!C$5:C38))))","v":""},{"$f":"IF(ROWS(D$5:D38)>$H$1,\"\",INDEX(name,SMALL(IF(ISNUMBER(SEARCH($F$1,عملية)),ROW(عملية)-ROW(data!$I$3)+1),ROWS(drow!D$5:D38))))","v":""},{"$f":"IF(ROWS(E$5:E38)>$H$1,\"\",INDEX(name,SMALL(IF(ISNUMBER(SEARCH($F$1,عملية)),ROW(عملية)-ROW(data!$I$3)+1),ROWS(drow!E$5:E38))))","v":""},{"$f":"IF(ROWS(F$5:F38)>$H$1,\"\",INDEX(name,SMALL(IF(ISNUMBER(SEARCH($F$1,عملية)),ROW(عملية)-ROW(data!$I$3)+1),ROWS(drow!F$5:F38))))","v":""},{"$f":"IF(ROWS(G$5:G38)>$H$1,\"\",INDEX(name,SMALL(IF(ISNUMBER(SEARCH($F$1,عملية)),ROW(عملية)-ROW(data!$I$3)+1),ROWS(drow!G$5:G38))))","v":""},{"$f":"IF(ROWS(H$5:H38)>$H$1,\"\",INDEX(name,SMALL(IF(ISNUMBER(SEARCH($F$1,عملية)),ROW(عملية)-ROW(data!$I$3)+1),ROWS(drow!H$5:H38))))","v":""},{"$f":"IF(ROWS(I$5:I38)>$H$1,\"\",INDEX(name,SMALL(IF(ISNUMBER(SEARCH($F$1,عملية)),ROW(عملية)-ROW(data!$I$3)+1),ROWS(drow!I$5:I38))))","v":""},{"$f":"IF(ROWS(J$5:J38)>$H$1,\"\",INDEX(name,SMALL(IF(ISNUMBER(SEARCH($F$1,عملية)),ROW(عملية)-ROW(data!$I$3)+1),ROWS(drow!J$5:J38))))","v":""}]
[{"$f":"IF(ROWS(A$5:A39)>$H$1,\"\",INDEX(name,SMALL(IF(ISNUMBER(SEARCH($F$1,عملية)),ROW(عملية)-ROW(data!$I$3)+1),ROWS(drow!A$5:A39))))","v":""},{"$f":"IF(ROWS(B$5:B39)>$H$1,\"\",INDEX(name,SMALL(IF(ISNUMBER(SEARCH($F$1,عملية)),ROW(عملية)-ROW(data!$I$3)+1),ROWS(drow!B$5:B39))))","v":""},{"$f":"IF(ROWS(C$5:C39)>$H$1,\"\",INDEX(name,SMALL(IF(ISNUMBER(SEARCH($F$1,عملية)),ROW(عملية)-ROW(data!$I$3)+1),ROWS(drow!C$5:C39))))","v":""},{"$f":"IF(ROWS(D$5:D39)>$H$1,\"\",INDEX(name,SMALL(IF(ISNUMBER(SEARCH($F$1,عملية)),ROW(عملية)-ROW(data!$I$3)+1),ROWS(drow!D$5:D39))))","v":""},{"$f":"IF(ROWS(E$5:E39)>$H$1,\"\",INDEX(name,SMALL(IF(ISNUMBER(SEARCH($F$1,عملية)),ROW(عملية)-ROW(data!$I$3)+1),ROWS(drow!E$5:E39))))","v":""},{"$f":"IF(ROWS(F$5:F39)>$H$1,\"\",INDEX(name,SMALL(IF(ISNUMBER(SEARCH($F$1,عملية)),ROW(عملية)-ROW(data!$I$3)+1),ROWS(drow!F$5:F39))))","v":""},{"$f":"IF(ROWS(G$5:G39)>$H$1,\"\",INDEX(name,SMALL(IF(ISNUMBER(SEARCH($F$1,عملية)),ROW(عملية)-ROW(data!$I$3)+1),ROWS(drow!G$5:G39))))","v":""},{"$f":"IF(ROWS(H$5:H39)>$H$1,\"\",INDEX(name,SMALL(IF(ISNUMBER(SEARCH($F$1,عملية)),ROW(عملية)-ROW(data!$I$3)+1),ROWS(drow!H$5:H39))))","v":""},{"$f":"IF(ROWS(I$5:I39)>$H$1,\"\",INDEX(name,SMALL(IF(ISNUMBER(SEARCH($F$1,عملية)),ROW(عملية)-ROW(data!$I$3)+1),ROWS(drow!I$5:I39))))","v":""},{"$f":"IF(ROWS(J$5:J39)>$H$1,\"\",INDEX(name,SMALL(IF(ISNUMBER(SEARCH($F$1,عملية)),ROW(عملية)-ROW(data!$I$3)+1),ROWS(drow!J$5:J39))))","v":""}]
[{"$f":"IF(ROWS(A$5:A40)>$H$1,\"\",INDEX(name,SMALL(IF(ISNUMBER(SEARCH($F$1,عملية)),ROW(عملية)-ROW(data!$I$3)+1),ROWS(drow!A$5:A40))))","v":""},{"$f":"IF(ROWS(B$5:B40)>$H$1,\"\",INDEX(name,SMALL(IF(ISNUMBER(SEARCH($F$1,عملية)),ROW(عملية)-ROW(data!$I$3)+1),ROWS(drow!B$5:B40))))","v":""},{"$f":"IF(ROWS(C$5:C40)>$H$1,\"\",INDEX(name,SMALL(IF(ISNUMBER(SEARCH($F$1,عملية)),ROW(عملية)-ROW(data!$I$3)+1),ROWS(drow!C$5:C40))))","v":""},{"$f":"IF(ROWS(D$5:D40)>$H$1,\"\",INDEX(name,SMALL(IF(ISNUMBER(SEARCH($F$1,عملية)),ROW(عملية)-ROW(data!$I$3)+1),ROWS(drow!D$5:D40))))","v":""},{"$f":"IF(ROWS(E$5:E40)>$H$1,\"\",INDEX(name,SMALL(IF(ISNUMBER(SEARCH($F$1,عملية)),ROW(عملية)-ROW(data!$I$3)+1),ROWS(drow!E$5:E40))))","v":""},{"$f":"IF(ROWS(F$5:F40)>$H$1,\"\",INDEX(name,SMALL(IF(ISNUMBER(SEARCH($F$1,عملية)),ROW(عملية)-ROW(data!$I$3)+1),ROWS(drow!F$5:F40))))","v":""},{"$f":"IF(ROWS(G$5:G40)>$H$1,\"\",INDEX(name,SMALL(IF(ISNUMBER(SEARCH($F$1,عملية)),ROW(عملية)-ROW(data!$I$3)+1),ROWS(drow!G$5:G40))))","v":""},{"$f":"IF(ROWS(H$5:H40)>$H$1,\"\",INDEX(name,SMALL(IF(ISNUMBER(SEARCH($F$1,عملية)),ROW(عملية)-ROW(data!$I$3)+1),ROWS(drow!H$5:H40))))","v":""},{"$f":"IF(ROWS(I$5:I40)>$H$1,\"\",INDEX(name,SMALL(IF(ISNUMBER(SEARCH($F$1,عملية)),ROW(عملية)-ROW(data!$I$3)+1),ROWS(drow!I$5:I40))))","v":""},{"$f":"IF(ROWS(J$5:J40)>$H$1,\"\",INDEX(name,SMALL(IF(ISNUMBER(SEARCH($F$1,عملية)),ROW(عملية)-ROW(data!$I$3)+1),ROWS(drow!J$5:J40))))","v":""}]
[{"$f":"IF(ROWS(A$5:A41)>$H$1,\"\",INDEX(name,SMALL(IF(ISNUMBER(SEARCH($F$1,عملية)),ROW(عملية)-ROW(data!$I$3)+1),ROWS(drow!A$5:A41))))","v":""},{"$f":"IF(ROWS(B$5:B41)>$H$1,\"\",INDEX(name,SMALL(IF(ISNUMBER(SEARCH($F$1,عملية)),ROW(عملية)-ROW(data!$I$3)+1),ROWS(drow!B$5:B41))))","v":""},{"$f":"IF(ROWS(C$5:C41)>$H$1,\"\",INDEX(name,SMALL(IF(ISNUMBER(SEARCH($F$1,عملية)),ROW(عملية)-ROW(data!$I$3)+1),ROWS(drow!C$5:C41))))","v":""},{"$f":"IF(ROWS(D$5:D41)>$H$1,\"\",INDEX(name,SMALL(IF(ISNUMBER(SEARCH($F$1,عملية)),ROW(عملية)-ROW(data!$I$3)+1),ROWS(drow!D$5:D41))))","v":""},{"$f":"IF(ROWS(E$5:E41)>$H$1,\"\",INDEX(name,SMALL(IF(ISNUMBER(SEARCH($F$1,عملية)),ROW(عملية)-ROW(data!$I$3)+1),ROWS(drow!E$5:E41))))","v":""},{"$f":"IF(ROWS(F$5:F41)>$H$1,\"\",INDEX(name,SMALL(IF(ISNUMBER(SEARCH($F$1,عملية)),ROW(عملية)-ROW(data!$I$3)+1),ROWS(drow!F$5:F41))))","v":""},{"$f":"IF(ROWS(G$5:G41)>$H$1,\"\",INDEX(name,SMALL(IF(ISNUMBER(SEARCH($F$1,عملية)),ROW(عملية)-ROW(data!$I$3)+1),ROWS(drow!G$5:G41))))","v":""},{"$f":"IF(ROWS(H$5:H41)>$H$1,\"\",INDEX(name,SMALL(IF(ISNUMBER(SEARCH($F$1,عملية)),ROW(عملية)-ROW(data!$I$3)+1),ROWS(drow!H$5:H41))))","v":""},{"$f":"IF(ROWS(I$5:I41)>$H$1,\"\",INDEX(name,SMALL(IF(ISNUMBER(SEARCH($F$1,عملية)),ROW(عملية)-ROW(data!$I$3)+1),ROWS(drow!I$5:I41))))","v":""},{"$f":"IF(ROWS(J$5:J41)>$H$1,\"\",INDEX(name,SMALL(IF(ISNUMBER(SEARCH($F$1,عملية)),ROW(عملية)-ROW(data!$I$3)+1),ROWS(drow!J$5:J41))))","v":""}]
[{"$f":"IF(ROWS(A$5:A42)>$H$1,\"\",INDEX(name,SMALL(IF(ISNUMBER(SEARCH($F$1,عملية)),ROW(عملية)-ROW(data!$I$3)+1),ROWS(drow!A$5:A42))))","v":""},{"$f":"IF(ROWS(B$5:B42)>$H$1,\"\",INDEX(name,SMALL(IF(ISNUMBER(SEARCH($F$1,عملية)),ROW(عملية)-ROW(data!$I$3)+1),ROWS(drow!B$5:B42))))","v":""},{"$f":"IF(ROWS(C$5:C42)>$H$1,\"\",INDEX(name,SMALL(IF(ISNUMBER(SEARCH($F$1,عملية)),ROW(عملية)-ROW(data!$I$3)+1),ROWS(drow!C$5:C42))))","v":""},{"$f":"IF(ROWS(D$5:D42)>$H$1,\"\",INDEX(name,SMALL(IF(ISNUMBER(SEARCH($F$1,عملية)),ROW(عملية)-ROW(data!$I$3)+1),ROWS(drow!D$5:D42))))","v":""},{"$f":"IF(ROWS(E$5:E42)>$H$1,\"\",INDEX(name,SMALL(IF(ISNUMBER(SEARCH($F$1,عملية)),ROW(عملية)-ROW(data!$I$3)+1),ROWS(drow!E$5:E42))))","v":""},{"$f":"IF(ROWS(F$5:F42)>$H$1,\"\",INDEX(name,SMALL(IF(ISNUMBER(SEARCH($F$1,عملية)),ROW(عملية)-ROW(data!$I$3)+1),ROWS(drow!F$5:F42))))","v":""},{"$f":"IF(ROWS(G$5:G42)>$H$1,\"\",INDEX(name,SMALL(IF(ISNUMBER(SEARCH($F$1,عملية)),ROW(عملية)-ROW(data!$I$3)+1),ROWS(drow!G$5:G42))))","v":""},{"$f":"IF(ROWS(H$5:H42)>$H$1,\"\",INDEX(name,SMALL(IF(ISNUMBER(SEARCH($F$1,عملية)),ROW(عملية)-ROW(data!$I$3)+1),ROWS(drow!H$5:H42))))","v":""},{"$f":"IF(ROWS(I$5:I42)>$H$1,\"\",INDEX(name,SMALL(IF(ISNUMBER(SEARCH($F$1,عملية)),ROW(عملية)-ROW(data!$I$3)+1),ROWS(drow!I$5:I42))))","v":""},{"$f":"IF(ROWS(J$5:J42)>$H$1,\"\",INDEX(name,SMALL(IF(ISNUMBER(SEARCH($F$1,عملية)),ROW(عملية)-ROW(data!$I$3)+1),ROWS(drow!J$5:J42))))","v":""}]
[{"$f":"IF(ROWS(A$5:A43)>$H$1,\"\",INDEX(name,SMALL(IF(ISNUMBER(SEARCH($F$1,عملية)),ROW(عملية)-ROW(data!$I$3)+1),ROWS(drow!A$5:A43))))","v":""},{"$f":"IF(ROWS(B$5:B43)>$H$1,\"\",INDEX(name,SMALL(IF(ISNUMBER(SEARCH($F$1,عملية)),ROW(عملية)-ROW(data!$I$3)+1),ROWS(drow!B$5:B43))))","v":""},{"$f":"IF(ROWS(C$5:C43)>$H$1,\"\",INDEX(name,SMALL(IF(ISNUMBER(SEARCH($F$1,عملية)),ROW(عملية)-ROW(data!$I$3)+1),ROWS(drow!C$5:C43))))","v":""},{"$f":"IF(ROWS(D$5:D43)>$H$1,\"\",INDEX(name,SMALL(IF(ISNUMBER(SEARCH($F$1,عملية)),ROW(عملية)-ROW(data!$I$3)+1),ROWS(drow!D$5:D43))))","v":""},{"$f":"IF(ROWS(E$5:E43)>$H$1,\"\",INDEX(name,SMALL(IF(ISNUMBER(SEARCH($F$1,عملية)),ROW(عملية)-ROW(data!$I$3)+1),ROWS(drow!E$5:E43))))","v":""},{"$f":"IF(ROWS(F$5:F43)>$H$1,\"\",INDEX(name,SMALL(IF(ISNUMBER(SEARCH($F$1,عملية)),ROW(عملية)-ROW(data!$I$3)+1),ROWS(drow!F$5:F43))))","v":""},{"$f":"IF(ROWS(G$5:G43)>$H$1,\"\",INDEX(name,SMALL(IF(ISNUMBER(SEARCH($F$1,عملية)),ROW(عملية)-ROW(data!$I$3)+1),ROWS(drow!G$5:G43))))","v":""},{"$f":"IF(ROWS(H$5:H43)>$H$1,\"\",INDEX(name,SMALL(IF(ISNUMBER(SEARCH($F$1,عملية)),ROW(عملية)-ROW(data!$I$3)+1),ROWS(drow!H$5:H43))))","v":""},{"$f":"IF(ROWS(I$5:I43)>$H$1,\"\",INDEX(name,SMALL(IF(ISNUMBER(SEARCH($F$1,عملية)),ROW(عملية)-ROW(data!$I$3)+1),ROWS(drow!I$5:I43))))","v":""},{"$f":"IF(ROWS(J$5:J43)>$H$1,\"\",INDEX(name,SMALL(IF(ISNUMBER(SEARCH($F$1,عملية)),ROW(عملية)-ROW(data!$I$3)+1),ROWS(drow!J$5:J43))))","v":""}]
[{"$f":"IF(ROWS(A$5:A44)>$H$1,\"\",INDEX(name,SMALL(IF(ISNUMBER(SEARCH($F$1,عملية)),ROW(عملية)-ROW(data!$I$3)+1),ROWS(drow!A$5:A44))))","v":""},{"$f":"IF(ROWS(B$5:B44)>$H$1,\"\",INDEX(name,SMALL(IF(ISNUMBER(SEARCH($F$1,عملية)),ROW(عملية)-ROW(data!$I$3)+1),ROWS(drow!B$5:B44))))","v":""},{"$f":"IF(ROWS(C$5:C44)>$H$1,\"\",INDEX(name,SMALL(IF(ISNUMBER(SEARCH($F$1,عملية)),ROW(عملية)-ROW(data!$I$3)+1),ROWS(drow!C$5:C44))))","v":""},{"$f":"IF(ROWS(D$5:D44)>$H$1,\"\",INDEX(name,SMALL(IF(ISNUMBER(SEARCH($F$1,عملية)),ROW(عملية)-ROW(data!$I$3)+1),ROWS(drow!D$5:D44))))","v":""},{"$f":"IF(ROWS(E$5:E44)>$H$1,\"\",INDEX(name,SMALL(IF(ISNUMBER(SEARCH($F$1,عملية)),ROW(عملية)-ROW(data!$I$3)+1),ROWS(drow!E$5:E44))))","v":""},{"$f":"IF(ROWS(F$5:F44)>$H$1,\"\",INDEX(name,SMALL(IF(ISNUMBER(SEARCH($F$1,عملية)),ROW(عملية)-ROW(data!$I$3)+1),ROWS(drow!F$5:F44))))","v":""},{"$f":"IF(ROWS(G$5:G44)>$H$1,\"\",INDEX(name,SMALL(IF(ISNUMBER(SEARCH($F$1,عملية)),ROW(عملية)-ROW(data!$I$3)+1),ROWS(drow!G$5:G44))))","v":""},{"$f":"IF(ROWS(H$5:H44)>$H$1,\"\",INDEX(name,SMALL(IF(ISNUMBER(SEARCH($F$1,عملية)),ROW(عملية)-ROW(data!$I$3)+1),ROWS(drow!H$5:H44))))","v":""},{"$f":"IF(ROWS(I$5:I44)>$H$1,\"\",INDEX(name,SMALL(IF(ISNUMBER(SEARCH($F$1,عملية)),ROW(عملية)-ROW(data!$I$3)+1),ROWS(drow!I$5:I44))))","v":""},{"$f":"IF(ROWS(J$5:J44)>$H$1,\"\",INDEX(name,SMALL(IF(ISNUMBER(SEARCH($F$1,عملية)),ROW(عملية)-ROW(data!$I$3)+1),ROWS(drow!J$5:J44))))","v":""}]
[{"$f":"IF(ROWS(A$5:A45)>$H$1,\"\",INDEX(name,SMALL(IF(ISNUMBER(SEARCH($F$1,عملية)),ROW(عملية)-ROW(data!$I$3)+1),ROWS(drow!A$5:A45))))","v":""},{"$f":"IF(ROWS(B$5:B45)>$H$1,\"\",INDEX(name,SMALL(IF(ISNUMBER(SEARCH($F$1,عملية)),ROW(عملية)-ROW(data!$I$3)+1),ROWS(drow!B$5:B45))))","v":""},{"$f":"IF(ROWS(C$5:C45)>$H$1,\"\",INDEX(name,SMALL(IF(ISNUMBER(SEARCH($F$1,عملية)),ROW(عملية)-ROW(data!$I$3)+1),ROWS(drow!C$5:C45))))","v":""},{"$f":"IF(ROWS(D$5:D45)>$H$1,\"\",INDEX(name,SMALL(IF(ISNUMBER(SEARCH($F$1,عملية)),ROW(عملية)-ROW(data!$I$3)+1),ROWS(drow!D$5:D45))))","v":""},{"$f":"IF(ROWS(E$5:E45)>$H$1,\"\",INDEX(name,SMALL(IF(ISNUMBER(SEARCH($F$1,عملية)),ROW(عملية)-ROW(data!$I$3)+1),ROWS(drow!E$5:E45))))","v":""},{"$f":"IF(ROWS(F$5:F45)>$H$1,\"\",INDEX(name,SMALL(IF(ISNUMBER(SEARCH($F$1,عملية)),ROW(عملية)-ROW(data!$I$3)+1),ROWS(drow!F$5:F45))))","v":""},{"$f":"IF(ROWS(G$5:G45)>$H$1,\"\",INDEX(name,SMALL(IF(ISNUMBER(SEARCH($F$1,عملية)),ROW(عملية)-ROW(data!$I$3)+1),ROWS(drow!G$5:G45))))","v":""},{"$f":"IF(ROWS(H$5:H45)>$H$1,\"\",INDEX(name,SMALL(IF(ISNUMBER(SEARCH($F$1,عملية)),ROW(عملية)-ROW(data!$I$3)+1),ROWS(drow!H$5:H45))))","v":""},{"$f":"IF(ROWS(I$5:I45)>$H$1,\"\",INDEX(name,SMALL(IF(ISNUMBER(SEARCH($F$1,عملية)),ROW(عملية)-ROW(data!$I$3)+1),ROWS(drow!I$5:I45))))","v":""},{"$f":"IF(ROWS(J$5:J45)>$H$1,\"\",INDEX(name,SMALL(IF(ISNUMBER(SEARCH($F$1,عملية)),ROW(عملية)-ROW(data!$I$3)+1),ROWS(drow!J$5:J45))))","v":""}]
[{"$f":"IF(ROWS(A$5:A46)>$H$1,\"\",INDEX(name,SMALL(IF(ISNUMBER(SEARCH($F$1,عملية)),ROW(عملية)-ROW(data!$I$3)+1),ROWS(drow!A$5:A46))))","v":""},{"$f":"IF(ROWS(B$5:B46)>$H$1,\"\",INDEX(name,SMALL(IF(ISNUMBER(SEARCH($F$1,عملية)),ROW(عملية)-ROW(data!$I$3)+1),ROWS(drow!B$5:B46))))","v":""},{"$f":"IF(ROWS(C$5:C46)>$H$1,\"\",INDEX(name,SMALL(IF(ISNUMBER(SEARCH($F$1,عملية)),ROW(عملية)-ROW(data!$I$3)+1),ROWS(drow!C$5:C46))))","v":""},{"$f":"IF(ROWS(D$5:D46)>$H$1,\"\",INDEX(name,SMALL(IF(ISNUMBER(SEARCH($F$1,عملية)),ROW(عملية)-ROW(data!$I$3)+1),ROWS(drow!D$5:D46))))","v":""},{"$f":"IF(ROWS(E$5:E46)>$H$1,\"\",INDEX(name,SMALL(IF(ISNUMBER(SEARCH($F$1,عملية)),ROW(عملية)-ROW(data!$I$3)+1),ROWS(drow!E$5:E46))))","v":""},{"$f":"IF(ROWS(F$5:F46)>$H$1,\"\",INDEX(name,SMALL(IF(ISNUMBER(SEARCH($F$1,عملية)),ROW(عملية)-ROW(data!$I$3)+1),ROWS(drow!F$5:F46))))","v":""},{"$f":"IF(ROWS(G$5:G46)>$H$1,\"\",INDEX(name,SMALL(IF(ISNUMBER(SEARCH($F$1,عملية)),ROW(عملية)-ROW(data!$I$3)+1),ROWS(drow!G$5:G46))))","v":""},{"$f":"IF(ROWS(H$5:H46)>$H$1,\"\",INDEX(name,SMALL(IF(ISNUMBER(SEARCH($F$1,عملية)),ROW(عملية)-ROW(data!$I$3)+1),ROWS(drow!H$5:H46))))","v":""},{"$f":"IF(ROWS(I$5:I46)>$H$1,\"\",INDEX(name,SMALL(IF(ISNUMBER(SEARCH($F$1,عملية)),ROW(عملية)-ROW(data!$I$3)+1),ROWS(drow!I$5:I46))))","v":""},{"$f":"IF(ROWS(J$5:J46)>$H$1,\"\",INDEX(name,SMALL(IF(ISNUMBER(SEARCH($F$1,عملية)),ROW(عملية)-ROW(data!$I$3)+1),ROWS(drow!J$5:J46))))","v":""}]
[{"$f":"IF(ROWS(A$5:A47)>$H$1,\"\",INDEX(name,SMALL(IF(ISNUMBER(SEARCH($F$1,عملية)),ROW(عملية)-ROW(data!$I$3)+1),ROWS(drow!A$5:A47))))","v":""},{"$f":"IF(ROWS(B$5:B47)>$H$1,\"\",INDEX(name,SMALL(IF(ISNUMBER(SEARCH($F$1,عملية)),ROW(عملية)-ROW(data!$I$3)+1),ROWS(drow!B$5:B47))))","v":""},{"$f":"IF(ROWS(C$5:C47)>$H$1,\"\",INDEX(name,SMALL(IF(ISNUMBER(SEARCH($F$1,عملية)),ROW(عملية)-ROW(data!$I$3)+1),ROWS(drow!C$5:C47))))","v":""},{"$f":"IF(ROWS(D$5:D47)>$H$1,\"\",INDEX(name,SMALL(IF(ISNUMBER(SEARCH($F$1,عملية)),ROW(عملية)-ROW(data!$I$3)+1),ROWS(drow!D$5:D47))))","v":""},{"$f":"IF(ROWS(E$5:E47)>$H$1,\"\",INDEX(name,SMALL(IF(ISNUMBER(SEARCH($F$1,عملية)),ROW(عملية)-ROW(data!$I$3)+1),ROWS(drow!E$5:E47))))","v":""},{"$f":"IF(ROWS(F$5:F47)>$H$1,\"\",INDEX(name,SMALL(IF(ISNUMBER(SEARCH($F$1,عملية)),ROW(عملية)-ROW(data!$I$3)+1),ROWS(drow!F$5:F47))))","v":""},{"$f":"IF(ROWS(G$5:G47)>$H$1,\"\",INDEX(name,SMALL(IF(ISNUMBER(SEARCH($F$1,عملية)),ROW(عملية)-ROW(data!$I$3)+1),ROWS(drow!G$5:G47))))","v":""},{"$f":"IF(ROWS(H$5:H47)>$H$1,\"\",INDEX(name,SMALL(IF(ISNUMBER(SEARCH($F$1,عملية)),ROW(عملية)-ROW(data!$I$3)+1),ROWS(drow!H$5:H47))))","v":""},{"$f":"IF(ROWS(I$5:I47)>$H$1,\"\",INDEX(name,SMALL(IF(ISNUMBER(SEARCH($F$1,عملية)),ROW(عملية)-ROW(data!$I$3)+1),ROWS(drow!I$5:I47))))","v":""},{"$f":"IF(ROWS(J$5:J47)>$H$1,\"\",INDEX(name,SMALL(IF(ISNUMBER(SEARCH($F$1,عملية)),ROW(عملية)-ROW(data!$I$3)+1),ROWS(drow!J$5:J47))))","v":""}]
[{"$f":"IF(ROWS(A$5:A48)>$H$1,\"\",INDEX(name,SMALL(IF(ISNUMBER(SEARCH($F$1,عملية)),ROW(عملية)-ROW(data!$I$3)+1),ROWS(drow!A$5:A48))))","v":""},{"$f":"IF(ROWS(B$5:B48)>$H$1,\"\",INDEX(name,SMALL(IF(ISNUMBER(SEARCH($F$1,عملية)),ROW(عملية)-ROW(data!$I$3)+1),ROWS(drow!B$5:B48))))","v":""},{"$f":"IF(ROWS(C$5:C48)>$H$1,\"\",INDEX(name,SMALL(IF(ISNUMBER(SEARCH($F$1,عملية)),ROW(عملية)-ROW(data!$I$3)+1),ROWS(drow!C$5:C48))))","v":""},{"$f":"IF(ROWS(D$5:D48)>$H$1,\"\",INDEX(name,SMALL(IF(ISNUMBER(SEARCH($F$1,عملية)),ROW(عملية)-ROW(data!$I$3)+1),ROWS(drow!D$5:D48))))","v":""},{"$f":"IF(ROWS(E$5:E48)>$H$1,\"\",INDEX(name,SMALL(IF(ISNUMBER(SEARCH($F$1,عملية)),ROW(عملية)-ROW(data!$I$3)+1),ROWS(drow!E$5:E48))))","v":""},{"$f":"IF(ROWS(F$5:F48)>$H$1,\"\",INDEX(name,SMALL(IF(ISNUMBER(SEARCH($F$1,عملية)),ROW(عملية)-ROW(data!$I$3)+1),ROWS(drow!F$5:F48))))","v":""},{"$f":"IF(ROWS(G$5:G48)>$H$1,\"\",INDEX(name,SMALL(IF(ISNUMBER(SEARCH($F$1,عملية)),ROW(عملية)-ROW(data!$I$3)+1),ROWS(drow!G$5:G48))))","v":""},{"$f":"IF(ROWS(H$5:H48)>$H$1,\"\",INDEX(name,SMALL(IF(ISNUMBER(SEARCH($F$1,عملية)),ROW(عملية)-ROW(data!$I$3)+1),ROWS(drow!H$5:H48))))","v":""},{"$f":"IF(ROWS(I$5:I48)>$H$1,\"\",INDEX(name,SMALL(IF(ISNUMBER(SEARCH($F$1,عملية)),ROW(عملية)-ROW(data!$I$3)+1),ROWS(drow!I$5:I48))))","v":""},{"$f":"IF(ROWS(J$5:J48)>$H$1,\"\",INDEX(name,SMALL(IF(ISNUMBER(SEARCH($F$1,عملية)),ROW(عملية)-ROW(data!$I$3)+1),ROWS(drow!J$5:J48))))","v":""}]
[{"$f":"IF(ROWS(A$5:A49)>$H$1,\"\",INDEX(name,SMALL(IF(ISNUMBER(SEARCH($F$1,عملية)),ROW(عملية)-ROW(data!$I$3)+1),ROWS(drow!A$5:A49))))","v":""},{"$f":"IF(ROWS(B$5:B49)>$H$1,\"\",INDEX(name,SMALL(IF(ISNUMBER(SEARCH($F$1,عملية)),ROW(عملية)-ROW(data!$I$3)+1),ROWS(drow!B$5:B49))))","v":""},{"$f":"IF(ROWS(C$5:C49)>$H$1,\"\",INDEX(name,SMALL(IF(ISNUMBER(SEARCH($F$1,عملية)),ROW(عملية)-ROW(data!$I$3)+1),ROWS(drow!C$5:C49))))","v":""},{"$f":"IF(ROWS(D$5:D49)>$H$1,\"\",INDEX(name,SMALL(IF(ISNUMBER(SEARCH($F$1,عملية)),ROW(عملية)-ROW(data!$I$3)+1),ROWS(drow!D$5:D49))))","v":""},{"$f":"IF(ROWS(E$5:E49)>$H$1,\"\",INDEX(name,SMALL(IF(ISNUMBER(SEARCH($F$1,عملية)),ROW(عملية)-ROW(data!$I$3)+1),ROWS(drow!E$5:E49))))","v":""},{"$f":"IF(ROWS(F$5:F49)>$H$1,\"\",INDEX(name,SMALL(IF(ISNUMBER(SEARCH($F$1,عملية)),ROW(عملية)-ROW(data!$I$3)+1),ROWS(drow!F$5:F49))))","v":""},{"$f":"IF(ROWS(G$5:G49)>$H$1,\"\",INDEX(name,SMALL(IF(ISNUMBER(SEARCH($F$1,عملية)),ROW(عملية)-ROW(data!$I$3)+1),ROWS(drow!G$5:G49))))","v":""},{"$f":"IF(ROWS(H$5:H49)>$H$1,\"\",INDEX(name,SMALL(IF(ISNUMBER(SEARCH($F$1,عملية)),ROW(عملية)-ROW(data!$I$3)+1),ROWS(drow!H$5:H49))))","v":""},{"$f":"IF(ROWS(I$5:I49)>$H$1,\"\",INDEX(name,SMALL(IF(ISNUMBER(SEARCH($F$1,عملية)),ROW(عملية)-ROW(data!$I$3)+1),ROWS(drow!I$5:I49))))","v":""},{"$f":"IF(ROWS(J$5:J49)>$H$1,\"\",INDEX(name,SMALL(IF(ISNUMBER(SEARCH($F$1,عملية)),ROW(عملية)-ROW(data!$I$3)+1),ROWS(drow!J$5:J49))))","v":""}]
[{"$f":"IF(ROWS(A$5:A50)>$H$1,\"\",INDEX(name,SMALL(IF(ISNUMBER(SEARCH($F$1,عملية)),ROW(عملية)-ROW(data!$I$3)+1),ROWS(drow!A$5:A50))))","v":""},{"$f":"IF(ROWS(B$5:B50)>$H$1,\"\",INDEX(name,SMALL(IF(ISNUMBER(SEARCH($F$1,عملية)),ROW(عملية)-ROW(data!$I$3)+1),ROWS(drow!B$5:B50))))","v":""},{"$f":"IF(ROWS(C$5:C50)>$H$1,\"\",INDEX(name,SMALL(IF(ISNUMBER(SEARCH($F$1,عملية)),ROW(عملية)-ROW(data!$I$3)+1),ROWS(drow!C$5:C50))))","v":""},{"$f":"IF(ROWS(D$5:D50)>$H$1,\"\",INDEX(name,SMALL(IF(ISNUMBER(SEARCH($F$1,عملية)),ROW(عملية)-ROW(data!$I$3)+1),ROWS(drow!D$5:D50))))","v":""},{"$f":"IF(ROWS(E$5:E50)>$H$1,\"\",INDEX(name,SMALL(IF(ISNUMBER(SEARCH($F$1,عملية)),ROW(عملية)-ROW(data!$I$3)+1),ROWS(drow!E$5:E50))))","v":""},{"$f":"IF(ROWS(F$5:F50)>$H$1,\"\",INDEX(name,SMALL(IF(ISNUMBER(SEARCH($F$1,عملية)),ROW(عملية)-ROW(data!$I$3)+1),ROWS(drow!F$5:F50))))","v":""},{"$f":"IF(ROWS(G$5:G50)>$H$1,\"\",INDEX(name,SMALL(IF(ISNUMBER(SEARCH($F$1,عملية)),ROW(عملية)-ROW(data!$I$3)+1),ROWS(drow!G$5:G50))))","v":""},{"$f":"IF(ROWS(H$5:H50)>$H$1,\"\",INDEX(name,SMALL(IF(ISNUMBER(SEARCH($F$1,عملية)),ROW(عملية)-ROW(data!$I$3)+1),ROWS(drow!H$5:H50))))","v":""},{"$f":"IF(ROWS(I$5:I50)>$H$1,\"\",INDEX(name,SMALL(IF(ISNUMBER(SEARCH($F$1,عملية)),ROW(عملية)-ROW(data!$I$3)+1),ROWS(drow!I$5:I50))))","v":""},{"$f":"IF(ROWS(J$5:J50)>$H$1,\"\",INDEX(name,SMALL(IF(ISNUMBER(SEARCH($F$1,عملية)),ROW(عملية)-ROW(data!$I$3)+1),ROWS(drow!J$5:J50))))","v":""}]
[{"$f":"IF(ROWS(A$5:A51)>$H$1,\"\",INDEX(name,SMALL(IF(ISNUMBER(SEARCH($F$1,عملية)),ROW(عملية)-ROW(data!$I$3)+1),ROWS(drow!A$5:A51))))","v":""},{"$f":"IF(ROWS(B$5:B51)>$H$1,\"\",INDEX(name,SMALL(IF(ISNUMBER(SEARCH($F$1,عملية)),ROW(عملية)-ROW(data!$I$3)+1),ROWS(drow!B$5:B51))))","v":""},{"$f":"IF(ROWS(C$5:C51)>$H$1,\"\",INDEX(name,SMALL(IF(ISNUMBER(SEARCH($F$1,عملية)),ROW(عملية)-ROW(data!$I$3)+1),ROWS(drow!C$5:C51))))","v":""},{"$f":"IF(ROWS(D$5:D51)>$H$1,\"\",INDEX(name,SMALL(IF(ISNUMBER(SEARCH($F$1,عملية)),ROW(عملية)-ROW(data!$I$3)+1),ROWS(drow!D$5:D51))))","v":""},{"$f":"IF(ROWS(E$5:E51)>$H$1,\"\",INDEX(name,SMALL(IF(ISNUMBER(SEARCH($F$1,عملية)),ROW(عملية)-ROW(data!$I$3)+1),ROWS(drow!E$5:E51))))","v":""},{"$f":"IF(ROWS(F$5:F51)>$H$1,\"\",INDEX(name,SMALL(IF(ISNUMBER(SEARCH($F$1,عملية)),ROW(عملية)-ROW(data!$I$3)+1),ROWS(drow!F$5:F51))))","v":""},{"$f":"IF(ROWS(G$5:G51)>$H$1,\"\",INDEX(name,SMALL(IF(ISNUMBER(SEARCH($F$1,عملية)),ROW(عملية)-ROW(data!$I$3)+1),ROWS(drow!G$5:G51))))","v":""},{"$f":"IF(ROWS(H$5:H51)>$H$1,\"\",INDEX(name,SMALL(IF(ISNUMBER(SEARCH($F$1,عملية)),ROW(عملية)-ROW(data!$I$3)+1),ROWS(drow!H$5:H51))))","v":""},{"$f":"IF(ROWS(I$5:I51)>$H$1,\"\",INDEX(name,SMALL(IF(ISNUMBER(SEARCH($F$1,عملية)),ROW(عملية)-ROW(data!$I$3)+1),ROWS(drow!I$5:I51))))","v":""},{"$f":"IF(ROWS(J$5:J51)>$H$1,\"\",INDEX(name,SMALL(IF(ISNUMBER(SEARCH($F$1,عملية)),ROW(عملية)-ROW(data!$I$3)+1),ROWS(drow!J$5:J51))))","v":""}]
[{"$f":"IF(ROWS(A$5:A52)>$H$1,\"\",INDEX(name,SMALL(IF(ISNUMBER(SEARCH($F$1,عملية)),ROW(عملية)-ROW(data!$I$3)+1),ROWS(drow!A$5:A52))))","v":""},{"$f":"IF(ROWS(B$5:B52)>$H$1,\"\",INDEX(name,SMALL(IF(ISNUMBER(SEARCH($F$1,عملية)),ROW(عملية)-ROW(data!$I$3)+1),ROWS(drow!B$5:B52))))","v":""},{"$f":"IF(ROWS(C$5:C52)>$H$1,\"\",INDEX(name,SMALL(IF(ISNUMBER(SEARCH($F$1,عملية)),ROW(عملية)-ROW(data!$I$3)+1),ROWS(drow!C$5:C52))))","v":""},{"$f":"IF(ROWS(D$5:D52)>$H$1,\"\",INDEX(name,SMALL(IF(ISNUMBER(SEARCH($F$1,عملية)),ROW(عملية)-ROW(data!$I$3)+1),ROWS(drow!D$5:D52))))","v":""},{"$f":"IF(ROWS(E$5:E52)>$H$1,\"\",INDEX(name,SMALL(IF(ISNUMBER(SEARCH($F$1,عملية)),ROW(عملية)-ROW(data!$I$3)+1),ROWS(drow!E$5:E52))))","v":""},{"$f":"IF(ROWS(F$5:F52)>$H$1,\"\",INDEX(name,SMALL(IF(ISNUMBER(SEARCH($F$1,عملية)),ROW(عملية)-ROW(data!$I$3)+1),ROWS(drow!F$5:F52))))","v":""},{"$f":"IF(ROWS(G$5:G52)>$H$1,\"\",INDEX(name,SMALL(IF(ISNUMBER(SEARCH($F$1,عملية)),ROW(عملية)-ROW(data!$I$3)+1),ROWS(drow!G$5:G52))))","v":""},{"$f":"IF(ROWS(H$5:H52)>$H$1,\"\",INDEX(name,SMALL(IF(ISNUMBER(SEARCH($F$1,عملية)),ROW(عملية)-ROW(data!$I$3)+1),ROWS(drow!H$5:H52))))","v":""},{"$f":"IF(ROWS(I$5:I52)>$H$1,\"\",INDEX(name,SMALL(IF(ISNUMBER(SEARCH($F$1,عملية)),ROW(عملية)-ROW(data!$I$3)+1),ROWS(drow!I$5:I52))))","v":""},{"$f":"IF(ROWS(J$5:J52)>$H$1,\"\",INDEX(name,SMALL(IF(ISNUMBER(SEARCH($F$1,عملية)),ROW(عملية)-ROW(data!$I$3)+1),ROWS(drow!J$5:J52))))","v":""}]
[{"$f":"IF(ROWS(A$5:A53)>$H$1,\"\",INDEX(name,SMALL(IF(ISNUMBER(SEARCH($F$1,عملية)),ROW(عملية)-ROW(data!$I$3)+1),ROWS(drow!A$5:A53))))","v":""},{"$f":"IF(ROWS(B$5:B53)>$H$1,\"\",INDEX(name,SMALL(IF(ISNUMBER(SEARCH($F$1,عملية)),ROW(عملية)-ROW(data!$I$3)+1),ROWS(drow!B$5:B53))))","v":""},{"$f":"IF(ROWS(C$5:C53)>$H$1,\"\",INDEX(name,SMALL(IF(ISNUMBER(SEARCH($F$1,عملية)),ROW(عملية)-ROW(data!$I$3)+1),ROWS(drow!C$5:C53))))","v":""},{"$f":"IF(ROWS(D$5:D53)>$H$1,\"\",INDEX(name,SMALL(IF(ISNUMBER(SEARCH($F$1,عملية)),ROW(عملية)-ROW(data!$I$3)+1),ROWS(drow!D$5:D53))))","v":""},{"$f":"IF(ROWS(E$5:E53)>$H$1,\"\",INDEX(name,SMALL(IF(ISNUMBER(SEARCH($F$1,عملية)),ROW(عملية)-ROW(data!$I$3)+1),ROWS(drow!E$5:E53))))","v":""},{"$f":"IF(ROWS(F$5:F53)>$H$1,\"\",INDEX(name,SMALL(IF(ISNUMBER(SEARCH($F$1,عملية)),ROW(عملية)-ROW(data!$I$3)+1),ROWS(drow!F$5:F53))))","v":""},{"$f":"IF(ROWS(G$5:G53)>$H$1,\"\",INDEX(name,SMALL(IF(ISNUMBER(SEARCH($F$1,عملية)),ROW(عملية)-ROW(data!$I$3)+1),ROWS(drow!G$5:G53))))","v":""},{"$f":"IF(ROWS(H$5:H53)>$H$1,\"\",INDEX(name,SMALL(IF(ISNUMBER(SEARCH($F$1,عملية)),ROW(عملية)-ROW(data!$I$3)+1),ROWS(drow!H$5:H53))))","v":""},{"$f":"IF(ROWS(I$5:I53)>$H$1,\"\",INDEX(name,SMALL(IF(ISNUMBER(SEARCH($F$1,عملية)),ROW(عملية)-ROW(data!$I$3)+1),ROWS(drow!I$5:I53))))","v":""},{"$f":"IF(ROWS(J$5:J53)>$H$1,\"\",INDEX(name,SMALL(IF(ISNUMBER(SEARCH($F$1,عملية)),ROW(عملية)-ROW(data!$I$3)+1),ROWS(drow!J$5:J53))))","v":""}]
[{"$f":"IF(ROWS(A$5:A54)>$H$1,\"\",INDEX(name,SMALL(IF(ISNUMBER(SEARCH($F$1,عملية)),ROW(عملية)-ROW(data!$I$3)+1),ROWS(drow!A$5:A54))))","v":""},{"$f":"IF(ROWS(B$5:B54)>$H$1,\"\",INDEX(name,SMALL(IF(ISNUMBER(SEARCH($F$1,عملية)),ROW(عملية)-ROW(data!$I$3)+1),ROWS(drow!B$5:B54))))","v":""},{"$f":"IF(ROWS(C$5:C54)>$H$1,\"\",INDEX(name,SMALL(IF(ISNUMBER(SEARCH($F$1,عملية)),ROW(عملية)-ROW(data!$I$3)+1),ROWS(drow!C$5:C54))))","v":""},{"$f":"IF(ROWS(D$5:D54)>$H$1,\"\",INDEX(name,SMALL(IF(ISNUMBER(SEARCH($F$1,عملية)),ROW(عملية)-ROW(data!$I$3)+1),ROWS(drow!D$5:D54))))","v":""},{"$f":"IF(ROWS(E$5:E54)>$H$1,\"\",INDEX(name,SMALL(IF(ISNUMBER(SEARCH($F$1,عملية)),ROW(عملية)-ROW(data!$I$3)+1),ROWS(drow!E$5:E54))))","v":""},{"$f":"IF(ROWS(F$5:F54)>$H$1,\"\",INDEX(name,SMALL(IF(ISNUMBER(SEARCH($F$1,عملية)),ROW(عملية)-ROW(data!$I$3)+1),ROWS(drow!F$5:F54))))","v":""},{"$f":"IF(ROWS(G$5:G54)>$H$1,\"\",INDEX(name,SMALL(IF(ISNUMBER(SEARCH($F$1,عملية)),ROW(عملية)-ROW(data!$I$3)+1),ROWS(drow!G$5:G54))))","v":""},{"$f":"IF(ROWS(H$5:H54)>$H$1,\"\",INDEX(name,SMALL(IF(ISNUMBER(SEARCH($F$1,عملية)),ROW(عملية)-ROW(data!$I$3)+1),ROWS(drow!H$5:H54))))","v":""},{"$f":"IF(ROWS(I$5:I54)>$H$1,\"\",INDEX(name,SMALL(IF(ISNUMBER(SEARCH($F$1,عملية)),ROW(عملية)-ROW(data!$I$3)+1),ROWS(drow!I$5:I54))))","v":""},{"$f":"IF(ROWS(J$5:J54)>$H$1,\"\",INDEX(name,SMALL(IF(ISNUMBER(SEARCH($F$1,عملية)),ROW(عملية)-ROW(data!$I$3)+1),ROWS(drow!J$5:J54))))","v":""}]
[{"$f":"IF(ROWS(A$5:A55)>$H$1,\"\",INDEX(name,SMALL(IF(ISNUMBER(SEARCH($F$1,عملية)),ROW(عملية)-ROW(data!$I$3)+1),ROWS(drow!A$5:A55))))","v":""},{"$f":"IF(ROWS(B$5:B55)>$H$1,\"\",INDEX(name,SMALL(IF(ISNUMBER(SEARCH($F$1,عملية)),ROW(عملية)-ROW(data!$I$3)+1),ROWS(drow!B$5:B55))))","v":""},{"$f":"IF(ROWS(C$5:C55)>$H$1,\"\",INDEX(name,SMALL(IF(ISNUMBER(SEARCH($F$1,عملية)),ROW(عملية)-ROW(data!$I$3)+1),ROWS(drow!C$5:C55))))","v":""},{"$f":"IF(ROWS(D$5:D55)>$H$1,\"\",INDEX(name,SMALL(IF(ISNUMBER(SEARCH($F$1,عملية)),ROW(عملية)-ROW(data!$I$3)+1),ROWS(drow!D$5:D55))))","v":""},{"$f":"IF(ROWS(E$5:E55)>$H$1,\"\",INDEX(name,SMALL(IF(ISNUMBER(SEARCH($F$1,عملية)),ROW(عملية)-ROW(data!$I$3)+1),ROWS(drow!E$5:E55))))","v":""},{"$f":"IF(ROWS(F$5:F55)>$H$1,\"\",INDEX(name,SMALL(IF(ISNUMBER(SEARCH($F$1,عملية)),ROW(عملية)-ROW(data!$I$3)+1),ROWS(drow!F$5:F55))))","v":""},{"$f":"IF(ROWS(G$5:G55)>$H$1,\"\",INDEX(name,SMALL(IF(ISNUMBER(SEARCH($F$1,عملية)),ROW(عملية)-ROW(data!$I$3)+1),ROWS(drow!G$5:G55))))","v":""},{"$f":"IF(ROWS(H$5:H55)>$H$1,\"\",INDEX(name,SMALL(IF(ISNUMBER(SEARCH($F$1,عملية)),ROW(عملية)-ROW(data!$I$3)+1),ROWS(drow!H$5:H55))))","v":""},{"$f":"IF(ROWS(I$5:I55)>$H$1,\"\",INDEX(name,SMALL(IF(ISNUMBER(SEARCH($F$1,عملية)),ROW(عملية)-ROW(data!$I$3)+1),ROWS(drow!I$5:I55))))","v":""},{"$f":"IF(ROWS(J$5:J55)>$H$1,\"\",INDEX(name,SMALL(IF(ISNUMBER(SEARCH($F$1,عملية)),ROW(عملية)-ROW(data!$I$3)+1),ROWS(drow!J$5:J55))))","v":""}]
[{"$f":"IF(ROWS(A$5:A56)>$H$1,\"\",INDEX(name,SMALL(IF(ISNUMBER(SEARCH($F$1,عملية)),ROW(عملية)-ROW(data!$I$3)+1),ROWS(drow!A$5:A56))))","v":""},{"$f":"IF(ROWS(B$5:B56)>$H$1,\"\",INDEX(name,SMALL(IF(ISNUMBER(SEARCH($F$1,عملية)),ROW(عملية)-ROW(data!$I$3)+1),ROWS(drow!B$5:B56))))","v":""},{"$f":"IF(ROWS(C$5:C56)>$H$1,\"\",INDEX(name,SMALL(IF(ISNUMBER(SEARCH($F$1,عملية)),ROW(عملية)-ROW(data!$I$3)+1),ROWS(drow!C$5:C56))))","v":""},{"$f":"IF(ROWS(D$5:D56)>$H$1,\"\",INDEX(name,SMALL(IF(ISNUMBER(SEARCH($F$1,عملية)),ROW(عملية)-ROW(data!$I$3)+1),ROWS(drow!D$5:D56))))","v":""},{"$f":"IF(ROWS(E$5:E56)>$H$1,\"\",INDEX(name,SMALL(IF(ISNUMBER(SEARCH($F$1,عملية)),ROW(عملية)-ROW(data!$I$3)+1),ROWS(drow!E$5:E56))))","v":""},{"$f":"IF(ROWS(F$5:F56)>$H$1,\"\",INDEX(name,SMALL(IF(ISNUMBER(SEARCH($F$1,عملية)),ROW(عملية)-ROW(data!$I$3)+1),ROWS(drow!F$5:F56))))","v":""},{"$f":"IF(ROWS(G$5:G56)>$H$1,\"\",INDEX(name,SMALL(IF(ISNUMBER(SEARCH($F$1,عملية)),ROW(عملية)-ROW(data!$I$3)+1),ROWS(drow!G$5:G56))))","v":""},{"$f":"IF(ROWS(H$5:H56)>$H$1,\"\",INDEX(name,SMALL(IF(ISNUMBER(SEARCH($F$1,عملية)),ROW(عملية)-ROW(data!$I$3)+1),ROWS(drow!H$5:H56))))","v":""},{"$f":"IF(ROWS(I$5:I56)>$H$1,\"\",INDEX(name,SMALL(IF(ISNUMBER(SEARCH($F$1,عملية)),ROW(عملية)-ROW(data!$I$3)+1),ROWS(drow!I$5:I56))))","v":""},{"$f":"IF(ROWS(J$5:J56)>$H$1,\"\",INDEX(name,SMALL(IF(ISNUMBER(SEARCH($F$1,عملية)),ROW(عملية)-ROW(data!$I$3)+1),ROWS(drow!J$5:J56))))","v":""}]
[{"$f":"IF(ROWS(A$5:A57)>$H$1,\"\",INDEX(name,SMALL(IF(ISNUMBER(SEARCH($F$1,عملية)),ROW(عملية)-ROW(data!$I$3)+1),ROWS(drow!A$5:A57))))","v":""},{"$f":"IF(ROWS(B$5:B57)>$H$1,\"\",INDEX(name,SMALL(IF(ISNUMBER(SEARCH($F$1,عملية)),ROW(عملية)-ROW(data!$I$3)+1),ROWS(drow!B$5:B57))))","v":""},{"$f":"IF(ROWS(C$5:C57)>$H$1,\"\",INDEX(name,SMALL(IF(ISNUMBER(SEARCH($F$1,عملية)),ROW(عملية)-ROW(data!$I$3)+1),ROWS(drow!C$5:C57))))","v":""},{"$f":"IF(ROWS(D$5:D57)>$H$1,\"\",INDEX(name,SMALL(IF(ISNUMBER(SEARCH($F$1,عملية)),ROW(عملية)-ROW(data!$I$3)+1),ROWS(drow!D$5:D57))))","v":""},{"$f":"IF(ROWS(E$5:E57)>$H$1,\"\",INDEX(name,SMALL(IF(ISNUMBER(SEARCH($F$1,عملية)),ROW(عملية)-ROW(data!$I$3)+1),ROWS(drow!E$5:E57))))","v":""},{"$f":"IF(ROWS(F$5:F57)>$H$1,\"\",INDEX(name,SMALL(IF(ISNUMBER(SEARCH($F$1,عملية)),ROW(عملية)-ROW(data!$I$3)+1),ROWS(drow!F$5:F57))))","v":""},{"$f":"IF(ROWS(G$5:G57)>$H$1,\"\",INDEX(name,SMALL(IF(ISNUMBER(SEARCH($F$1,عملية)),ROW(عملية)-ROW(data!$I$3)+1),ROWS(drow!G$5:G57))))","v":""},{"$f":"IF(ROWS(H$5:H57)>$H$1,\"\",INDEX(name,SMALL(IF(ISNUMBER(SEARCH($F$1,عملية)),ROW(عملية)-ROW(data!$I$3)+1),ROWS(drow!H$5:H57))))","v":""},{"$f":"IF(ROWS(I$5:I57)>$H$1,\"\",INDEX(name,SMALL(IF(ISNUMBER(SEARCH($F$1,عملية)),ROW(عملية)-ROW(data!$I$3)+1),ROWS(drow!I$5:I57))))","v":""},{"$f":"IF(ROWS(J$5:J57)>$H$1,\"\",INDEX(name,SMALL(IF(ISNUMBER(SEARCH($F$1,عملية)),ROW(عملية)-ROW(data!$I$3)+1),ROWS(drow!J$5:J57))))","v":""}]
[{"$f":"IF(ROWS(A$5:A58)>$H$1,\"\",INDEX(name,SMALL(IF(ISNUMBER(SEARCH($F$1,عملية)),ROW(عملية)-ROW(data!$I$3)+1),ROWS(drow!A$5:A58))))","v":""},{"$f":"IF(ROWS(B$5:B58)>$H$1,\"\",INDEX(name,SMALL(IF(ISNUMBER(SEARCH($F$1,عملية)),ROW(عملية)-ROW(data!$I$3)+1),ROWS(drow!B$5:B58))))","v":""},{"$f":"IF(ROWS(C$5:C58)>$H$1,\"\",INDEX(name,SMALL(IF(ISNUMBER(SEARCH($F$1,عملية)),ROW(عملية)-ROW(data!$I$3)+1),ROWS(drow!C$5:C58))))","v":""},{"$f":"IF(ROWS(D$5:D58)>$H$1,\"\",INDEX(name,SMALL(IF(ISNUMBER(SEARCH($F$1,عملية)),ROW(عملية)-ROW(data!$I$3)+1),ROWS(drow!D$5:D58))))","v":""},{"$f":"IF(ROWS(E$5:E58)>$H$1,\"\",INDEX(name,SMALL(IF(ISNUMBER(SEARCH($F$1,عملية)),ROW(عملية)-ROW(data!$I$3)+1),ROWS(drow!E$5:E58))))","v":""},{"$f":"IF(ROWS(F$5:F58)>$H$1,\"\",INDEX(name,SMALL(IF(ISNUMBER(SEARCH($F$1,عملية)),ROW(عملية)-ROW(data!$I$3)+1),ROWS(drow!F$5:F58))))","v":""},{"$f":"IF(ROWS(G$5:G58)>$H$1,\"\",INDEX(name,SMALL(IF(ISNUMBER(SEARCH($F$1,عملية)),ROW(عملية)-ROW(data!$I$3)+1),ROWS(drow!G$5:G58))))","v":""},{"$f":"IF(ROWS(H$5:H58)>$H$1,\"\",INDEX(name,SMALL(IF(ISNUMBER(SEARCH($F$1,عملية)),ROW(عملية)-ROW(data!$I$3)+1),ROWS(drow!H$5:H58))))","v":""},{"$f":"IF(ROWS(I$5:I58)>$H$1,\"\",INDEX(name,SMALL(IF(ISNUMBER(SEARCH($F$1,عملية)),ROW(عملية)-ROW(data!$I$3)+1),ROWS(drow!I$5:I58))))","v":""},{"$f":"IF(ROWS(J$5:J58)>$H$1,\"\",INDEX(name,SMALL(IF(ISNUMBER(SEARCH($F$1,عملية)),ROW(عملية)-ROW(data!$I$3)+1),ROWS(drow!J$5:J58))))","v":""}]
[{"$f":"IF(ROWS(A$5:A59)>$H$1,\"\",INDEX(name,SMALL(IF(ISNUMBER(SEARCH($F$1,عملية)),ROW(عملية)-ROW(data!$I$3)+1),ROWS(drow!A$5:A59))))","v":""},{"$f":"IF(ROWS(B$5:B59)>$H$1,\"\",INDEX(name,SMALL(IF(ISNUMBER(SEARCH($F$1,عملية)),ROW(عملية)-ROW(data!$I$3)+1),ROWS(drow!B$5:B59))))","v":""},{"$f":"IF(ROWS(C$5:C59)>$H$1,\"\",INDEX(name,SMALL(IF(ISNUMBER(SEARCH($F$1,عملية)),ROW(عملية)-ROW(data!$I$3)+1),ROWS(drow!C$5:C59))))","v":""},{"$f":"IF(ROWS(D$5:D59)>$H$1,\"\",INDEX(name,SMALL(IF(ISNUMBER(SEARCH($F$1,عملية)),ROW(عملية)-ROW(data!$I$3)+1),ROWS(drow!D$5:D59))))","v":""},{"$f":"IF(ROWS(E$5:E59)>$H$1,\"\",INDEX(name,SMALL(IF(ISNUMBER(SEARCH($F$1,عملية)),ROW(عملية)-ROW(data!$I$3)+1),ROWS(drow!E$5:E59))))","v":""},{"$f":"IF(ROWS(F$5:F59)>$H$1,\"\",INDEX(name,SMALL(IF(ISNUMBER(SEARCH($F$1,عملية)),ROW(عملية)-ROW(data!$I$3)+1),ROWS(drow!F$5:F59))))","v":""},{"$f":"IF(ROWS(G$5:G59)>$H$1,\"\",INDEX(name,SMALL(IF(ISNUMBER(SEARCH($F$1,عملية)),ROW(عملية)-ROW(data!$I$3)+1),ROWS(drow!G$5:G59))))","v":""},{"$f":"IF(ROWS(H$5:H59)>$H$1,\"\",INDEX(name,SMALL(IF(ISNUMBER(SEARCH($F$1,عملية)),ROW(عملية)-ROW(data!$I$3)+1),ROWS(drow!H$5:H59))))","v":""},{"$f":"IF(ROWS(I$5:I59)>$H$1,\"\",INDEX(name,SMALL(IF(ISNUMBER(SEARCH($F$1,عملية)),ROW(عملية)-ROW(data!$I$3)+1),ROWS(drow!I$5:I59))))","v":""},{"$f":"IF(ROWS(J$5:J59)>$H$1,\"\",INDEX(name,SMALL(IF(ISNUMBER(SEARCH($F$1,عملية)),ROW(عملية)-ROW(data!$I$3)+1),ROWS(drow!J$5:J59))))","v":""}]
[{"$f":"IF(ROWS(A$5:A60)>$H$1,\"\",INDEX(name,SMALL(IF(ISNUMBER(SEARCH($F$1,عملية)),ROW(عملية)-ROW(data!$I$3)+1),ROWS(drow!A$5:A60))))","v":""},{"$f":"IF(ROWS(B$5:B60)>$H$1,\"\",INDEX(name,SMALL(IF(ISNUMBER(SEARCH($F$1,عملية)),ROW(عملية)-ROW(data!$I$3)+1),ROWS(drow!B$5:B60))))","v":""},{"$f":"IF(ROWS(C$5:C60)>$H$1,\"\",INDEX(name,SMALL(IF(ISNUMBER(SEARCH($F$1,عملية)),ROW(عملية)-ROW(data!$I$3)+1),ROWS(drow!C$5:C60))))","v":""},{"$f":"IF(ROWS(D$5:D60)>$H$1,\"\",INDEX(name,SMALL(IF(ISNUMBER(SEARCH($F$1,عملية)),ROW(عملية)-ROW(data!$I$3)+1),ROWS(drow!D$5:D60))))","v":""},{"$f":"IF(ROWS(E$5:E60)>$H$1,\"\",INDEX(name,SMALL(IF(ISNUMBER(SEARCH($F$1,عملية)),ROW(عملية)-ROW(data!$I$3)+1),ROWS(drow!E$5:E60))))","v":""},{"$f":"IF(ROWS(F$5:F60)>$H$1,\"\",INDEX(name,SMALL(IF(ISNUMBER(SEARCH($F$1,عملية)),ROW(عملية)-ROW(data!$I$3)+1),ROWS(drow!F$5:F60))))","v":""},{"$f":"IF(ROWS(G$5:G60)>$H$1,\"\",INDEX(name,SMALL(IF(ISNUMBER(SEARCH($F$1,عملية)),ROW(عملية)-ROW(data!$I$3)+1),ROWS(drow!G$5:G60))))","v":""},{"$f":"IF(ROWS(H$5:H60)>$H$1,\"\",INDEX(name,SMALL(IF(ISNUMBER(SEARCH($F$1,عملية)),ROW(عملية)-ROW(data!$I$3)+1),ROWS(drow!H$5:H60))))","v":""},{"$f":"IF(ROWS(I$5:I60)>$H$1,\"\",INDEX(name,SMALL(IF(ISNUMBER(SEARCH($F$1,عملية)),ROW(عملية)-ROW(data!$I$3)+1),ROWS(drow!I$5:I60))))","v":""},{"$f":"IF(ROWS(J$5:J60)>$H$1,\"\",INDEX(name,SMALL(IF(ISNUMBER(SEARCH($F$1,عملية)),ROW(عملية)-ROW(data!$I$3)+1),ROWS(drow!J$5:J60))))","v":""}]
[{"$f":"IF(ROWS(A$5:A61)>$H$1,\"\",INDEX(name,SMALL(IF(ISNUMBER(SEARCH($F$1,عملية)),ROW(عملية)-ROW(data!$I$3)+1),ROWS(drow!A$5:A61))))","v":""},{"$f":"IF(ROWS(B$5:B61)>$H$1,\"\",INDEX(name,SMALL(IF(ISNUMBER(SEARCH($F$1,عملية)),ROW(عملية)-ROW(data!$I$3)+1),ROWS(drow!B$5:B61))))","v":""},{"$f":"IF(ROWS(C$5:C61)>$H$1,\"\",INDEX(name,SMALL(IF(ISNUMBER(SEARCH($F$1,عملية)),ROW(عملية)-ROW(data!$I$3)+1),ROWS(drow!C$5:C61))))","v":""},{"$f":"IF(ROWS(D$5:D61)>$H$1,\"\",INDEX(name,SMALL(IF(ISNUMBER(SEARCH($F$1,عملية)),ROW(عملية)-ROW(data!$I$3)+1),ROWS(drow!D$5:D61))))","v":""},{"$f":"IF(ROWS(E$5:E61)>$H$1,\"\",INDEX(name,SMALL(IF(ISNUMBER(SEARCH($F$1,عملية)),ROW(عملية)-ROW(data!$I$3)+1),ROWS(drow!E$5:E61))))","v":""},{"$f":"IF(ROWS(F$5:F61)>$H$1,\"\",INDEX(name,SMALL(IF(ISNUMBER(SEARCH($F$1,عملية)),ROW(عملية)-ROW(data!$I$3)+1),ROWS(drow!F$5:F61))))","v":""},{"$f":"IF(ROWS(G$5:G61)>$H$1,\"\",INDEX(name,SMALL(IF(ISNUMBER(SEARCH($F$1,عملية)),ROW(عملية)-ROW(data!$I$3)+1),ROWS(drow!G$5:G61))))","v":""},{"$f":"IF(ROWS(H$5:H61)>$H$1,\"\",INDEX(name,SMALL(IF(ISNUMBER(SEARCH($F$1,عملية)),ROW(عملية)-ROW(data!$I$3)+1),ROWS(drow!H$5:H61))))","v":""},{"$f":"IF(ROWS(I$5:I61)>$H$1,\"\",INDEX(name,SMALL(IF(ISNUMBER(SEARCH($F$1,عملية)),ROW(عملية)-ROW(data!$I$3)+1),ROWS(drow!I$5:I61))))","v":""},{"$f":"IF(ROWS(J$5:J61)>$H$1,\"\",INDEX(name,SMALL(IF(ISNUMBER(SEARCH($F$1,عملية)),ROW(عملية)-ROW(data!$I$3)+1),ROWS(drow!J$5:J61))))","v":""}]
[{"$f":"IF(ROWS(A$5:A62)>$H$1,\"\",INDEX(name,SMALL(IF(ISNUMBER(SEARCH($F$1,عملية)),ROW(عملية)-ROW(data!$I$3)+1),ROWS(drow!A$5:A62))))","v":""},{"$f":"IF(ROWS(B$5:B62)>$H$1,\"\",INDEX(name,SMALL(IF(ISNUMBER(SEARCH($F$1,عملية)),ROW(عملية)-ROW(data!$I$3)+1),ROWS(drow!B$5:B62))))","v":""},{"$f":"IF(ROWS(C$5:C62)>$H$1,\"\",INDEX(name,SMALL(IF(ISNUMBER(SEARCH($F$1,عملية)),ROW(عملية)-ROW(data!$I$3)+1),ROWS(drow!C$5:C62))))","v":""},{"$f":"IF(ROWS(D$5:D62)>$H$1,\"\",INDEX(name,SMALL(IF(ISNUMBER(SEARCH($F$1,عملية)),ROW(عملية)-ROW(data!$I$3)+1),ROWS(drow!D$5:D62))))","v":""},{"$f":"IF(ROWS(E$5:E62)>$H$1,\"\",INDEX(name,SMALL(IF(ISNUMBER(SEARCH($F$1,عملية)),ROW(عملية)-ROW(data!$I$3)+1),ROWS(drow!E$5:E62))))","v":""},{"$f":"IF(ROWS(F$5:F62)>$H$1,\"\",INDEX(name,SMALL(IF(ISNUMBER(SEARCH($F$1,عملية)),ROW(عملية)-ROW(data!$I$3)+1),ROWS(drow!F$5:F62))))","v":""},{"$f":"IF(ROWS(G$5:G62)>$H$1,\"\",INDEX(name,SMALL(IF(ISNUMBER(SEARCH($F$1,عملية)),ROW(عملية)-ROW(data!$I$3)+1),ROWS(drow!G$5:G62))))","v":""},{"$f":"IF(ROWS(H$5:H62)>$H$1,\"\",INDEX(name,SMALL(IF(ISNUMBER(SEARCH($F$1,عملية)),ROW(عملية)-ROW(data!$I$3)+1),ROWS(drow!H$5:H62))))","v":""},{"$f":"IF(ROWS(I$5:I62)>$H$1,\"\",INDEX(name,SMALL(IF(ISNUMBER(SEARCH($F$1,عملية)),ROW(عملية)-ROW(data!$I$3)+1),ROWS(drow!I$5:I62))))","v":""},{"$f":"IF(ROWS(J$5:J62)>$H$1,\"\",INDEX(name,SMALL(IF(ISNUMBER(SEARCH($F$1,عملية)),ROW(عملية)-ROW(data!$I$3)+1),ROWS(drow!J$5:J62))))","v":""}]
[{"$f":"IF(ROWS(A$5:A63)>$H$1,\"\",INDEX(name,SMALL(IF(ISNUMBER(SEARCH($F$1,عملية)),ROW(عملية)-ROW(data!$I$3)+1),ROWS(drow!A$5:A63))))","v":""},{"$f":"IF(ROWS(B$5:B63)>$H$1,\"\",INDEX(name,SMALL(IF(ISNUMBER(SEARCH($F$1,عملية)),ROW(عملية)-ROW(data!$I$3)+1),ROWS(drow!B$5:B63))))","v":""},{"$f":"IF(ROWS(C$5:C63)>$H$1,\"\",INDEX(name,SMALL(IF(ISNUMBER(SEARCH($F$1,عملية)),ROW(عملية)-ROW(data!$I$3)+1),ROWS(drow!C$5:C63))))","v":""},{"$f":"IF(ROWS(D$5:D63)>$H$1,\"\",INDEX(name,SMALL(IF(ISNUMBER(SEARCH($F$1,عملية)),ROW(عملية)-ROW(data!$I$3)+1),ROWS(drow!D$5:D63))))","v":""},{"$f":"IF(ROWS(E$5:E63)>$H$1,\"\",INDEX(name,SMALL(IF(ISNUMBER(SEARCH($F$1,عملية)),ROW(عملية)-ROW(data!$I$3)+1),ROWS(drow!E$5:E63))))","v":""},{"$f":"IF(ROWS(F$5:F63)>$H$1,\"\",INDEX(name,SMALL(IF(ISNUMBER(SEARCH($F$1,عملية)),ROW(عملية)-ROW(data!$I$3)+1),ROWS(drow!F$5:F63))))","v":""},{"$f":"IF(ROWS(G$5:G63)>$H$1,\"\",INDEX(name,SMALL(IF(ISNUMBER(SEARCH($F$1,عملية)),ROW(عملية)-ROW(data!$I$3)+1),ROWS(drow!G$5:G63))))","v":""},{"$f":"IF(ROWS(H$5:H63)>$H$1,\"\",INDEX(name,SMALL(IF(ISNUMBER(SEARCH($F$1,عملية)),ROW(عملية)-ROW(data!$I$3)+1),ROWS(drow!H$5:H63))))","v":""},{"$f":"IF(ROWS(I$5:I63)>$H$1,\"\",INDEX(name,SMALL(IF(ISNUMBER(SEARCH($F$1,عملية)),ROW(عملية)-ROW(data!$I$3)+1),ROWS(drow!I$5:I63))))","v":""},{"$f":"IF(ROWS(J$5:J63)>$H$1,\"\",INDEX(name,SMALL(IF(ISNUMBER(SEARCH($F$1,عملية)),ROW(عملية)-ROW(data!$I$3)+1),ROWS(drow!J$5:J63))))","v":""}]
[{"$f":"IF(ROWS(A$5:A64)>$H$1,\"\",INDEX(name,SMALL(IF(ISNUMBER(SEARCH($F$1,عملية)),ROW(عملية)-ROW(data!$I$3)+1),ROWS(drow!A$5:A64))))","v":""},{"$f":"IF(ROWS(B$5:B64)>$H$1,\"\",INDEX(name,SMALL(IF(ISNUMBER(SEARCH($F$1,عملية)),ROW(عملية)-ROW(data!$I$3)+1),ROWS(drow!B$5:B64))))","v":""},{"$f":"IF(ROWS(C$5:C64)>$H$1,\"\",INDEX(name,SMALL(IF(ISNUMBER(SEARCH($F$1,عملية)),ROW(عملية)-ROW(data!$I$3)+1),ROWS(drow!C$5:C64))))","v":""},{"$f":"IF(ROWS(D$5:D64)>$H$1,\"\",INDEX(name,SMALL(IF(ISNUMBER(SEARCH($F$1,عملية)),ROW(عملية)-ROW(data!$I$3)+1),ROWS(drow!D$5:D64))))","v":""},{"$f":"IF(ROWS(E$5:E64)>$H$1,\"\",INDEX(name,SMALL(IF(ISNUMBER(SEARCH($F$1,عملية)),ROW(عملية)-ROW(data!$I$3)+1),ROWS(drow!E$5:E64))))","v":""},{"$f":"IF(ROWS(F$5:F64)>$H$1,\"\",INDEX(name,SMALL(IF(ISNUMBER(SEARCH($F$1,عملية)),ROW(عملية)-ROW(data!$I$3)+1),ROWS(drow!F$5:F64))))","v":""},{"$f":"IF(ROWS(G$5:G64)>$H$1,\"\",INDEX(name,SMALL(IF(ISNUMBER(SEARCH($F$1,عملية)),ROW(عملية)-ROW(data!$I$3)+1),ROWS(drow!G$5:G64))))","v":""},{"$f":"IF(ROWS(H$5:H64)>$H$1,\"\",INDEX(name,SMALL(IF(ISNUMBER(SEARCH($F$1,عملية)),ROW(عملية)-ROW(data!$I$3)+1),ROWS(drow!H$5:H64))))","v":""},{"$f":"IF(ROWS(I$5:I64)>$H$1,\"\",INDEX(name,SMALL(IF(ISNUMBER(SEARCH($F$1,عملية)),ROW(عملية)-ROW(data!$I$3)+1),ROWS(drow!I$5:I64))))","v":""},{"$f":"IF(ROWS(J$5:J64)>$H$1,\"\",INDEX(name,SMALL(IF(ISNUMBER(SEARCH($F$1,عملية)),ROW(عملية)-ROW(data!$I$3)+1),ROWS(drow!J$5:J64))))","v":""}]
[{"$f":"IF(ROWS(A$5:A65)>$H$1,\"\",INDEX(name,SMALL(IF(ISNUMBER(SEARCH($F$1,عملية)),ROW(عملية)-ROW(data!$I$3)+1),ROWS(drow!A$5:A65))))","v":""},{"$f":"IF(ROWS(B$5:B65)>$H$1,\"\",INDEX(name,SMALL(IF(ISNUMBER(SEARCH($F$1,عملية)),ROW(عملية)-ROW(data!$I$3)+1),ROWS(drow!B$5:B65))))","v":""},{"$f":"IF(ROWS(C$5:C65)>$H$1,\"\",INDEX(name,SMALL(IF(ISNUMBER(SEARCH($F$1,عملية)),ROW(عملية)-ROW(data!$I$3)+1),ROWS(drow!C$5:C65))))","v":""},{"$f":"IF(ROWS(D$5:D65)>$H$1,\"\",INDEX(name,SMALL(IF(ISNUMBER(SEARCH($F$1,عملية)),ROW(عملية)-ROW(data!$I$3)+1),ROWS(drow!D$5:D65))))","v":""},{"$f":"IF(ROWS(E$5:E65)>$H$1,\"\",INDEX(name,SMALL(IF(ISNUMBER(SEARCH($F$1,عملية)),ROW(عملية)-ROW(data!$I$3)+1),ROWS(drow!E$5:E65))))","v":""},{"$f":"IF(ROWS(F$5:F65)>$H$1,\"\",INDEX(name,SMALL(IF(ISNUMBER(SEARCH($F$1,عملية)),ROW(عملية)-ROW(data!$I$3)+1),ROWS(drow!F$5:F65))))","v":""},{"$f":"IF(ROWS(G$5:G65)>$H$1,\"\",INDEX(name,SMALL(IF(ISNUMBER(SEARCH($F$1,عملية)),ROW(عملية)-ROW(data!$I$3)+1),ROWS(drow!G$5:G65))))","v":""},{"$f":"IF(ROWS(H$5:H65)>$H$1,\"\",INDEX(name,SMALL(IF(ISNUMBER(SEARCH($F$1,عملية)),ROW(عملية)-ROW(data!$I$3)+1),ROWS(drow!H$5:H65))))","v":""},{"$f":"IF(ROWS(I$5:I65)>$H$1,\"\",INDEX(name,SMALL(IF(ISNUMBER(SEARCH($F$1,عملية)),ROW(عملية)-ROW(data!$I$3)+1),ROWS(drow!I$5:I65))))","v":""},{"$f":"IF(ROWS(J$5:J65)>$H$1,\"\",INDEX(name,SMALL(IF(ISNUMBER(SEARCH($F$1,عملية)),ROW(عملية)-ROW(data!$I$3)+1),ROWS(drow!J$5:J65))))","v":""}]
[{"$f":"IF(ROWS(A$5:A66)>$H$1,\"\",INDEX(name,SMALL(IF(ISNUMBER(SEARCH($F$1,عملية)),ROW(عملية)-ROW(data!$I$3)+1),ROWS(drow!A$5:A66))))","v":""},{"$f":"IF(ROWS(B$5:B66)>$H$1,\"\",INDEX(name,SMALL(IF(ISNUMBER(SEARCH($F$1,عملية)),ROW(عملية)-ROW(data!$I$3)+1),ROWS(drow!B$5:B66))))","v":""},{"$f":"IF(ROWS(C$5:C66)>$H$1,\"\",INDEX(name,SMALL(IF(ISNUMBER(SEARCH($F$1,عملية)),ROW(عملية)-ROW(data!$I$3)+1),ROWS(drow!C$5:C66))))","v":""},{"$f":"IF(ROWS(D$5:D66)>$H$1,\"\",INDEX(name,SMALL(IF(ISNUMBER(SEARCH($F$1,عملية)),ROW(عملية)-ROW(data!$I$3)+1),ROWS(drow!D$5:D66))))","v":""},{"$f":"IF(ROWS(E$5:E66)>$H$1,\"\",INDEX(name,SMALL(IF(ISNUMBER(SEARCH($F$1,عملية)),ROW(عملية)-ROW(data!$I$3)+1),ROWS(drow!E$5:E66))))","v":""},{"$f":"IF(ROWS(F$5:F66)>$H$1,\"\",INDEX(name,SMALL(IF(ISNUMBER(SEARCH($F$1,عملية)),ROW(عملية)-ROW(data!$I$3)+1),ROWS(drow!F$5:F66))))","v":""},{"$f":"IF(ROWS(G$5:G66)>$H$1,\"\",INDEX(name,SMALL(IF(ISNUMBER(SEARCH($F$1,عملية)),ROW(عملية)-ROW(data!$I$3)+1),ROWS(drow!G$5:G66))))","v":""},{"$f":"IF(ROWS(H$5:H66)>$H$1,\"\",INDEX(name,SMALL(IF(ISNUMBER(SEARCH($F$1,عملية)),ROW(عملية)-ROW(data!$I$3)+1),ROWS(drow!H$5:H66))))","v":""},{"$f":"IF(ROWS(I$5:I66)>$H$1,\"\",INDEX(name,SMALL(IF(ISNUMBER(SEARCH($F$1,عملية)),ROW(عملية)-ROW(data!$I$3)+1),ROWS(drow!I$5:I66))))","v":""},{"$f":"IF(ROWS(J$5:J66)>$H$1,\"\",INDEX(name,SMALL(IF(ISNUMBER(SEARCH($F$1,عملية)),ROW(عملية)-ROW(data!$I$3)+1),ROWS(drow!J$5:J66))))","v":""}]
[{"$f":"IF(ROWS(A$5:A67)>$H$1,\"\",INDEX(name,SMALL(IF(ISNUMBER(SEARCH($F$1,عملية)),ROW(عملية)-ROW(data!$I$3)+1),ROWS(drow!A$5:A67))))","v":""},{"$f":"IF(ROWS(B$5:B67)>$H$1,\"\",INDEX(name,SMALL(IF(ISNUMBER(SEARCH($F$1,عملية)),ROW(عملية)-ROW(data!$I$3)+1),ROWS(drow!B$5:B67))))","v":""},{"$f":"IF(ROWS(C$5:C67)>$H$1,\"\",INDEX(name,SMALL(IF(ISNUMBER(SEARCH($F$1,عملية)),ROW(عملية)-ROW(data!$I$3)+1),ROWS(drow!C$5:C67))))","v":""},{"$f":"IF(ROWS(D$5:D67)>$H$1,\"\",INDEX(name,SMALL(IF(ISNUMBER(SEARCH($F$1,عملية)),ROW(عملية)-ROW(data!$I$3)+1),ROWS(drow!D$5:D67))))","v":""},{"$f":"IF(ROWS(E$5:E67)>$H$1,\"\",INDEX(name,SMALL(IF(ISNUMBER(SEARCH($F$1,عملية)),ROW(عملية)-ROW(data!$I$3)+1),ROWS(drow!E$5:E67))))","v":""},{"$f":"IF(ROWS(F$5:F67)>$H$1,\"\",INDEX(name,SMALL(IF(ISNUMBER(SEARCH($F$1,عملية)),ROW(عملية)-ROW(data!$I$3)+1),ROWS(drow!F$5:F67))))","v":""},{"$f":"IF(ROWS(G$5:G67)>$H$1,\"\",INDEX(name,SMALL(IF(ISNUMBER(SEARCH($F$1,عملية)),ROW(عملية)-ROW(data!$I$3)+1),ROWS(drow!G$5:G67))))","v":""},{"$f":"IF(ROWS(H$5:H67)>$H$1,\"\",INDEX(name,SMALL(IF(ISNUMBER(SEARCH($F$1,عملية)),ROW(عملية)-ROW(data!$I$3)+1),ROWS(drow!H$5:H67))))","v":""},{"$f":"IF(ROWS(I$5:I67)>$H$1,\"\",INDEX(name,SMALL(IF(ISNUMBER(SEARCH($F$1,عملية)),ROW(عملية)-ROW(data!$I$3)+1),ROWS(drow!I$5:I67))))","v":""},{"$f":"IF(ROWS(J$5:J67)>$H$1,\"\",INDEX(name,SMALL(IF(ISNUMBER(SEARCH($F$1,عملية)),ROW(عملية)-ROW(data!$I$3)+1),ROWS(drow!J$5:J67))))","v":""}]
[{"$f":"IF(ROWS(A$5:A68)>$H$1,\"\",INDEX(name,SMALL(IF(ISNUMBER(SEARCH($F$1,عملية)),ROW(عملية)-ROW(data!$I$3)+1),ROWS(drow!A$5:A68))))","v":""},{"$f":"IF(ROWS(B$5:B68)>$H$1,\"\",INDEX(name,SMALL(IF(ISNUMBER(SEARCH($F$1,عملية)),ROW(عملية)-ROW(data!$I$3)+1),ROWS(drow!B$5:B68))))","v":""},{"$f":"IF(ROWS(C$5:C68)>$H$1,\"\",INDEX(name,SMALL(IF(ISNUMBER(SEARCH($F$1,عملية)),ROW(عملية)-ROW(data!$I$3)+1),ROWS(drow!C$5:C68))))","v":""},{"$f":"IF(ROWS(D$5:D68)>$H$1,\"\",INDEX(name,SMALL(IF(ISNUMBER(SEARCH($F$1,عملية)),ROW(عملية)-ROW(data!$I$3)+1),ROWS(drow!D$5:D68))))","v":""},{"$f":"IF(ROWS(E$5:E68)>$H$1,\"\",INDEX(name,SMALL(IF(ISNUMBER(SEARCH($F$1,عملية)),ROW(عملية)-ROW(data!$I$3)+1),ROWS(drow!E$5:E68))))","v":""},{"$f":"IF(ROWS(F$5:F68)>$H$1,\"\",INDEX(name,SMALL(IF(ISNUMBER(SEARCH($F$1,عملية)),ROW(عملية)-ROW(data!$I$3)+1),ROWS(drow!F$5:F68))))","v":""},{"$f":"IF(ROWS(G$5:G68)>$H$1,\"\",INDEX(name,SMALL(IF(ISNUMBER(SEARCH($F$1,عملية)),ROW(عملية)-ROW(data!$I$3)+1),ROWS(drow!G$5:G68))))","v":""},{"$f":"IF(ROWS(H$5:H68)>$H$1,\"\",INDEX(name,SMALL(IF(ISNUMBER(SEARCH($F$1,عملية)),ROW(عملية)-ROW(data!$I$3)+1),ROWS(drow!H$5:H68))))","v":""},{"$f":"IF(ROWS(I$5:I68)>$H$1,\"\",INDEX(name,SMALL(IF(ISNUMBER(SEARCH($F$1,عملية)),ROW(عملية)-ROW(data!$I$3)+1),ROWS(drow!I$5:I68))))","v":""},{"$f":"IF(ROWS(J$5:J68)>$H$1,\"\",INDEX(name,SMALL(IF(ISNUMBER(SEARCH($F$1,عملية)),ROW(عملية)-ROW(data!$I$3)+1),ROWS(drow!J$5:J68))))","v":""}]
[{"$f":"IF(ROWS(A$5:A69)>$H$1,\"\",INDEX(name,SMALL(IF(ISNUMBER(SEARCH($F$1,عملية)),ROW(عملية)-ROW(data!$I$3)+1),ROWS(drow!A$5:A69))))","v":""},{"$f":"IF(ROWS(B$5:B69)>$H$1,\"\",INDEX(name,SMALL(IF(ISNUMBER(SEARCH($F$1,عملية)),ROW(عملية)-ROW(data!$I$3)+1),ROWS(drow!B$5:B69))))","v":""},{"$f":"IF(ROWS(C$5:C69)>$H$1,\"\",INDEX(name,SMALL(IF(ISNUMBER(SEARCH($F$1,عملية)),ROW(عملية)-ROW(data!$I$3)+1),ROWS(drow!C$5:C69))))","v":""},{"$f":"IF(ROWS(D$5:D69)>$H$1,\"\",INDEX(name,SMALL(IF(ISNUMBER(SEARCH($F$1,عملية)),ROW(عملية)-ROW(data!$I$3)+1),ROWS(drow!D$5:D69))))","v":""},{"$f":"IF(ROWS(E$5:E69)>$H$1,\"\",INDEX(name,SMALL(IF(ISNUMBER(SEARCH($F$1,عملية)),ROW(عملية)-ROW(data!$I$3)+1),ROWS(drow!E$5:E69))))","v":""},{"$f":"IF(ROWS(F$5:F69)>$H$1,\"\",INDEX(name,SMALL(IF(ISNUMBER(SEARCH($F$1,عملية)),ROW(عملية)-ROW(data!$I$3)+1),ROWS(drow!F$5:F69))))","v":""},{"$f":"IF(ROWS(G$5:G69)>$H$1,\"\",INDEX(name,SMALL(IF(ISNUMBER(SEARCH($F$1,عملية)),ROW(عملية)-ROW(data!$I$3)+1),ROWS(drow!G$5:G69))))","v":""},{"$f":"IF(ROWS(H$5:H69)>$H$1,\"\",INDEX(name,SMALL(IF(ISNUMBER(SEARCH($F$1,عملية)),ROW(عملية)-ROW(data!$I$3)+1),ROWS(drow!H$5:H69))))","v":""},{"$f":"IF(ROWS(I$5:I69)>$H$1,\"\",INDEX(name,SMALL(IF(ISNUMBER(SEARCH($F$1,عملية)),ROW(عملية)-ROW(data!$I$3)+1),ROWS(drow!I$5:I69))))","v":""},{"$f":"IF(ROWS(J$5:J69)>$H$1,\"\",INDEX(name,SMALL(IF(ISNUMBER(SEARCH($F$1,عملية)),ROW(عملية)-ROW(data!$I$3)+1),ROWS(drow!J$5:J69))))","v":""}]
[{"$f":"IF(ROWS(A$5:A70)>$H$1,\"\",INDEX(name,SMALL(IF(ISNUMBER(SEARCH($F$1,عملية)),ROW(عملية)-ROW(data!$I$3)+1),ROWS(drow!A$5:A70))))","v":""},{"$f":"IF(ROWS(B$5:B70)>$H$1,\"\",INDEX(name,SMALL(IF(ISNUMBER(SEARCH($F$1,عملية)),ROW(عملية)-ROW(data!$I$3)+1),ROWS(drow!B$5:B70))))","v":""},{"$f":"IF(ROWS(C$5:C70)>$H$1,\"\",INDEX(name,SMALL(IF(ISNUMBER(SEARCH($F$1,عملية)),ROW(عملية)-ROW(data!$I$3)+1),ROWS(drow!C$5:C70))))","v":""},{"$f":"IF(ROWS(D$5:D70)>$H$1,\"\",INDEX(name,SMALL(IF(ISNUMBER(SEARCH($F$1,عملية)),ROW(عملية)-ROW(data!$I$3)+1),ROWS(drow!D$5:D70))))","v":""},{"$f":"IF(ROWS(E$5:E70)>$H$1,\"\",INDEX(name,SMALL(IF(ISNUMBER(SEARCH($F$1,عملية)),ROW(عملية)-ROW(data!$I$3)+1),ROWS(drow!E$5:E70))))","v":""},{"$f":"IF(ROWS(F$5:F70)>$H$1,\"\",INDEX(name,SMALL(IF(ISNUMBER(SEARCH($F$1,عملية)),ROW(عملية)-ROW(data!$I$3)+1),ROWS(drow!F$5:F70))))","v":""},{"$f":"IF(ROWS(G$5:G70)>$H$1,\"\",INDEX(name,SMALL(IF(ISNUMBER(SEARCH($F$1,عملية)),ROW(عملية)-ROW(data!$I$3)+1),ROWS(drow!G$5:G70))))","v":""},{"$f":"IF(ROWS(H$5:H70)>$H$1,\"\",INDEX(name,SMALL(IF(ISNUMBER(SEARCH($F$1,عملية)),ROW(عملية)-ROW(data!$I$3)+1),ROWS(drow!H$5:H70))))","v":""},{"$f":"IF(ROWS(I$5:I70)>$H$1,\"\",INDEX(name,SMALL(IF(ISNUMBER(SEARCH($F$1,عملية)),ROW(عملية)-ROW(data!$I$3)+1),ROWS(drow!I$5:I70))))","v":""},{"$f":"IF(ROWS(J$5:J70)>$H$1,\"\",INDEX(name,SMALL(IF(ISNUMBER(SEARCH($F$1,عملية)),ROW(عملية)-ROW(data!$I$3)+1),ROWS(drow!J$5:J70))))","v":""}]
[{"$f":"IF(ROWS(A$5:A71)>$H$1,\"\",INDEX(name,SMALL(IF(ISNUMBER(SEARCH($F$1,عملية)),ROW(عملية)-ROW(data!$I$3)+1),ROWS(drow!A$5:A71))))","v":""},{"$f":"IF(ROWS(B$5:B71)>$H$1,\"\",INDEX(name,SMALL(IF(ISNUMBER(SEARCH($F$1,عملية)),ROW(عملية)-ROW(data!$I$3)+1),ROWS(drow!B$5:B71))))","v":""},{"$f":"IF(ROWS(C$5:C71)>$H$1,\"\",INDEX(name,SMALL(IF(ISNUMBER(SEARCH($F$1,عملية)),ROW(عملية)-ROW(data!$I$3)+1),ROWS(drow!C$5:C71))))","v":""},{"$f":"IF(ROWS(D$5:D71)>$H$1,\"\",INDEX(name,SMALL(IF(ISNUMBER(SEARCH($F$1,عملية)),ROW(عملية)-ROW(data!$I$3)+1),ROWS(drow!D$5:D71))))","v":""},{"$f":"IF(ROWS(E$5:E71)>$H$1,\"\",INDEX(name,SMALL(IF(ISNUMBER(SEARCH($F$1,عملية)),ROW(عملية)-ROW(data!$I$3)+1),ROWS(drow!E$5:E71))))","v":""},{"$f":"IF(ROWS(F$5:F71)>$H$1,\"\",INDEX(name,SMALL(IF(ISNUMBER(SEARCH($F$1,عملية)),ROW(عملية)-ROW(data!$I$3)+1),ROWS(drow!F$5:F71))))","v":""},{"$f":"IF(ROWS(G$5:G71)>$H$1,\"\",INDEX(name,SMALL(IF(ISNUMBER(SEARCH($F$1,عملية)),ROW(عملية)-ROW(data!$I$3)+1),ROWS(drow!G$5:G71))))","v":""},{"$f":"IF(ROWS(H$5:H71)>$H$1,\"\",INDEX(name,SMALL(IF(ISNUMBER(SEARCH($F$1,عملية)),ROW(عملية)-ROW(data!$I$3)+1),ROWS(drow!H$5:H71))))","v":""},{"$f":"IF(ROWS(I$5:I71)>$H$1,\"\",INDEX(name,SMALL(IF(ISNUMBER(SEARCH($F$1,عملية)),ROW(عملية)-ROW(data!$I$3)+1),ROWS(drow!I$5:I71))))","v":""},{"$f":"IF(ROWS(J$5:J71)>$H$1,\"\",INDEX(name,SMALL(IF(ISNUMBER(SEARCH($F$1,عملية)),ROW(عملية)-ROW(data!$I$3)+1),ROWS(drow!J$5:J71))))","v":""}]
[{"$f":"IF(ROWS(A$5:A72)>$H$1,\"\",INDEX(name,SMALL(IF(ISNUMBER(SEARCH($F$1,عملية)),ROW(عملية)-ROW(data!$I$3)+1),ROWS(drow!A$5:A72))))","v":""},{"$f":"IF(ROWS(B$5:B72)>$H$1,\"\",INDEX(name,SMALL(IF(ISNUMBER(SEARCH($F$1,عملية)),ROW(عملية)-ROW(data!$I$3)+1),ROWS(drow!B$5:B72))))","v":""},{"$f":"IF(ROWS(C$5:C72)>$H$1,\"\",INDEX(name,SMALL(IF(ISNUMBER(SEARCH($F$1,عملية)),ROW(عملية)-ROW(data!$I$3)+1),ROWS(drow!C$5:C72))))","v":""},{"$f":"IF(ROWS(D$5:D72)>$H$1,\"\",INDEX(name,SMALL(IF(ISNUMBER(SEARCH($F$1,عملية)),ROW(عملية)-ROW(data!$I$3)+1),ROWS(drow!D$5:D72))))","v":""},{"$f":"IF(ROWS(E$5:E72)>$H$1,\"\",INDEX(name,SMALL(IF(ISNUMBER(SEARCH($F$1,عملية)),ROW(عملية)-ROW(data!$I$3)+1),ROWS(drow!E$5:E72))))","v":""},{"$f":"IF(ROWS(F$5:F72)>$H$1,\"\",INDEX(name,SMALL(IF(ISNUMBER(SEARCH($F$1,عملية)),ROW(عملية)-ROW(data!$I$3)+1),ROWS(drow!F$5:F72))))","v":""},{"$f":"IF(ROWS(G$5:G72)>$H$1,\"\",INDEX(name,SMALL(IF(ISNUMBER(SEARCH($F$1,عملية)),ROW(عملية)-ROW(data!$I$3)+1),ROWS(drow!G$5:G72))))","v":""},{"$f":"IF(ROWS(H$5:H72)>$H$1,\"\",INDEX(name,SMALL(IF(ISNUMBER(SEARCH($F$1,عملية)),ROW(عملية)-ROW(data!$I$3)+1),ROWS(drow!H$5:H72))))","v":""},{"$f":"IF(ROWS(I$5:I72)>$H$1,\"\",INDEX(name,SMALL(IF(ISNUMBER(SEARCH($F$1,عملية)),ROW(عملية)-ROW(data!$I$3)+1),ROWS(drow!I$5:I72))))","v":""},{"$f":"IF(ROWS(J$5:J72)>$H$1,\"\",INDEX(name,SMALL(IF(ISNUMBER(SEARCH($F$1,عملية)),ROW(عملية)-ROW(data!$I$3)+1),ROWS(drow!J$5:J72))))","v":""}]
[{"$f":"IF(ROWS(A$5:A73)>$H$1,\"\",INDEX(name,SMALL(IF(ISNUMBER(SEARCH($F$1,عملية)),ROW(عملية)-ROW(data!$I$3)+1),ROWS(drow!A$5:A73))))","v":""},{"$f":"IF(ROWS(B$5:B73)>$H$1,\"\",INDEX(name,SMALL(IF(ISNUMBER(SEARCH($F$1,عملية)),ROW(عملية)-ROW(data!$I$3)+1),ROWS(drow!B$5:B73))))","v":""},{"$f":"IF(ROWS(C$5:C73)>$H$1,\"\",INDEX(name,SMALL(IF(ISNUMBER(SEARCH($F$1,عملية)),ROW(عملية)-ROW(data!$I$3)+1),ROWS(drow!C$5:C73))))","v":""},{"$f":"IF(ROWS(D$5:D73)>$H$1,\"\",INDEX(name,SMALL(IF(ISNUMBER(SEARCH($F$1,عملية)),ROW(عملية)-ROW(data!$I$3)+1),ROWS(drow!D$5:D73))))","v":""},{"$f":"IF(ROWS(E$5:E73)>$H$1,\"\",INDEX(name,SMALL(IF(ISNUMBER(SEARCH($F$1,عملية)),ROW(عملية)-ROW(data!$I$3)+1),ROWS(drow!E$5:E73))))","v":""},{"$f":"IF(ROWS(F$5:F73)>$H$1,\"\",INDEX(name,SMALL(IF(ISNUMBER(SEARCH($F$1,عملية)),ROW(عملية)-ROW(data!$I$3)+1),ROWS(drow!F$5:F73))))","v":""},{"$f":"IF(ROWS(G$5:G73)>$H$1,\"\",INDEX(name,SMALL(IF(ISNUMBER(SEARCH($F$1,عملية)),ROW(عملية)-ROW(data!$I$3)+1),ROWS(drow!G$5:G73))))","v":""},{"$f":"IF(ROWS(H$5:H73)>$H$1,\"\",INDEX(name,SMALL(IF(ISNUMBER(SEARCH($F$1,عملية)),ROW(عملية)-ROW(data!$I$3)+1),ROWS(drow!H$5:H73))))","v":""},{"$f":"IF(ROWS(I$5:I73)>$H$1,\"\",INDEX(name,SMALL(IF(ISNUMBER(SEARCH($F$1,عملية)),ROW(عملية)-ROW(data!$I$3)+1),ROWS(drow!I$5:I73))))","v":""},{"$f":"IF(ROWS(J$5:J73)>$H$1,\"\",INDEX(name,SMALL(IF(ISNUMBER(SEARCH($F$1,عملية)),ROW(عملية)-ROW(data!$I$3)+1),ROWS(drow!J$5:J73))))","v":""}]
[{"$f":"IF(ROWS(A$5:A74)>$H$1,\"\",INDEX(name,SMALL(IF(ISNUMBER(SEARCH($F$1,عملية)),ROW(عملية)-ROW(data!$I$3)+1),ROWS(drow!A$5:A74))))","v":""},{"$f":"IF(ROWS(B$5:B74)>$H$1,\"\",INDEX(name,SMALL(IF(ISNUMBER(SEARCH($F$1,عملية)),ROW(عملية)-ROW(data!$I$3)+1),ROWS(drow!B$5:B74))))","v":""},{"$f":"IF(ROWS(C$5:C74)>$H$1,\"\",INDEX(name,SMALL(IF(ISNUMBER(SEARCH($F$1,عملية)),ROW(عملية)-ROW(data!$I$3)+1),ROWS(drow!C$5:C74))))","v":""},{"$f":"IF(ROWS(D$5:D74)>$H$1,\"\",INDEX(name,SMALL(IF(ISNUMBER(SEARCH($F$1,عملية)),ROW(عملية)-ROW(data!$I$3)+1),ROWS(drow!D$5:D74))))","v":""},{"$f":"IF(ROWS(E$5:E74)>$H$1,\"\",INDEX(name,SMALL(IF(ISNUMBER(SEARCH($F$1,عملية)),ROW(عملية)-ROW(data!$I$3)+1),ROWS(drow!E$5:E74))))","v":""},{"$f":"IF(ROWS(F$5:F74)>$H$1,\"\",INDEX(name,SMALL(IF(ISNUMBER(SEARCH($F$1,عملية)),ROW(عملية)-ROW(data!$I$3)+1),ROWS(drow!F$5:F74))))","v":""},{"$f":"IF(ROWS(G$5:G74)>$H$1,\"\",INDEX(name,SMALL(IF(ISNUMBER(SEARCH($F$1,عملية)),ROW(عملية)-ROW(data!$I$3)+1),ROWS(drow!G$5:G74))))","v":""},{"$f":"IF(ROWS(H$5:H74)>$H$1,\"\",INDEX(name,SMALL(IF(ISNUMBER(SEARCH($F$1,عملية)),ROW(عملية)-ROW(data!$I$3)+1),ROWS(drow!H$5:H74))))","v":""},{"$f":"IF(ROWS(I$5:I74)>$H$1,\"\",INDEX(name,SMALL(IF(ISNUMBER(SEARCH($F$1,عملية)),ROW(عملية)-ROW(data!$I$3)+1),ROWS(drow!I$5:I74))))","v":""},{"$f":"IF(ROWS(J$5:J74)>$H$1,\"\",INDEX(name,SMALL(IF(ISNUMBER(SEARCH($F$1,عملية)),ROW(عملية)-ROW(data!$I$3)+1),ROWS(drow!J$5:J74))))","v":""}]
[{"$f":"IF(ROWS(A$5:A75)>$H$1,\"\",INDEX(name,SMALL(IF(ISNUMBER(SEARCH($F$1,عملية)),ROW(عملية)-ROW(data!$I$3)+1),ROWS(drow!A$5:A75))))","v":""},{"$f":"IF(ROWS(B$5:B75)>$H$1,\"\",INDEX(name,SMALL(IF(ISNUMBER(SEARCH($F$1,عملية)),ROW(عملية)-ROW(data!$I$3)+1),ROWS(drow!B$5:B75))))","v":""},{"$f":"IF(ROWS(C$5:C75)>$H$1,\"\",INDEX(name,SMALL(IF(ISNUMBER(SEARCH($F$1,عملية)),ROW(عملية)-ROW(data!$I$3)+1),ROWS(drow!C$5:C75))))","v":""},{"$f":"IF(ROWS(D$5:D75)>$H$1,\"\",INDEX(name,SMALL(IF(ISNUMBER(SEARCH($F$1,عملية)),ROW(عملية)-ROW(data!$I$3)+1),ROWS(drow!D$5:D75))))","v":""},{"$f":"IF(ROWS(E$5:E75)>$H$1,\"\",INDEX(name,SMALL(IF(ISNUMBER(SEARCH($F$1,عملية)),ROW(عملية)-ROW(data!$I$3)+1),ROWS(drow!E$5:E75))))","v":""},{"$f":"IF(ROWS(F$5:F75)>$H$1,\"\",INDEX(name,SMALL(IF(ISNUMBER(SEARCH($F$1,عملية)),ROW(عملية)-ROW(data!$I$3)+1),ROWS(drow!F$5:F75))))","v":""},{"$f":"IF(ROWS(G$5:G75)>$H$1,\"\",INDEX(name,SMALL(IF(ISNUMBER(SEARCH($F$1,عملية)),ROW(عملية)-ROW(data!$I$3)+1),ROWS(drow!G$5:G75))))","v":""},{"$f":"IF(ROWS(H$5:H75)>$H$1,\"\",INDEX(name,SMALL(IF(ISNUMBER(SEARCH($F$1,عملية)),ROW(عملية)-ROW(data!$I$3)+1),ROWS(drow!H$5:H75))))","v":""},{"$f":"IF(ROWS(I$5:I75)>$H$1,\"\",INDEX(name,SMALL(IF(ISNUMBER(SEARCH($F$1,عملية)),ROW(عملية)-ROW(data!$I$3)+1),ROWS(drow!I$5:I75))))","v":""},{"$f":"IF(ROWS(J$5:J75)>$H$1,\"\",INDEX(name,SMALL(IF(ISNUMBER(SEARCH($F$1,عملية)),ROW(عملية)-ROW(data!$I$3)+1),ROWS(drow!J$5:J75))))","v":""}]
[{"$f":"IF(ROWS(A$5:A76)>$H$1,\"\",INDEX(name,SMALL(IF(ISNUMBER(SEARCH($F$1,عملية)),ROW(عملية)-ROW(data!$I$3)+1),ROWS(drow!A$5:A76))))","v":""},{"$f":"IF(ROWS(B$5:B76)>$H$1,\"\",INDEX(name,SMALL(IF(ISNUMBER(SEARCH($F$1,عملية)),ROW(عملية)-ROW(data!$I$3)+1),ROWS(drow!B$5:B76))))","v":""},{"$f":"IF(ROWS(C$5:C76)>$H$1,\"\",INDEX(name,SMALL(IF(ISNUMBER(SEARCH($F$1,عملية)),ROW(عملية)-ROW(data!$I$3)+1),ROWS(drow!C$5:C76))))","v":""},{"$f":"IF(ROWS(D$5:D76)>$H$1,\"\",INDEX(name,SMALL(IF(ISNUMBER(SEARCH($F$1,عملية)),ROW(عملية)-ROW(data!$I$3)+1),ROWS(drow!D$5:D76))))","v":""},{"$f":"IF(ROWS(E$5:E76)>$H$1,\"\",INDEX(name,SMALL(IF(ISNUMBER(SEARCH($F$1,عملية)),ROW(عملية)-ROW(data!$I$3)+1),ROWS(drow!E$5:E76))))","v":""},{"$f":"IF(ROWS(F$5:F76)>$H$1,\"\",INDEX(name,SMALL(IF(ISNUMBER(SEARCH($F$1,عملية)),ROW(عملية)-ROW(data!$I$3)+1),ROWS(drow!F$5:F76))))","v":""},{"$f":"IF(ROWS(G$5:G76)>$H$1,\"\",INDEX(name,SMALL(IF(ISNUMBER(SEARCH($F$1,عملية)),ROW(عملية)-ROW(data!$I$3)+1),ROWS(drow!G$5:G76))))","v":""},{"$f":"IF(ROWS(H$5:H76)>$H$1,\"\",INDEX(name,SMALL(IF(ISNUMBER(SEARCH($F$1,عملية)),ROW(عملية)-ROW(data!$I$3)+1),ROWS(drow!H$5:H76))))","v":""},{"$f":"IF(ROWS(I$5:I76)>$H$1,\"\",INDEX(name,SMALL(IF(ISNUMBER(SEARCH($F$1,عملية)),ROW(عملية)-ROW(data!$I$3)+1),ROWS(drow!I$5:I76))))","v":""},{"$f":"IF(ROWS(J$5:J76)>$H$1,\"\",INDEX(name,SMALL(IF(ISNUMBER(SEARCH($F$1,عملية)),ROW(عملية)-ROW(data!$I$3)+1),ROWS(drow!J$5:J76))))","v":""}]
[{"$f":"IF(ROWS(A$5:A77)>$H$1,\"\",INDEX(name,SMALL(IF(ISNUMBER(SEARCH($F$1,عملية)),ROW(عملية)-ROW(data!$I$3)+1),ROWS(drow!A$5:A77))))","v":""},{"$f":"IF(ROWS(B$5:B77)>$H$1,\"\",INDEX(name,SMALL(IF(ISNUMBER(SEARCH($F$1,عملية)),ROW(عملية)-ROW(data!$I$3)+1),ROWS(drow!B$5:B77))))","v":""},{"$f":"IF(ROWS(C$5:C77)>$H$1,\"\",INDEX(name,SMALL(IF(ISNUMBER(SEARCH($F$1,عملية)),ROW(عملية)-ROW(data!$I$3)+1),ROWS(drow!C$5:C77))))","v":""},{"$f":"IF(ROWS(D$5:D77)>$H$1,\"\",INDEX(name,SMALL(IF(ISNUMBER(SEARCH($F$1,عملية)),ROW(عملية)-ROW(data!$I$3)+1),ROWS(drow!D$5:D77))))","v":""},{"$f":"IF(ROWS(E$5:E77)>$H$1,\"\",INDEX(name,SMALL(IF(ISNUMBER(SEARCH($F$1,عملية)),ROW(عملية)-ROW(data!$I$3)+1),ROWS(drow!E$5:E77))))","v":""},{"$f":"IF(ROWS(F$5:F77)>$H$1,\"\",INDEX(name,SMALL(IF(ISNUMBER(SEARCH($F$1,عملية)),ROW(عملية)-ROW(data!$I$3)+1),ROWS(drow!F$5:F77))))","v":""},{"$f":"IF(ROWS(G$5:G77)>$H$1,\"\",INDEX(name,SMALL(IF(ISNUMBER(SEARCH($F$1,عملية)),ROW(عملية)-ROW(data!$I$3)+1),ROWS(drow!G$5:G77))))","v":""},{"$f":"IF(ROWS(H$5:H77)>$H$1,\"\",INDEX(name,SMALL(IF(ISNUMBER(SEARCH($F$1,عملية)),ROW(عملية)-ROW(data!$I$3)+1),ROWS(drow!H$5:H77))))","v":""},{"$f":"IF(ROWS(I$5:I77)>$H$1,\"\",INDEX(name,SMALL(IF(ISNUMBER(SEARCH($F$1,عملية)),ROW(عملية)-ROW(data!$I$3)+1),ROWS(drow!I$5:I77))))","v":""},{"$f":"IF(ROWS(J$5:J77)>$H$1,\"\",INDEX(name,SMALL(IF(ISNUMBER(SEARCH($F$1,عملية)),ROW(عملية)-ROW(data!$I$3)+1),ROWS(drow!J$5:J77))))","v":""}]
[{"$f":"IF(ROWS(A$5:A78)>$H$1,\"\",INDEX(name,SMALL(IF(ISNUMBER(SEARCH($F$1,عملية)),ROW(عملية)-ROW(data!$I$3)+1),ROWS(drow!A$5:A78))))","v":""},{"$f":"IF(ROWS(B$5:B78)>$H$1,\"\",INDEX(name,SMALL(IF(ISNUMBER(SEARCH($F$1,عملية)),ROW(عملية)-ROW(data!$I$3)+1),ROWS(drow!B$5:B78))))","v":""},{"$f":"IF(ROWS(C$5:C78)>$H$1,\"\",INDEX(name,SMALL(IF(ISNUMBER(SEARCH($F$1,عملية)),ROW(عملية)-ROW(data!$I$3)+1),ROWS(drow!C$5:C78))))","v":""},{"$f":"IF(ROWS(D$5:D78)>$H$1,\"\",INDEX(name,SMALL(IF(ISNUMBER(SEARCH($F$1,عملية)),ROW(عملية)-ROW(data!$I$3)+1),ROWS(drow!D$5:D78))))","v":""},{"$f":"IF(ROWS(E$5:E78)>$H$1,\"\",INDEX(name,SMALL(IF(ISNUMBER(SEARCH($F$1,عملية)),ROW(عملية)-ROW(data!$I$3)+1),ROWS(drow!E$5:E78))))","v":""},{"$f":"IF(ROWS(F$5:F78)>$H$1,\"\",INDEX(name,SMALL(IF(ISNUMBER(SEARCH($F$1,عملية)),ROW(عملية)-ROW(data!$I$3)+1),ROWS(drow!F$5:F78))))","v":""},{"$f":"IF(ROWS(G$5:G78)>$H$1,\"\",INDEX(name,SMALL(IF(ISNUMBER(SEARCH($F$1,عملية)),ROW(عملية)-ROW(data!$I$3)+1),ROWS(drow!G$5:G78))))","v":""},{"$f":"IF(ROWS(H$5:H78)>$H$1,\"\",INDEX(name,SMALL(IF(ISNUMBER(SEARCH($F$1,عملية)),ROW(عملية)-ROW(data!$I$3)+1),ROWS(drow!H$5:H78))))","v":""},{"$f":"IF(ROWS(I$5:I78)>$H$1,\"\",INDEX(name,SMALL(IF(ISNUMBER(SEARCH($F$1,عملية)),ROW(عملية)-ROW(data!$I$3)+1),ROWS(drow!I$5:I78))))","v":""},{"$f":"IF(ROWS(J$5:J78)>$H$1,\"\",INDEX(name,SMALL(IF(ISNUMBER(SEARCH($F$1,عملية)),ROW(عملية)-ROW(data!$I$3)+1),ROWS(drow!J$5:J78))))","v":""}]
[{"$f":"IF(ROWS(A$5:A79)>$H$1,\"\",INDEX(name,SMALL(IF(ISNUMBER(SEARCH($F$1,عملية)),ROW(عملية)-ROW(data!$I$3)+1),ROWS(drow!A$5:A79))))","v":""},{"$f":"IF(ROWS(B$5:B79)>$H$1,\"\",INDEX(name,SMALL(IF(ISNUMBER(SEARCH($F$1,عملية)),ROW(عملية)-ROW(data!$I$3)+1),ROWS(drow!B$5:B79))))","v":""},{"$f":"IF(ROWS(C$5:C79)>$H$1,\"\",INDEX(name,SMALL(IF(ISNUMBER(SEARCH($F$1,عملية)),ROW(عملية)-ROW(data!$I$3)+1),ROWS(drow!C$5:C79))))","v":""},{"$f":"IF(ROWS(D$5:D79)>$H$1,\"\",INDEX(name,SMALL(IF(ISNUMBER(SEARCH($F$1,عملية)),ROW(عملية)-ROW(data!$I$3)+1),ROWS(drow!D$5:D79))))","v":""},{"$f":"IF(ROWS(E$5:E79)>$H$1,\"\",INDEX(name,SMALL(IF(ISNUMBER(SEARCH($F$1,عملية)),ROW(عملية)-ROW(data!$I$3)+1),ROWS(drow!E$5:E79))))","v":""},{"$f":"IF(ROWS(F$5:F79)>$H$1,\"\",INDEX(name,SMALL(IF(ISNUMBER(SEARCH($F$1,عملية)),ROW(عملية)-ROW(data!$I$3)+1),ROWS(drow!F$5:F79))))","v":""},{"$f":"IF(ROWS(G$5:G79)>$H$1,\"\",INDEX(name,SMALL(IF(ISNUMBER(SEARCH($F$1,عملية)),ROW(عملية)-ROW(data!$I$3)+1),ROWS(drow!G$5:G79))))","v":""},{"$f":"IF(ROWS(H$5:H79)>$H$1,\"\",INDEX(name,SMALL(IF(ISNUMBER(SEARCH($F$1,عملية)),ROW(عملية)-ROW(data!$I$3)+1),ROWS(drow!H$5:H79))))","v":""},{"$f":"IF(ROWS(I$5:I79)>$H$1,\"\",INDEX(name,SMALL(IF(ISNUMBER(SEARCH($F$1,عملية)),ROW(عملية)-ROW(data!$I$3)+1),ROWS(drow!I$5:I79))))","v":""},{"$f":"IF(ROWS(J$5:J79)>$H$1,\"\",INDEX(name,SMALL(IF(ISNUMBER(SEARCH($F$1,عملية)),ROW(عملية)-ROW(data!$I$3)+1),ROWS(drow!J$5:J79))))","v":""}]
[{"$f":"IF(ROWS(A$5:A80)>$H$1,\"\",INDEX(name,SMALL(IF(ISNUMBER(SEARCH($F$1,عملية)),ROW(عملية)-ROW(data!$I$3)+1),ROWS(drow!A$5:A80))))","v":""},{"$f":"IF(ROWS(B$5:B80)>$H$1,\"\",INDEX(name,SMALL(IF(ISNUMBER(SEARCH($F$1,عملية)),ROW(عملية)-ROW(data!$I$3)+1),ROWS(drow!B$5:B80))))","v":""},{"$f":"IF(ROWS(C$5:C80)>$H$1,\"\",INDEX(name,SMALL(IF(ISNUMBER(SEARCH($F$1,عملية)),ROW(عملية)-ROW(data!$I$3)+1),ROWS(drow!C$5:C80))))","v":""},{"$f":"IF(ROWS(D$5:D80)>$H$1,\"\",INDEX(name,SMALL(IF(ISNUMBER(SEARCH($F$1,عملية)),ROW(عملية)-ROW(data!$I$3)+1),ROWS(drow!D$5:D80))))","v":""},{"$f":"IF(ROWS(E$5:E80)>$H$1,\"\",INDEX(name,SMALL(IF(ISNUMBER(SEARCH($F$1,عملية)),ROW(عملية)-ROW(data!$I$3)+1),ROWS(drow!E$5:E80))))","v":""},{"$f":"IF(ROWS(F$5:F80)>$H$1,\"\",INDEX(name,SMALL(IF(ISNUMBER(SEARCH($F$1,عملية)),ROW(عملية)-ROW(data!$I$3)+1),ROWS(drow!F$5:F80))))","v":""},{"$f":"IF(ROWS(G$5:G80)>$H$1,\"\",INDEX(name,SMALL(IF(ISNUMBER(SEARCH($F$1,عملية)),ROW(عملية)-ROW(data!$I$3)+1),ROWS(drow!G$5:G80))))","v":""},{"$f":"IF(ROWS(H$5:H80)>$H$1,\"\",INDEX(name,SMALL(IF(ISNUMBER(SEARCH($F$1,عملية)),ROW(عملية)-ROW(data!$I$3)+1),ROWS(drow!H$5:H80))))","v":""},{"$f":"IF(ROWS(I$5:I80)>$H$1,\"\",INDEX(name,SMALL(IF(ISNUMBER(SEARCH($F$1,عملية)),ROW(عملية)-ROW(data!$I$3)+1),ROWS(drow!I$5:I80))))","v":""},{"$f":"IF(ROWS(J$5:J80)>$H$1,\"\",INDEX(name,SMALL(IF(ISNUMBER(SEARCH($F$1,عملية)),ROW(عملية)-ROW(data!$I$3)+1),ROWS(drow!J$5:J80))))","v":""}]
[{"$f":"IF(ROWS(A$5:A81)>$H$1,\"\",INDEX(name,SMALL(IF(ISNUMBER(SEARCH($F$1,عملية)),ROW(عملية)-ROW(data!$I$3)+1),ROWS(drow!A$5:A81))))","v":""},{"$f":"IF(ROWS(B$5:B81)>$H$1,\"\",INDEX(name,SMALL(IF(ISNUMBER(SEARCH($F$1,عملية)),ROW(عملية)-ROW(data!$I$3)+1),ROWS(drow!B$5:B81))))","v":""},{"$f":"IF(ROWS(C$5:C81)>$H$1,\"\",INDEX(name,SMALL(IF(ISNUMBER(SEARCH($F$1,عملية)),ROW(عملية)-ROW(data!$I$3)+1),ROWS(drow!C$5:C81))))","v":""},{"$f":"IF(ROWS(D$5:D81)>$H$1,\"\",INDEX(name,SMALL(IF(ISNUMBER(SEARCH($F$1,عملية)),ROW(عملية)-ROW(data!$I$3)+1),ROWS(drow!D$5:D81))))","v":""},{"$f":"IF(ROWS(E$5:E81)>$H$1,\"\",INDEX(name,SMALL(IF(ISNUMBER(SEARCH($F$1,عملية)),ROW(عملية)-ROW(data!$I$3)+1),ROWS(drow!E$5:E81))))","v":""},{"$f":"IF(ROWS(F$5:F81)>$H$1,\"\",INDEX(name,SMALL(IF(ISNUMBER(SEARCH($F$1,عملية)),ROW(عملية)-ROW(data!$I$3)+1),ROWS(drow!F$5:F81))))","v":""},{"$f":"IF(ROWS(G$5:G81)>$H$1,\"\",INDEX(name,SMALL(IF(ISNUMBER(SEARCH($F$1,عملية)),ROW(عملية)-ROW(data!$I$3)+1),ROWS(drow!G$5:G81))))","v":""},{"$f":"IF(ROWS(H$5:H81)>$H$1,\"\",INDEX(name,SMALL(IF(ISNUMBER(SEARCH($F$1,عملية)),ROW(عملية)-ROW(data!$I$3)+1),ROWS(drow!H$5:H81))))","v":""},{"$f":"IF(ROWS(I$5:I81)>$H$1,\"\",INDEX(name,SMALL(IF(ISNUMBER(SEARCH($F$1,عملية)),ROW(عملية)-ROW(data!$I$3)+1),ROWS(drow!I$5:I81))))","v":""},{"$f":"IF(ROWS(J$5:J81)>$H$1,\"\",INDEX(name,SMALL(IF(ISNUMBER(SEARCH($F$1,عملية)),ROW(عملية)-ROW(data!$I$3)+1),ROWS(drow!J$5:J81))))","v":""}]
[{"$f":"IF(ROWS(A$5:A82)>$H$1,\"\",INDEX(name,SMALL(IF(ISNUMBER(SEARCH($F$1,عملية)),ROW(عملية)-ROW(data!$I$3)+1),ROWS(drow!A$5:A82))))","v":""},{"$f":"IF(ROWS(B$5:B82)>$H$1,\"\",INDEX(name,SMALL(IF(ISNUMBER(SEARCH($F$1,عملية)),ROW(عملية)-ROW(data!$I$3)+1),ROWS(drow!B$5:B82))))","v":""},{"$f":"IF(ROWS(C$5:C82)>$H$1,\"\",INDEX(name,SMALL(IF(ISNUMBER(SEARCH($F$1,عملية)),ROW(عملية)-ROW(data!$I$3)+1),ROWS(drow!C$5:C82))))","v":""},{"$f":"IF(ROWS(D$5:D82)>$H$1,\"\",INDEX(name,SMALL(IF(ISNUMBER(SEARCH($F$1,عملية)),ROW(عملية)-ROW(data!$I$3)+1),ROWS(drow!D$5:D82))))","v":""},{"$f":"IF(ROWS(E$5:E82)>$H$1,\"\",INDEX(name,SMALL(IF(ISNUMBER(SEARCH($F$1,عملية)),ROW(عملية)-ROW(data!$I$3)+1),ROWS(drow!E$5:E82))))","v":""},{"$f":"IF(ROWS(F$5:F82)>$H$1,\"\",INDEX(name,SMALL(IF(ISNUMBER(SEARCH($F$1,عملية)),ROW(عملية)-ROW(data!$I$3)+1),ROWS(drow!F$5:F82))))","v":""},{"$f":"IF(ROWS(G$5:G82)>$H$1,\"\",INDEX(name,SMALL(IF(ISNUMBER(SEARCH($F$1,عملية)),ROW(عملية)-ROW(data!$I$3)+1),ROWS(drow!G$5:G82))))","v":""},{"$f":"IF(ROWS(H$5:H82)>$H$1,\"\",INDEX(name,SMALL(IF(ISNUMBER(SEARCH($F$1,عملية)),ROW(عملية)-ROW(data!$I$3)+1),ROWS(drow!H$5:H82))))","v":""},{"$f":"IF(ROWS(I$5:I82)>$H$1,\"\",INDEX(name,SMALL(IF(ISNUMBER(SEARCH($F$1,عملية)),ROW(عملية)-ROW(data!$I$3)+1),ROWS(drow!I$5:I82))))","v":""},{"$f":"IF(ROWS(J$5:J82)>$H$1,\"\",INDEX(name,SMALL(IF(ISNUMBER(SEARCH($F$1,عملية)),ROW(عملية)-ROW(data!$I$3)+1),ROWS(drow!J$5:J82))))","v":""}]
[{"$f":"IF(ROWS(A$5:A83)>$H$1,\"\",INDEX(name,SMALL(IF(ISNUMBER(SEARCH($F$1,عملية)),ROW(عملية)-ROW(data!$I$3)+1),ROWS(drow!A$5:A83))))","v":""},{"$f":"IF(ROWS(B$5:B83)>$H$1,\"\",INDEX(name,SMALL(IF(ISNUMBER(SEARCH($F$1,عملية)),ROW(عملية)-ROW(data!$I$3)+1),ROWS(drow!B$5:B83))))","v":""},{"$f":"IF(ROWS(C$5:C83)>$H$1,\"\",INDEX(name,SMALL(IF(ISNUMBER(SEARCH($F$1,عملية)),ROW(عملية)-ROW(data!$I$3)+1),ROWS(drow!C$5:C83))))","v":""},{"$f":"IF(ROWS(D$5:D83)>$H$1,\"\",INDEX(name,SMALL(IF(ISNUMBER(SEARCH($F$1,عملية)),ROW(عملية)-ROW(data!$I$3)+1),ROWS(drow!D$5:D83))))","v":""},{"$f":"IF(ROWS(E$5:E83)>$H$1,\"\",INDEX(name,SMALL(IF(ISNUMBER(SEARCH($F$1,عملية)),ROW(عملية)-ROW(data!$I$3)+1),ROWS(drow!E$5:E83))))","v":""},{"$f":"IF(ROWS(F$5:F83)>$H$1,\"\",INDEX(name,SMALL(IF(ISNUMBER(SEARCH($F$1,عملية)),ROW(عملية)-ROW(data!$I$3)+1),ROWS(drow!F$5:F83))))","v":""},{"$f":"IF(ROWS(G$5:G83)>$H$1,\"\",INDEX(name,SMALL(IF(ISNUMBER(SEARCH($F$1,عملية)),ROW(عملية)-ROW(data!$I$3)+1),ROWS(drow!G$5:G83))))","v":""},{"$f":"IF(ROWS(H$5:H83)>$H$1,\"\",INDEX(name,SMALL(IF(ISNUMBER(SEARCH($F$1,عملية)),ROW(عملية)-ROW(data!$I$3)+1),ROWS(drow!H$5:H83))))","v":""},{"$f":"IF(ROWS(I$5:I83)>$H$1,\"\",INDEX(name,SMALL(IF(ISNUMBER(SEARCH($F$1,عملية)),ROW(عملية)-ROW(data!$I$3)+1),ROWS(drow!I$5:I83))))","v":""},{"$f":"IF(ROWS(J$5:J83)>$H$1,\"\",INDEX(name,SMALL(IF(ISNUMBER(SEARCH($F$1,عملية)),ROW(عملية)-ROW(data!$I$3)+1),ROWS(drow!J$5:J83))))","v":""}]
[{"$f":"IF(ROWS(A$5:A84)>$H$1,\"\",INDEX(name,SMALL(IF(ISNUMBER(SEARCH($F$1,عملية)),ROW(عملية)-ROW(data!$I$3)+1),ROWS(drow!A$5:A84))))","v":""},{"$f":"IF(ROWS(B$5:B84)>$H$1,\"\",INDEX(name,SMALL(IF(ISNUMBER(SEARCH($F$1,عملية)),ROW(عملية)-ROW(data!$I$3)+1),ROWS(drow!B$5:B84))))","v":""},{"$f":"IF(ROWS(C$5:C84)>$H$1,\"\",INDEX(name,SMALL(IF(ISNUMBER(SEARCH($F$1,عملية)),ROW(عملية)-ROW(data!$I$3)+1),ROWS(drow!C$5:C84))))","v":""},{"$f":"IF(ROWS(D$5:D84)>$H$1,\"\",INDEX(name,SMALL(IF(ISNUMBER(SEARCH($F$1,عملية)),ROW(عملية)-ROW(data!$I$3)+1),ROWS(drow!D$5:D84))))","v":""},{"$f":"IF(ROWS(E$5:E84)>$H$1,\"\",INDEX(name,SMALL(IF(ISNUMBER(SEARCH($F$1,عملية)),ROW(عملية)-ROW(data!$I$3)+1),ROWS(drow!E$5:E84))))","v":""},{"$f":"IF(ROWS(F$5:F84)>$H$1,\"\",INDEX(name,SMALL(IF(ISNUMBER(SEARCH($F$1,عملية)),ROW(عملية)-ROW(data!$I$3)+1),ROWS(drow!F$5:F84))))","v":""},{"$f":"IF(ROWS(G$5:G84)>$H$1,\"\",INDEX(name,SMALL(IF(ISNUMBER(SEARCH($F$1,عملية)),ROW(عملية)-ROW(data!$I$3)+1),ROWS(drow!G$5:G84))))","v":""},{"$f":"IF(ROWS(H$5:H84)>$H$1,\"\",INDEX(name,SMALL(IF(ISNUMBER(SEARCH($F$1,عملية)),ROW(عملية)-ROW(data!$I$3)+1),ROWS(drow!H$5:H84))))","v":""},{"$f":"IF(ROWS(I$5:I84)>$H$1,\"\",INDEX(name,SMALL(IF(ISNUMBER(SEARCH($F$1,عملية)),ROW(عملية)-ROW(data!$I$3)+1),ROWS(drow!I$5:I84))))","v":""},{"$f":"IF(ROWS(J$5:J84)>$H$1,\"\",INDEX(name,SMALL(IF(ISNUMBER(SEARCH($F$1,عملية)),ROW(عملية)-ROW(data!$I$3)+1),ROWS(drow!J$5:J84))))","v":""}]
[{"$f":"IF(ROWS(A$5:A85)>$H$1,\"\",INDEX(name,SMALL(IF(ISNUMBER(SEARCH($F$1,عملية)),ROW(عملية)-ROW(data!$I$3)+1),ROWS(drow!A$5:A85))))","v":""},{"$f":"IF(ROWS(B$5:B85)>$H$1,\"\",INDEX(name,SMALL(IF(ISNUMBER(SEARCH($F$1,عملية)),ROW(عملية)-ROW(data!$I$3)+1),ROWS(drow!B$5:B85))))","v":""},{"$f":"IF(ROWS(C$5:C85)>$H$1,\"\",INDEX(name,SMALL(IF(ISNUMBER(SEARCH($F$1,عملية)),ROW(عملية)-ROW(data!$I$3)+1),ROWS(drow!C$5:C85))))","v":""},{"$f":"IF(ROWS(D$5:D85)>$H$1,\"\",INDEX(name,SMALL(IF(ISNUMBER(SEARCH($F$1,عملية)),ROW(عملية)-ROW(data!$I$3)+1),ROWS(drow!D$5:D85))))","v":""},{"$f":"IF(ROWS(E$5:E85)>$H$1,\"\",INDEX(name,SMALL(IF(ISNUMBER(SEARCH($F$1,عملية)),ROW(عملية)-ROW(data!$I$3)+1),ROWS(drow!E$5:E85))))","v":""},{"$f":"IF(ROWS(F$5:F85)>$H$1,\"\",INDEX(name,SMALL(IF(ISNUMBER(SEARCH($F$1,عملية)),ROW(عملية)-ROW(data!$I$3)+1),ROWS(drow!F$5:F85))))","v":""},{"$f":"IF(ROWS(G$5:G85)>$H$1,\"\",INDEX(name,SMALL(IF(ISNUMBER(SEARCH($F$1,عملية)),ROW(عملية)-ROW(data!$I$3)+1),ROWS(drow!G$5:G85))))","v":""},{"$f":"IF(ROWS(H$5:H85)>$H$1,\"\",INDEX(name,SMALL(IF(ISNUMBER(SEARCH($F$1,عملية)),ROW(عملية)-ROW(data!$I$3)+1),ROWS(drow!H$5:H85))))","v":""},{"$f":"IF(ROWS(I$5:I85)>$H$1,\"\",INDEX(name,SMALL(IF(ISNUMBER(SEARCH($F$1,عملية)),ROW(عملية)-ROW(data!$I$3)+1),ROWS(drow!I$5:I85))))","v":""},{"$f":"IF(ROWS(J$5:J85)>$H$1,\"\",INDEX(name,SMALL(IF(ISNUMBER(SEARCH($F$1,عملية)),ROW(عملية)-ROW(data!$I$3)+1),ROWS(drow!J$5:J85))))","v":""}]
[{"$f":"IF(ROWS(A$5:A86)>$H$1,\"\",INDEX(name,SMALL(IF(ISNUMBER(SEARCH($F$1,عملية)),ROW(عملية)-ROW(data!$I$3)+1),ROWS(drow!A$5:A86))))","v":""},{"$f":"IF(ROWS(B$5:B86)>$H$1,\"\",INDEX(name,SMALL(IF(ISNUMBER(SEARCH($F$1,عملية)),ROW(عملية)-ROW(data!$I$3)+1),ROWS(drow!B$5:B86))))","v":""},{"$f":"IF(ROWS(C$5:C86)>$H$1,\"\",INDEX(name,SMALL(IF(ISNUMBER(SEARCH($F$1,عملية)),ROW(عملية)-ROW(data!$I$3)+1),ROWS(drow!C$5:C86))))","v":""},{"$f":"IF(ROWS(D$5:D86)>$H$1,\"\",INDEX(name,SMALL(IF(ISNUMBER(SEARCH($F$1,عملية)),ROW(عملية)-ROW(data!$I$3)+1),ROWS(drow!D$5:D86))))","v":""},{"$f":"IF(ROWS(E$5:E86)>$H$1,\"\",INDEX(name,SMALL(IF(ISNUMBER(SEARCH($F$1,عملية)),ROW(عملية)-ROW(data!$I$3)+1),ROWS(drow!E$5:E86))))","v":""},{"$f":"IF(ROWS(F$5:F86)>$H$1,\"\",INDEX(name,SMALL(IF(ISNUMBER(SEARCH($F$1,عملية)),ROW(عملية)-ROW(data!$I$3)+1),ROWS(drow!F$5:F86))))","v":""},{"$f":"IF(ROWS(G$5:G86)>$H$1,\"\",INDEX(name,SMALL(IF(ISNUMBER(SEARCH($F$1,عملية)),ROW(عملية)-ROW(data!$I$3)+1),ROWS(drow!G$5:G86))))","v":""},{"$f":"IF(ROWS(H$5:H86)>$H$1,\"\",INDEX(name,SMALL(IF(ISNUMBER(SEARCH($F$1,عملية)),ROW(عملية)-ROW(data!$I$3)+1),ROWS(drow!H$5:H86))))","v":""},{"$f":"IF(ROWS(I$5:I86)>$H$1,\"\",INDEX(name,SMALL(IF(ISNUMBER(SEARCH($F$1,عملية)),ROW(عملية)-ROW(data!$I$3)+1),ROWS(drow!I$5:I86))))","v":""},{"$f":"IF(ROWS(J$5:J86)>$H$1,\"\",INDEX(name,SMALL(IF(ISNUMBER(SEARCH($F$1,عملية)),ROW(عملية)-ROW(data!$I$3)+1),ROWS(drow!J$5:J86))))","v":""}]
[{"$f":"IF(ROWS(A$5:A87)>$H$1,\"\",INDEX(name,SMALL(IF(ISNUMBER(SEARCH($F$1,عملية)),ROW(عملية)-ROW(data!$I$3)+1),ROWS(drow!A$5:A87))))","v":""},{"$f":"IF(ROWS(B$5:B87)>$H$1,\"\",INDEX(name,SMALL(IF(ISNUMBER(SEARCH($F$1,عملية)),ROW(عملية)-ROW(data!$I$3)+1),ROWS(drow!B$5:B87))))","v":""},{"$f":"IF(ROWS(C$5:C87)>$H$1,\"\",INDEX(name,SMALL(IF(ISNUMBER(SEARCH($F$1,عملية)),ROW(عملية)-ROW(data!$I$3)+1),ROWS(drow!C$5:C87))))","v":""},{"$f":"IF(ROWS(D$5:D87)>$H$1,\"\",INDEX(name,SMALL(IF(ISNUMBER(SEARCH($F$1,عملية)),ROW(عملية)-ROW(data!$I$3)+1),ROWS(drow!D$5:D87))))","v":""},{"$f":"IF(ROWS(E$5:E87)>$H$1,\"\",INDEX(name,SMALL(IF(ISNUMBER(SEARCH($F$1,عملية)),ROW(عملية)-ROW(data!$I$3)+1),ROWS(drow!E$5:E87))))","v":""},{"$f":"IF(ROWS(F$5:F87)>$H$1,\"\",INDEX(name,SMALL(IF(ISNUMBER(SEARCH($F$1,عملية)),ROW(عملية)-ROW(data!$I$3)+1),ROWS(drow!F$5:F87))))","v":""},{"$f":"IF(ROWS(G$5:G87)>$H$1,\"\",INDEX(name,SMALL(IF(ISNUMBER(SEARCH($F$1,عملية)),ROW(عملية)-ROW(data!$I$3)+1),ROWS(drow!G$5:G87))))","v":""},{"$f":"IF(ROWS(H$5:H87)>$H$1,\"\",INDEX(name,SMALL(IF(ISNUMBER(SEARCH($F$1,عملية)),ROW(عملية)-ROW(data!$I$3)+1),ROWS(drow!H$5:H87))))","v":""},{"$f":"IF(ROWS(I$5:I87)>$H$1,\"\",INDEX(name,SMALL(IF(ISNUMBER(SEARCH($F$1,عملية)),ROW(عملية)-ROW(data!$I$3)+1),ROWS(drow!I$5:I87))))","v":""},{"$f":"IF(ROWS(J$5:J87)>$H$1,\"\",INDEX(name,SMALL(IF(ISNUMBER(SEARCH($F$1,عملية)),ROW(عملية)-ROW(data!$I$3)+1),ROWS(drow!J$5:J87))))","v":""}]
[{"$f":"IF(ROWS(A$5:A88)>$H$1,\"\",INDEX(name,SMALL(IF(ISNUMBER(SEARCH($F$1,عملية)),ROW(عملية)-ROW(data!$I$3)+1),ROWS(drow!A$5:A88))))","v":""},{"$f":"IF(ROWS(B$5:B88)>$H$1,\"\",INDEX(name,SMALL(IF(ISNUMBER(SEARCH($F$1,عملية)),ROW(عملية)-ROW(data!$I$3)+1),ROWS(drow!B$5:B88))))","v":""},{"$f":"IF(ROWS(C$5:C88)>$H$1,\"\",INDEX(name,SMALL(IF(ISNUMBER(SEARCH($F$1,عملية)),ROW(عملية)-ROW(data!$I$3)+1),ROWS(drow!C$5:C88))))","v":""},{"$f":"IF(ROWS(D$5:D88)>$H$1,\"\",INDEX(name,SMALL(IF(ISNUMBER(SEARCH($F$1,عملية)),ROW(عملية)-ROW(data!$I$3)+1),ROWS(drow!D$5:D88))))","v":""},{"$f":"IF(ROWS(E$5:E88)>$H$1,\"\",INDEX(name,SMALL(IF(ISNUMBER(SEARCH($F$1,عملية)),ROW(عملية)-ROW(data!$I$3)+1),ROWS(drow!E$5:E88))))","v":""},{"$f":"IF(ROWS(F$5:F88)>$H$1,\"\",INDEX(name,SMALL(IF(ISNUMBER(SEARCH($F$1,عملية)),ROW(عملية)-ROW(data!$I$3)+1),ROWS(drow!F$5:F88))))","v":""},{"$f":"IF(ROWS(G$5:G88)>$H$1,\"\",INDEX(name,SMALL(IF(ISNUMBER(SEARCH($F$1,عملية)),ROW(عملية)-ROW(data!$I$3)+1),ROWS(drow!G$5:G88))))","v":""},{"$f":"IF(ROWS(H$5:H88)>$H$1,\"\",INDEX(name,SMALL(IF(ISNUMBER(SEARCH($F$1,عملية)),ROW(عملية)-ROW(data!$I$3)+1),ROWS(drow!H$5:H88))))","v":""},{"$f":"IF(ROWS(I$5:I88)>$H$1,\"\",INDEX(name,SMALL(IF(ISNUMBER(SEARCH($F$1,عملية)),ROW(عملية)-ROW(data!$I$3)+1),ROWS(drow!I$5:I88))))","v":""},{"$f":"IF(ROWS(J$5:J88)>$H$1,\"\",INDEX(name,SMALL(IF(ISNUMBER(SEARCH($F$1,عملية)),ROW(عملية)-ROW(data!$I$3)+1),ROWS(drow!J$5:J88))))","v":""}]
[{"$f":"IF(ROWS(A$5:A89)>$H$1,\"\",INDEX(name,SMALL(IF(ISNUMBER(SEARCH($F$1,عملية)),ROW(عملية)-ROW(data!$I$3)+1),ROWS(drow!A$5:A89))))","v":""},{"$f":"IF(ROWS(B$5:B89)>$H$1,\"\",INDEX(name,SMALL(IF(ISNUMBER(SEARCH($F$1,عملية)),ROW(عملية)-ROW(data!$I$3)+1),ROWS(drow!B$5:B89))))","v":""},{"$f":"IF(ROWS(C$5:C89)>$H$1,\"\",INDEX(name,SMALL(IF(ISNUMBER(SEARCH($F$1,عملية)),ROW(عملية)-ROW(data!$I$3)+1),ROWS(drow!C$5:C89))))","v":""},{"$f":"IF(ROWS(D$5:D89)>$H$1,\"\",INDEX(name,SMALL(IF(ISNUMBER(SEARCH($F$1,عملية)),ROW(عملية)-ROW(data!$I$3)+1),ROWS(drow!D$5:D89))))","v":""},{"$f":"IF(ROWS(E$5:E89)>$H$1,\"\",INDEX(name,SMALL(IF(ISNUMBER(SEARCH($F$1,عملية)),ROW(عملية)-ROW(data!$I$3)+1),ROWS(drow!E$5:E89))))","v":""},{"$f":"IF(ROWS(F$5:F89)>$H$1,\"\",INDEX(name,SMALL(IF(ISNUMBER(SEARCH($F$1,عملية)),ROW(عملية)-ROW(data!$I$3)+1),ROWS(drow!F$5:F89))))","v":""},{"$f":"IF(ROWS(G$5:G89)>$H$1,\"\",INDEX(name,SMALL(IF(ISNUMBER(SEARCH($F$1,عملية)),ROW(عملية)-ROW(data!$I$3)+1),ROWS(drow!G$5:G89))))","v":""},{"$f":"IF(ROWS(H$5:H89)>$H$1,\"\",INDEX(name,SMALL(IF(ISNUMBER(SEARCH($F$1,عملية)),ROW(عملية)-ROW(data!$I$3)+1),ROWS(drow!H$5:H89))))","v":""},{"$f":"IF(ROWS(I$5:I89)>$H$1,\"\",INDEX(name,SMALL(IF(ISNUMBER(SEARCH($F$1,عملية)),ROW(عملية)-ROW(data!$I$3)+1),ROWS(drow!I$5:I89))))","v":""},{"$f":"IF(ROWS(J$5:J89)>$H$1,\"\",INDEX(name,SMALL(IF(ISNUMBER(SEARCH($F$1,عملية)),ROW(عملية)-ROW(data!$I$3)+1),ROWS(drow!J$5:J89))))","v":""}]
[{"$f":"IF(ROWS(A$5:A90)>$H$1,\"\",INDEX(name,SMALL(IF(ISNUMBER(SEARCH($F$1,عملية)),ROW(عملية)-ROW(data!$I$3)+1),ROWS(drow!A$5:A90))))","v":""},{"$f":"IF(ROWS(B$5:B90)>$H$1,\"\",INDEX(name,SMALL(IF(ISNUMBER(SEARCH($F$1,عملية)),ROW(عملية)-ROW(data!$I$3)+1),ROWS(drow!B$5:B90))))","v":""},{"$f":"IF(ROWS(C$5:C90)>$H$1,\"\",INDEX(name,SMALL(IF(ISNUMBER(SEARCH($F$1,عملية)),ROW(عملية)-ROW(data!$I$3)+1),ROWS(drow!C$5:C90))))","v":""},{"$f":"IF(ROWS(D$5:D90)>$H$1,\"\",INDEX(name,SMALL(IF(ISNUMBER(SEARCH($F$1,عملية)),ROW(عملية)-ROW(data!$I$3)+1),ROWS(drow!D$5:D90))))","v":""},{"$f":"IF(ROWS(E$5:E90)>$H$1,\"\",INDEX(name,SMALL(IF(ISNUMBER(SEARCH($F$1,عملية)),ROW(عملية)-ROW(data!$I$3)+1),ROWS(drow!E$5:E90))))","v":""},{"$f":"IF(ROWS(F$5:F90)>$H$1,\"\",INDEX(name,SMALL(IF(ISNUMBER(SEARCH($F$1,عملية)),ROW(عملية)-ROW(data!$I$3)+1),ROWS(drow!F$5:F90))))","v":""},{"$f":"IF(ROWS(G$5:G90)>$H$1,\"\",INDEX(name,SMALL(IF(ISNUMBER(SEARCH($F$1,عملية)),ROW(عملية)-ROW(data!$I$3)+1),ROWS(drow!G$5:G90))))","v":""},{"$f":"IF(ROWS(H$5:H90)>$H$1,\"\",INDEX(name,SMALL(IF(ISNUMBER(SEARCH($F$1,عملية)),ROW(عملية)-ROW(data!$I$3)+1),ROWS(drow!H$5:H90))))","v":""},{"$f":"IF(ROWS(I$5:I90)>$H$1,\"\",INDEX(name,SMALL(IF(ISNUMBER(SEARCH($F$1,عملية)),ROW(عملية)-ROW(data!$I$3)+1),ROWS(drow!I$5:I90))))","v":""},{"$f":"IF(ROWS(J$5:J90)>$H$1,\"\",INDEX(name,SMALL(IF(ISNUMBER(SEARCH($F$1,عملية)),ROW(عملية)-ROW(data!$I$3)+1),ROWS(drow!J$5:J90))))","v":""}]
[{"$f":"IF(ROWS(A$5:A91)>$H$1,\"\",INDEX(name,SMALL(IF(ISNUMBER(SEARCH($F$1,عملية)),ROW(عملية)-ROW(data!$I$3)+1),ROWS(drow!A$5:A91))))","v":""},{"$f":"IF(ROWS(B$5:B91)>$H$1,\"\",INDEX(name,SMALL(IF(ISNUMBER(SEARCH($F$1,عملية)),ROW(عملية)-ROW(data!$I$3)+1),ROWS(drow!B$5:B91))))","v":""},{"$f":"IF(ROWS(C$5:C91)>$H$1,\"\",INDEX(name,SMALL(IF(ISNUMBER(SEARCH($F$1,عملية)),ROW(عملية)-ROW(data!$I$3)+1),ROWS(drow!C$5:C91))))","v":""},{"$f":"IF(ROWS(D$5:D91)>$H$1,\"\",INDEX(name,SMALL(IF(ISNUMBER(SEARCH($F$1,عملية)),ROW(عملية)-ROW(data!$I$3)+1),ROWS(drow!D$5:D91))))","v":""},{"$f":"IF(ROWS(E$5:E91)>$H$1,\"\",INDEX(name,SMALL(IF(ISNUMBER(SEARCH($F$1,عملية)),ROW(عملية)-ROW(data!$I$3)+1),ROWS(drow!E$5:E91))))","v":""},{"$f":"IF(ROWS(F$5:F91)>$H$1,\"\",INDEX(name,SMALL(IF(ISNUMBER(SEARCH($F$1,عملية)),ROW(عملية)-ROW(data!$I$3)+1),ROWS(drow!F$5:F91))))","v":""},{"$f":"IF(ROWS(G$5:G91)>$H$1,\"\",INDEX(name,SMALL(IF(ISNUMBER(SEARCH($F$1,عملية)),ROW(عملية)-ROW(data!$I$3)+1),ROWS(drow!G$5:G91))))","v":""},{"$f":"IF(ROWS(H$5:H91)>$H$1,\"\",INDEX(name,SMALL(IF(ISNUMBER(SEARCH($F$1,عملية)),ROW(عملية)-ROW(data!$I$3)+1),ROWS(drow!H$5:H91))))","v":""},{"$f":"IF(ROWS(I$5:I91)>$H$1,\"\",INDEX(name,SMALL(IF(ISNUMBER(SEARCH($F$1,عملية)),ROW(عملية)-ROW(data!$I$3)+1),ROWS(drow!I$5:I91))))","v":""},{"$f":"IF(ROWS(J$5:J91)>$H$1,\"\",INDEX(name,SMALL(IF(ISNUMBER(SEARCH($F$1,عملية)),ROW(عملية)-ROW(data!$I$3)+1),ROWS(drow!J$5:J91))))","v":""}]
[{"$f":"IF(ROWS(A$5:A92)>$H$1,\"\",INDEX(name,SMALL(IF(ISNUMBER(SEARCH($F$1,عملية)),ROW(عملية)-ROW(data!$I$3)+1),ROWS(drow!A$5:A92))))","v":""},{"$f":"IF(ROWS(B$5:B92)>$H$1,\"\",INDEX(name,SMALL(IF(ISNUMBER(SEARCH($F$1,عملية)),ROW(عملية)-ROW(data!$I$3)+1),ROWS(drow!B$5:B92))))","v":""},{"$f":"IF(ROWS(C$5:C92)>$H$1,\"\",INDEX(name,SMALL(IF(ISNUMBER(SEARCH($F$1,عملية)),ROW(عملية)-ROW(data!$I$3)+1),ROWS(drow!C$5:C92))))","v":""},{"$f":"IF(ROWS(D$5:D92)>$H$1,\"\",INDEX(name,SMALL(IF(ISNUMBER(SEARCH($F$1,عملية)),ROW(عملية)-ROW(data!$I$3)+1),ROWS(drow!D$5:D92))))","v":""},{"$f":"IF(ROWS(E$5:E92)>$H$1,\"\",INDEX(name,SMALL(IF(ISNUMBER(SEARCH($F$1,عملية)),ROW(عملية)-ROW(data!$I$3)+1),ROWS(drow!E$5:E92))))","v":""},{"$f":"IF(ROWS(F$5:F92)>$H$1,\"\",INDEX(name,SMALL(IF(ISNUMBER(SEARCH($F$1,عملية)),ROW(عملية)-ROW(data!$I$3)+1),ROWS(drow!F$5:F92))))","v":""},{"$f":"IF(ROWS(G$5:G92)>$H$1,\"\",INDEX(name,SMALL(IF(ISNUMBER(SEARCH($F$1,عملية)),ROW(عملية)-ROW(data!$I$3)+1),ROWS(drow!G$5:G92))))","v":""},{"$f":"IF(ROWS(H$5:H92)>$H$1,\"\",INDEX(name,SMALL(IF(ISNUMBER(SEARCH($F$1,عملية)),ROW(عملية)-ROW(data!$I$3)+1),ROWS(drow!H$5:H92))))","v":""},{"$f":"IF(ROWS(I$5:I92)>$H$1,\"\",INDEX(name,SMALL(IF(ISNUMBER(SEARCH($F$1,عملية)),ROW(عملية)-ROW(data!$I$3)+1),ROWS(drow!I$5:I92))))","v":""},{"$f":"IF(ROWS(J$5:J92)>$H$1,\"\",INDEX(name,SMALL(IF(ISNUMBER(SEARCH($F$1,عملية)),ROW(عملية)-ROW(data!$I$3)+1),ROWS(drow!J$5:J92))))","v":""}]
[{"$f":"IF(ROWS(A$5:A93)>$H$1,\"\",INDEX(name,SMALL(IF(ISNUMBER(SEARCH($F$1,عملية)),ROW(عملية)-ROW(data!$I$3)+1),ROWS(drow!A$5:A93))))","v":""},{"$f":"IF(ROWS(B$5:B93)>$H$1,\"\",INDEX(name,SMALL(IF(ISNUMBER(SEARCH($F$1,عملية)),ROW(عملية)-ROW(data!$I$3)+1),ROWS(drow!B$5:B93))))","v":""},{"$f":"IF(ROWS(C$5:C93)>$H$1,\"\",INDEX(name,SMALL(IF(ISNUMBER(SEARCH($F$1,عملية)),ROW(عملية)-ROW(data!$I$3)+1),ROWS(drow!C$5:C93))))","v":""},{"$f":"IF(ROWS(D$5:D93)>$H$1,\"\",INDEX(name,SMALL(IF(ISNUMBER(SEARCH($F$1,عملية)),ROW(عملية)-ROW(data!$I$3)+1),ROWS(drow!D$5:D93))))","v":""},{"$f":"IF(ROWS(E$5:E93)>$H$1,\"\",INDEX(name,SMALL(IF(ISNUMBER(SEARCH($F$1,عملية)),ROW(عملية)-ROW(data!$I$3)+1),ROWS(drow!E$5:E93))))","v":""},{"$f":"IF(ROWS(F$5:F93)>$H$1,\"\",INDEX(name,SMALL(IF(ISNUMBER(SEARCH($F$1,عملية)),ROW(عملية)-ROW(data!$I$3)+1),ROWS(drow!F$5:F93))))","v":""},{"$f":"IF(ROWS(G$5:G93)>$H$1,\"\",INDEX(name,SMALL(IF(ISNUMBER(SEARCH($F$1,عملية)),ROW(عملية)-ROW(data!$I$3)+1),ROWS(drow!G$5:G93))))","v":""},{"$f":"IF(ROWS(H$5:H93)>$H$1,\"\",INDEX(name,SMALL(IF(ISNUMBER(SEARCH($F$1,عملية)),ROW(عملية)-ROW(data!$I$3)+1),ROWS(drow!H$5:H93))))","v":""},{"$f":"IF(ROWS(I$5:I93)>$H$1,\"\",INDEX(name,SMALL(IF(ISNUMBER(SEARCH($F$1,عملية)),ROW(عملية)-ROW(data!$I$3)+1),ROWS(drow!I$5:I93))))","v":""},{"$f":"IF(ROWS(J$5:J93)>$H$1,\"\",INDEX(name,SMALL(IF(ISNUMBER(SEARCH($F$1,عملية)),ROW(عملية)-ROW(data!$I$3)+1),ROWS(drow!J$5:J93))))","v":""}]
[{"$f":"IF(ROWS(A$5:A94)>$H$1,\"\",INDEX(name,SMALL(IF(ISNUMBER(SEARCH($F$1,عملية)),ROW(عملية)-ROW(data!$I$3)+1),ROWS(drow!A$5:A94))))","v":""},{"$f":"IF(ROWS(B$5:B94)>$H$1,\"\",INDEX(name,SMALL(IF(ISNUMBER(SEARCH($F$1,عملية)),ROW(عملية)-ROW(data!$I$3)+1),ROWS(drow!B$5:B94))))","v":""},{"$f":"IF(ROWS(C$5:C94)>$H$1,\"\",INDEX(name,SMALL(IF(ISNUMBER(SEARCH($F$1,عملية)),ROW(عملية)-ROW(data!$I$3)+1),ROWS(drow!C$5:C94))))","v":""},{"$f":"IF(ROWS(D$5:D94)>$H$1,\"\",INDEX(name,SMALL(IF(ISNUMBER(SEARCH($F$1,عملية)),ROW(عملية)-ROW(data!$I$3)+1),ROWS(drow!D$5:D94))))","v":""},{"$f":"IF(ROWS(E$5:E94)>$H$1,\"\",INDEX(name,SMALL(IF(ISNUMBER(SEARCH($F$1,عملية)),ROW(عملية)-ROW(data!$I$3)+1),ROWS(drow!E$5:E94))))","v":""},{"$f":"IF(ROWS(F$5:F94)>$H$1,\"\",INDEX(name,SMALL(IF(ISNUMBER(SEARCH($F$1,عملية)),ROW(عملية)-ROW(data!$I$3)+1),ROWS(drow!F$5:F94))))","v":""},{"$f":"IF(ROWS(G$5:G94)>$H$1,\"\",INDEX(name,SMALL(IF(ISNUMBER(SEARCH($F$1,عملية)),ROW(عملية)-ROW(data!$I$3)+1),ROWS(drow!G$5:G94))))","v":""},{"$f":"IF(ROWS(H$5:H94)>$H$1,\"\",INDEX(name,SMALL(IF(ISNUMBER(SEARCH($F$1,عملية)),ROW(عملية)-ROW(data!$I$3)+1),ROWS(drow!H$5:H94))))","v":""},{"$f":"IF(ROWS(I$5:I94)>$H$1,\"\",INDEX(name,SMALL(IF(ISNUMBER(SEARCH($F$1,عملية)),ROW(عملية)-ROW(data!$I$3)+1),ROWS(drow!I$5:I94))))","v":""},{"$f":"IF(ROWS(J$5:J94)>$H$1,\"\",INDEX(name,SMALL(IF(ISNUMBER(SEARCH($F$1,عملية)),ROW(عملية)-ROW(data!$I$3)+1),ROWS(drow!J$5:J94))))","v":""}]
[{"$f":"IF(ROWS(A$5:A95)>$H$1,\"\",INDEX(name,SMALL(IF(ISNUMBER(SEARCH($F$1,عملية)),ROW(عملية)-ROW(data!$I$3)+1),ROWS(drow!A$5:A95))))","v":""},{"$f":"IF(ROWS(B$5:B95)>$H$1,\"\",INDEX(name,SMALL(IF(ISNUMBER(SEARCH($F$1,عملية)),ROW(عملية)-ROW(data!$I$3)+1),ROWS(drow!B$5:B95))))","v":""},{"$f":"IF(ROWS(C$5:C95)>$H$1,\"\",INDEX(name,SMALL(IF(ISNUMBER(SEARCH($F$1,عملية)),ROW(عملية)-ROW(data!$I$3)+1),ROWS(drow!C$5:C95))))","v":""},{"$f":"IF(ROWS(D$5:D95)>$H$1,\"\",INDEX(name,SMALL(IF(ISNUMBER(SEARCH($F$1,عملية)),ROW(عملية)-ROW(data!$I$3)+1),ROWS(drow!D$5:D95))))","v":""},{"$f":"IF(ROWS(E$5:E95)>$H$1,\"\",INDEX(name,SMALL(IF(ISNUMBER(SEARCH($F$1,عملية)),ROW(عملية)-ROW(data!$I$3)+1),ROWS(drow!E$5:E95))))","v":""},{"$f":"IF(ROWS(F$5:F95)>$H$1,\"\",INDEX(name,SMALL(IF(ISNUMBER(SEARCH($F$1,عملية)),ROW(عملية)-ROW(data!$I$3)+1),ROWS(drow!F$5:F95))))","v":""},{"$f":"IF(ROWS(G$5:G95)>$H$1,\"\",INDEX(name,SMALL(IF(ISNUMBER(SEARCH($F$1,عملية)),ROW(عملية)-ROW(data!$I$3)+1),ROWS(drow!G$5:G95))))","v":""},{"$f":"IF(ROWS(H$5:H95)>$H$1,\"\",INDEX(name,SMALL(IF(ISNUMBER(SEARCH($F$1,عملية)),ROW(عملية)-ROW(data!$I$3)+1),ROWS(drow!H$5:H95))))","v":""},{"$f":"IF(ROWS(I$5:I95)>$H$1,\"\",INDEX(name,SMALL(IF(ISNUMBER(SEARCH($F$1,عملية)),ROW(عملية)-ROW(data!$I$3)+1),ROWS(drow!I$5:I95))))","v":""},{"$f":"IF(ROWS(J$5:J95)>$H$1,\"\",INDEX(name,SMALL(IF(ISNUMBER(SEARCH($F$1,عملية)),ROW(عملية)-ROW(data!$I$3)+1),ROWS(drow!J$5:J95))))","v":""}]
[{"$f":"IF(ROWS(A$5:A96)>$H$1,\"\",INDEX(name,SMALL(IF(ISNUMBER(SEARCH($F$1,عملية)),ROW(عملية)-ROW(data!$I$3)+1),ROWS(drow!A$5:A96))))","v":""},{"$f":"IF(ROWS(B$5:B96)>$H$1,\"\",INDEX(name,SMALL(IF(ISNUMBER(SEARCH($F$1,عملية)),ROW(عملية)-ROW(data!$I$3)+1),ROWS(drow!B$5:B96))))","v":""},{"$f":"IF(ROWS(C$5:C96)>$H$1,\"\",INDEX(name,SMALL(IF(ISNUMBER(SEARCH($F$1,عملية)),ROW(عملية)-ROW(data!$I$3)+1),ROWS(drow!C$5:C96))))","v":""},{"$f":"IF(ROWS(D$5:D96)>$H$1,\"\",INDEX(name,SMALL(IF(ISNUMBER(SEARCH($F$1,عملية)),ROW(عملية)-ROW(data!$I$3)+1),ROWS(drow!D$5:D96))))","v":""},{"$f":"IF(ROWS(E$5:E96)>$H$1,\"\",INDEX(name,SMALL(IF(ISNUMBER(SEARCH($F$1,عملية)),ROW(عملية)-ROW(data!$I$3)+1),ROWS(drow!E$5:E96))))","v":""},{"$f":"IF(ROWS(F$5:F96)>$H$1,\"\",INDEX(name,SMALL(IF(ISNUMBER(SEARCH($F$1,عملية)),ROW(عملية)-ROW(data!$I$3)+1),ROWS(drow!F$5:F96))))","v":""},{"$f":"IF(ROWS(G$5:G96)>$H$1,\"\",INDEX(name,SMALL(IF(ISNUMBER(SEARCH($F$1,عملية)),ROW(عملية)-ROW(data!$I$3)+1),ROWS(drow!G$5:G96))))","v":""},{"$f":"IF(ROWS(H$5:H96)>$H$1,\"\",INDEX(name,SMALL(IF(ISNUMBER(SEARCH($F$1,عملية)),ROW(عملية)-ROW(data!$I$3)+1),ROWS(drow!H$5:H96))))","v":""},{"$f":"IF(ROWS(I$5:I96)>$H$1,\"\",INDEX(name,SMALL(IF(ISNUMBER(SEARCH($F$1,عملية)),ROW(عملية)-ROW(data!$I$3)+1),ROWS(drow!I$5:I96))))","v":""},{"$f":"IF(ROWS(J$5:J96)>$H$1,\"\",INDEX(name,SMALL(IF(ISNUMBER(SEARCH($F$1,عملية)),ROW(عملية)-ROW(data!$I$3)+1),ROWS(drow!J$5:J96))))","v":""}]
[{"$f":"IF(ROWS(A$5:A97)>$H$1,\"\",INDEX(name,SMALL(IF(ISNUMBER(SEARCH($F$1,عملية)),ROW(عملية)-ROW(data!$I$3)+1),ROWS(drow!A$5:A97))))","v":""},{"$f":"IF(ROWS(B$5:B97)>$H$1,\"\",INDEX(name,SMALL(IF(ISNUMBER(SEARCH($F$1,عملية)),ROW(عملية)-ROW(data!$I$3)+1),ROWS(drow!B$5:B97))))","v":""},{"$f":"IF(ROWS(C$5:C97)>$H$1,\"\",INDEX(name,SMALL(IF(ISNUMBER(SEARCH($F$1,عملية)),ROW(عملية)-ROW(data!$I$3)+1),ROWS(drow!C$5:C97))))","v":""},{"$f":"IF(ROWS(D$5:D97)>$H$1,\"\",INDEX(name,SMALL(IF(ISNUMBER(SEARCH($F$1,عملية)),ROW(عملية)-ROW(data!$I$3)+1),ROWS(drow!D$5:D97))))","v":""},{"$f":"IF(ROWS(E$5:E97)>$H$1,\"\",INDEX(name,SMALL(IF(ISNUMBER(SEARCH($F$1,عملية)),ROW(عملية)-ROW(data!$I$3)+1),ROWS(drow!E$5:E97))))","v":""},{"$f":"IF(ROWS(F$5:F97)>$H$1,\"\",INDEX(name,SMALL(IF(ISNUMBER(SEARCH($F$1,عملية)),ROW(عملية)-ROW(data!$I$3)+1),ROWS(drow!F$5:F97))))","v":""},{"$f":"IF(ROWS(G$5:G97)>$H$1,\"\",INDEX(name,SMALL(IF(ISNUMBER(SEARCH($F$1,عملية)),ROW(عملية)-ROW(data!$I$3)+1),ROWS(drow!G$5:G97))))","v":""},{"$f":"IF(ROWS(H$5:H97)>$H$1,\"\",INDEX(name,SMALL(IF(ISNUMBER(SEARCH($F$1,عملية)),ROW(عملية)-ROW(data!$I$3)+1),ROWS(drow!H$5:H97))))","v":""},{"$f":"IF(ROWS(I$5:I97)>$H$1,\"\",INDEX(name,SMALL(IF(ISNUMBER(SEARCH($F$1,عملية)),ROW(عملية)-ROW(data!$I$3)+1),ROWS(drow!I$5:I97))))","v":""},{"$f":"IF(ROWS(J$5:J97)>$H$1,\"\",INDEX(name,SMALL(IF(ISNUMBER(SEARCH($F$1,عملية)),ROW(عملية)-ROW(data!$I$3)+1),ROWS(drow!J$5:J97))))","v":""}]
[{"$f":"IF(ROWS(A$5:A98)>$H$1,\"\",INDEX(name,SMALL(IF(ISNUMBER(SEARCH($F$1,عملية)),ROW(عملية)-ROW(data!$I$3)+1),ROWS(drow!A$5:A98))))","v":""},{"$f":"IF(ROWS(B$5:B98)>$H$1,\"\",INDEX(name,SMALL(IF(ISNUMBER(SEARCH($F$1,عملية)),ROW(عملية)-ROW(data!$I$3)+1),ROWS(drow!B$5:B98))))","v":""},{"$f":"IF(ROWS(C$5:C98)>$H$1,\"\",INDEX(name,SMALL(IF(ISNUMBER(SEARCH($F$1,عملية)),ROW(عملية)-ROW(data!$I$3)+1),ROWS(drow!C$5:C98))))","v":""},{"$f":"IF(ROWS(D$5:D98)>$H$1,\"\",INDEX(name,SMALL(IF(ISNUMBER(SEARCH($F$1,عملية)),ROW(عملية)-ROW(data!$I$3)+1),ROWS(drow!D$5:D98))))","v":""},{"$f":"IF(ROWS(E$5:E98)>$H$1,\"\",INDEX(name,SMALL(IF(ISNUMBER(SEARCH($F$1,عملية)),ROW(عملية)-ROW(data!$I$3)+1),ROWS(drow!E$5:E98))))","v":""},{"$f":"IF(ROWS(F$5:F98)>$H$1,\"\",INDEX(name,SMALL(IF(ISNUMBER(SEARCH($F$1,عملية)),ROW(عملية)-ROW(data!$I$3)+1),ROWS(drow!F$5:F98))))","v":""},{"$f":"IF(ROWS(G$5:G98)>$H$1,\"\",INDEX(name,SMALL(IF(ISNUMBER(SEARCH($F$1,عملية)),ROW(عملية)-ROW(data!$I$3)+1),ROWS(drow!G$5:G98))))","v":""},{"$f":"IF(ROWS(H$5:H98)>$H$1,\"\",INDEX(name,SMALL(IF(ISNUMBER(SEARCH($F$1,عملية)),ROW(عملية)-ROW(data!$I$3)+1),ROWS(drow!H$5:H98))))","v":""},{"$f":"IF(ROWS(I$5:I98)>$H$1,\"\",INDEX(name,SMALL(IF(ISNUMBER(SEARCH($F$1,عملية)),ROW(عملية)-ROW(data!$I$3)+1),ROWS(drow!I$5:I98))))","v":""},{"$f":"IF(ROWS(J$5:J98)>$H$1,\"\",INDEX(name,SMALL(IF(ISNUMBER(SEARCH($F$1,عملية)),ROW(عملية)-ROW(data!$I$3)+1),ROWS(drow!J$5:J98))))","v":""}]
[{"$f":"IF(ROWS(A$5:A99)>$H$1,\"\",INDEX(name,SMALL(IF(ISNUMBER(SEARCH($F$1,عملية)),ROW(عملية)-ROW(data!$I$3)+1),ROWS(drow!A$5:A99))))","v":""},{"$f":"IF(ROWS(B$5:B99)>$H$1,\"\",INDEX(name,SMALL(IF(ISNUMBER(SEARCH($F$1,عملية)),ROW(عملية)-ROW(data!$I$3)+1),ROWS(drow!B$5:B99))))","v":""},{"$f":"IF(ROWS(C$5:C99)>$H$1,\"\",INDEX(name,SMALL(IF(ISNUMBER(SEARCH($F$1,عملية)),ROW(عملية)-ROW(data!$I$3)+1),ROWS(drow!C$5:C99))))","v":""},{"$f":"IF(ROWS(D$5:D99)>$H$1,\"\",INDEX(name,SMALL(IF(ISNUMBER(SEARCH($F$1,عملية)),ROW(عملية)-ROW(data!$I$3)+1),ROWS(drow!D$5:D99))))","v":""},{"$f":"IF(ROWS(E$5:E99)>$H$1,\"\",INDEX(name,SMALL(IF(ISNUMBER(SEARCH($F$1,عملية)),ROW(عملية)-ROW(data!$I$3)+1),ROWS(drow!E$5:E99))))","v":""},{"$f":"IF(ROWS(F$5:F99)>$H$1,\"\",INDEX(name,SMALL(IF(ISNUMBER(SEARCH($F$1,عملية)),ROW(عملية)-ROW(data!$I$3)+1),ROWS(drow!F$5:F99))))","v":""},{"$f":"IF(ROWS(G$5:G99)>$H$1,\"\",INDEX(name,SMALL(IF(ISNUMBER(SEARCH($F$1,عملية)),ROW(عملية)-ROW(data!$I$3)+1),ROWS(drow!G$5:G99))))","v":""},{"$f":"IF(ROWS(H$5:H99)>$H$1,\"\",INDEX(name,SMALL(IF(ISNUMBER(SEARCH($F$1,عملية)),ROW(عملية)-ROW(data!$I$3)+1),ROWS(drow!H$5:H99))))","v":""},{"$f":"IF(ROWS(I$5:I99)>$H$1,\"\",INDEX(name,SMALL(IF(ISNUMBER(SEARCH($F$1,عملية)),ROW(عملية)-ROW(data!$I$3)+1),ROWS(drow!I$5:I99))))","v":""},{"$f":"IF(ROWS(J$5:J99)>$H$1,\"\",INDEX(name,SMALL(IF(ISNUMBER(SEARCH($F$1,عملية)),ROW(عملية)-ROW(data!$I$3)+1),ROWS(drow!J$5:J99))))","v":""}]
[{"$f":"IF(ROWS(A$5:A100)>$H$1,\"\",INDEX(name,SMALL(IF(ISNUMBER(SEARCH($F$1,عملية)),ROW(عملية)-ROW(data!$I$3)+1),ROWS(drow!A$5:A100))))","v":""},{"$f":"IF(ROWS(B$5:B100)>$H$1,\"\",INDEX(name,SMALL(IF(ISNUMBER(SEARCH($F$1,عملية)),ROW(عملية)-ROW(data!$I$3)+1),ROWS(drow!B$5:B100))))","v":""},{"$f":"IF(ROWS(C$5:C100)>$H$1,\"\",INDEX(name,SMALL(IF(ISNUMBER(SEARCH($F$1,عملية)),ROW(عملية)-ROW(data!$I$3)+1),ROWS(drow!C$5:C100))))","v":""},{"$f":"IF(ROWS(D$5:D100)>$H$1,\"\",INDEX(name,SMALL(IF(ISNUMBER(SEARCH($F$1,عملية)),ROW(عملية)-ROW(data!$I$3)+1),ROWS(drow!D$5:D100))))","v":""},{"$f":"IF(ROWS(E$5:E100)>$H$1,\"\",INDEX(name,SMALL(IF(ISNUMBER(SEARCH($F$1,عملية)),ROW(عملية)-ROW(data!$I$3)+1),ROWS(drow!E$5:E100))))","v":""},{"$f":"IF(ROWS(F$5:F100)>$H$1,\"\",INDEX(name,SMALL(IF(ISNUMBER(SEARCH($F$1,عملية)),ROW(عملية)-ROW(data!$I$3)+1),ROWS(drow!F$5:F100))))","v":""},{"$f":"IF(ROWS(G$5:G100)>$H$1,\"\",INDEX(name,SMALL(IF(ISNUMBER(SEARCH($F$1,عملية)),ROW(عملية)-ROW(data!$I$3)+1),ROWS(drow!G$5:G100))))","v":""},{"$f":"IF(ROWS(H$5:H100)>$H$1,\"\",INDEX(name,SMALL(IF(ISNUMBER(SEARCH($F$1,عملية)),ROW(عملية)-ROW(data!$I$3)+1),ROWS(drow!H$5:H100))))","v":""},{"$f":"IF(ROWS(I$5:I100)>$H$1,\"\",INDEX(name,SMALL(IF(ISNUMBER(SEARCH($F$1,عملية)),ROW(عملية)-ROW(data!$I$3)+1),ROWS(drow!I$5:I100))))","v":""},{"$f":"IF(ROWS(J$5:J100)>$H$1,\"\",INDEX(name,SMALL(IF(ISNUMBER(SEARCH($F$1,عملية)),ROW(عملية)-ROW(data!$I$3)+1),ROWS(drow!J$5:J100))))","v":""}]
[{"$f":"IF(ROWS(A$5:A101)>$H$1,\"\",INDEX(name,SMALL(IF(ISNUMBER(SEARCH($F$1,عملية)),ROW(عملية)-ROW(data!$I$3)+1),ROWS(drow!A$5:A101))))","v":""},{"$f":"IF(ROWS(B$5:B101)>$H$1,\"\",INDEX(name,SMALL(IF(ISNUMBER(SEARCH($F$1,عملية)),ROW(عملية)-ROW(data!$I$3)+1),ROWS(drow!B$5:B101))))","v":""},{"$f":"IF(ROWS(C$5:C101)>$H$1,\"\",INDEX(name,SMALL(IF(ISNUMBER(SEARCH($F$1,عملية)),ROW(عملية)-ROW(data!$I$3)+1),ROWS(drow!C$5:C101))))","v":""},{"$f":"IF(ROWS(D$5:D101)>$H$1,\"\",INDEX(name,SMALL(IF(ISNUMBER(SEARCH($F$1,عملية)),ROW(عملية)-ROW(data!$I$3)+1),ROWS(drow!D$5:D101))))","v":""},{"$f":"IF(ROWS(E$5:E101)>$H$1,\"\",INDEX(name,SMALL(IF(ISNUMBER(SEARCH($F$1,عملية)),ROW(عملية)-ROW(data!$I$3)+1),ROWS(drow!E$5:E101))))","v":""},{"$f":"IF(ROWS(F$5:F101)>$H$1,\"\",INDEX(name,SMALL(IF(ISNUMBER(SEARCH($F$1,عملية)),ROW(عملية)-ROW(data!$I$3)+1),ROWS(drow!F$5:F101))))","v":""},{"$f":"IF(ROWS(G$5:G101)>$H$1,\"\",INDEX(name,SMALL(IF(ISNUMBER(SEARCH($F$1,عملية)),ROW(عملية)-ROW(data!$I$3)+1),ROWS(drow!G$5:G101))))","v":""},{"$f":"IF(ROWS(H$5:H101)>$H$1,\"\",INDEX(name,SMALL(IF(ISNUMBER(SEARCH($F$1,عملية)),ROW(عملية)-ROW(data!$I$3)+1),ROWS(drow!H$5:H101))))","v":""},{"$f":"IF(ROWS(I$5:I101)>$H$1,\"\",INDEX(name,SMALL(IF(ISNUMBER(SEARCH($F$1,عملية)),ROW(عملية)-ROW(data!$I$3)+1),ROWS(drow!I$5:I101))))","v":""},{"$f":"IF(ROWS(J$5:J101)>$H$1,\"\",INDEX(name,SMALL(IF(ISNUMBER(SEARCH($F$1,عملية)),ROW(عملية)-ROW(data!$I$3)+1),ROWS(drow!J$5:J101))))","v":""}]
[{"$f":"IF(ROWS(A$5:A102)>$H$1,\"\",INDEX(name,SMALL(IF(ISNUMBER(SEARCH($F$1,عملية)),ROW(عملية)-ROW(data!$I$3)+1),ROWS(drow!A$5:A102))))","v":""},{"$f":"IF(ROWS(B$5:B102)>$H$1,\"\",INDEX(name,SMALL(IF(ISNUMBER(SEARCH($F$1,عملية)),ROW(عملية)-ROW(data!$I$3)+1),ROWS(drow!B$5:B102))))","v":""},{"$f":"IF(ROWS(C$5:C102)>$H$1,\"\",INDEX(name,SMALL(IF(ISNUMBER(SEARCH($F$1,عملية)),ROW(عملية)-ROW(data!$I$3)+1),ROWS(drow!C$5:C102))))","v":""},{"$f":"IF(ROWS(D$5:D102)>$H$1,\"\",INDEX(name,SMALL(IF(ISNUMBER(SEARCH($F$1,عملية)),ROW(عملية)-ROW(data!$I$3)+1),ROWS(drow!D$5:D102))))","v":""},{"$f":"IF(ROWS(E$5:E102)>$H$1,\"\",INDEX(name,SMALL(IF(ISNUMBER(SEARCH($F$1,عملية)),ROW(عملية)-ROW(data!$I$3)+1),ROWS(drow!E$5:E102))))","v":""},{"$f":"IF(ROWS(F$5:F102)>$H$1,\"\",INDEX(name,SMALL(IF(ISNUMBER(SEARCH($F$1,عملية)),ROW(عملية)-ROW(data!$I$3)+1),ROWS(drow!F$5:F102))))","v":""},{"$f":"IF(ROWS(G$5:G102)>$H$1,\"\",INDEX(name,SMALL(IF(ISNUMBER(SEARCH($F$1,عملية)),ROW(عملية)-ROW(data!$I$3)+1),ROWS(drow!G$5:G102))))","v":""},{"$f":"IF(ROWS(H$5:H102)>$H$1,\"\",INDEX(name,SMALL(IF(ISNUMBER(SEARCH($F$1,عملية)),ROW(عملية)-ROW(data!$I$3)+1),ROWS(drow!H$5:H102))))","v":""},{"$f":"IF(ROWS(I$5:I102)>$H$1,\"\",INDEX(name,SMALL(IF(ISNUMBER(SEARCH($F$1,عملية)),ROW(عملية)-ROW(data!$I$3)+1),ROWS(drow!I$5:I102))))","v":""},{"$f":"IF(ROWS(J$5:J102)>$H$1,\"\",INDEX(name,SMALL(IF(ISNUMBER(SEARCH($F$1,عملية)),ROW(عملية)-ROW(data!$I$3)+1),ROWS(drow!J$5:J102))))","v":""}]
[{"$f":"IF(ROWS(A$5:A103)>$H$1,\"\",INDEX(name,SMALL(IF(ISNUMBER(SEARCH($F$1,عملية)),ROW(عملية)-ROW(data!$I$3)+1),ROWS(drow!A$5:A103))))","v":""},{"$f":"IF(ROWS(B$5:B103)>$H$1,\"\",INDEX(name,SMALL(IF(ISNUMBER(SEARCH($F$1,عملية)),ROW(عملية)-ROW(data!$I$3)+1),ROWS(drow!B$5:B103))))","v":""},{"$f":"IF(ROWS(C$5:C103)>$H$1,\"\",INDEX(name,SMALL(IF(ISNUMBER(SEARCH($F$1,عملية)),ROW(عملية)-ROW(data!$I$3)+1),ROWS(drow!C$5:C103))))","v":""},{"$f":"IF(ROWS(D$5:D103)>$H$1,\"\",INDEX(name,SMALL(IF(ISNUMBER(SEARCH($F$1,عملية)),ROW(عملية)-ROW(data!$I$3)+1),ROWS(drow!D$5:D103))))","v":""},{"$f":"IF(ROWS(E$5:E103)>$H$1,\"\",INDEX(name,SMALL(IF(ISNUMBER(SEARCH($F$1,عملية)),ROW(عملية)-ROW(data!$I$3)+1),ROWS(drow!E$5:E103))))","v":""},{"$f":"IF(ROWS(F$5:F103)>$H$1,\"\",INDEX(name,SMALL(IF(ISNUMBER(SEARCH($F$1,عملية)),ROW(عملية)-ROW(data!$I$3)+1),ROWS(drow!F$5:F103))))","v":""},{"$f":"IF(ROWS(G$5:G103)>$H$1,\"\",INDEX(name,SMALL(IF(ISNUMBER(SEARCH($F$1,عملية)),ROW(عملية)-ROW(data!$I$3)+1),ROWS(drow!G$5:G103))))","v":""},{"$f":"IF(ROWS(H$5:H103)>$H$1,\"\",INDEX(name,SMALL(IF(ISNUMBER(SEARCH($F$1,عملية)),ROW(عملية)-ROW(data!$I$3)+1),ROWS(drow!H$5:H103))))","v":""},{"$f":"IF(ROWS(I$5:I103)>$H$1,\"\",INDEX(name,SMALL(IF(ISNUMBER(SEARCH($F$1,عملية)),ROW(عملية)-ROW(data!$I$3)+1),ROWS(drow!I$5:I103))))","v":""},{"$f":"IF(ROWS(J$5:J103)>$H$1,\"\",INDEX(name,SMALL(IF(ISNUMBER(SEARCH($F$1,عملية)),ROW(عملية)-ROW(data!$I$3)+1),ROWS(drow!J$5:J103))))","v":""}]
[{"$f":"IF(ROWS(A$5:A104)>$H$1,\"\",INDEX(name,SMALL(IF(ISNUMBER(SEARCH($F$1,عملية)),ROW(عملية)-ROW(data!$I$3)+1),ROWS(drow!A$5:A104))))","v":""},{"$f":"IF(ROWS(B$5:B104)>$H$1,\"\",INDEX(name,SMALL(IF(ISNUMBER(SEARCH($F$1,عملية)),ROW(عملية)-ROW(data!$I$3)+1),ROWS(drow!B$5:B104))))","v":""},{"$f":"IF(ROWS(C$5:C104)>$H$1,\"\",INDEX(name,SMALL(IF(ISNUMBER(SEARCH($F$1,عملية)),ROW(عملية)-ROW(data!$I$3)+1),ROWS(drow!C$5:C104))))","v":""},{"$f":"IF(ROWS(D$5:D104)>$H$1,\"\",INDEX(name,SMALL(IF(ISNUMBER(SEARCH($F$1,عملية)),ROW(عملية)-ROW(data!$I$3)+1),ROWS(drow!D$5:D104))))","v":""},{"$f":"IF(ROWS(E$5:E104)>$H$1,\"\",INDEX(name,SMALL(IF(ISNUMBER(SEARCH($F$1,عملية)),ROW(عملية)-ROW(data!$I$3)+1),ROWS(drow!E$5:E104))))","v":""},{"$f":"IF(ROWS(F$5:F104)>$H$1,\"\",INDEX(name,SMALL(IF(ISNUMBER(SEARCH($F$1,عملية)),ROW(عملية)-ROW(data!$I$3)+1),ROWS(drow!F$5:F104))))","v":""},{"$f":"IF(ROWS(G$5:G104)>$H$1,\"\",INDEX(name,SMALL(IF(ISNUMBER(SEARCH($F$1,عملية)),ROW(عملية)-ROW(data!$I$3)+1),ROWS(drow!G$5:G104))))","v":""},{"$f":"IF(ROWS(H$5:H104)>$H$1,\"\",INDEX(name,SMALL(IF(ISNUMBER(SEARCH($F$1,عملية)),ROW(عملية)-ROW(data!$I$3)+1),ROWS(drow!H$5:H104))))","v":""},{"$f":"IF(ROWS(I$5:I104)>$H$1,\"\",INDEX(name,SMALL(IF(ISNUMBER(SEARCH($F$1,عملية)),ROW(عملية)-ROW(data!$I$3)+1),ROWS(drow!I$5:I104))))","v":""},{"$f":"IF(ROWS(J$5:J104)>$H$1,\"\",INDEX(name,SMALL(IF(ISNUMBER(SEARCH($F$1,عملية)),ROW(عملية)-ROW(data!$I$3)+1),ROWS(drow!J$5:J104))))","v":""}]
[{"$f":"IF(ROWS(A$5:A105)>$H$1,\"\",INDEX(name,SMALL(IF(ISNUMBER(SEARCH($F$1,عملية)),ROW(عملية)-ROW(data!$I$3)+1),ROWS(drow!A$5:A105))))","v":""},{"$f":"IF(ROWS(B$5:B105)>$H$1,\"\",INDEX(name,SMALL(IF(ISNUMBER(SEARCH($F$1,عملية)),ROW(عملية)-ROW(data!$I$3)+1),ROWS(drow!B$5:B105))))","v":""},{"$f":"IF(ROWS(C$5:C105)>$H$1,\"\",INDEX(name,SMALL(IF(ISNUMBER(SEARCH($F$1,عملية)),ROW(عملية)-ROW(data!$I$3)+1),ROWS(drow!C$5:C105))))","v":""},{"$f":"IF(ROWS(D$5:D105)>$H$1,\"\",INDEX(name,SMALL(IF(ISNUMBER(SEARCH($F$1,عملية)),ROW(عملية)-ROW(data!$I$3)+1),ROWS(drow!D$5:D105))))","v":""},{"$f":"IF(ROWS(E$5:E105)>$H$1,\"\",INDEX(name,SMALL(IF(ISNUMBER(SEARCH($F$1,عملية)),ROW(عملية)-ROW(data!$I$3)+1),ROWS(drow!E$5:E105))))","v":""},{"$f":"IF(ROWS(F$5:F105)>$H$1,\"\",INDEX(name,SMALL(IF(ISNUMBER(SEARCH($F$1,عملية)),ROW(عملية)-ROW(data!$I$3)+1),ROWS(drow!F$5:F105))))","v":""},{"$f":"IF(ROWS(G$5:G105)>$H$1,\"\",INDEX(name,SMALL(IF(ISNUMBER(SEARCH($F$1,عملية)),ROW(عملية)-ROW(data!$I$3)+1),ROWS(drow!G$5:G105))))","v":""},{"$f":"IF(ROWS(H$5:H105)>$H$1,\"\",INDEX(name,SMALL(IF(ISNUMBER(SEARCH($F$1,عملية)),ROW(عملية)-ROW(data!$I$3)+1),ROWS(drow!H$5:H105))))","v":""},{"$f":"IF(ROWS(I$5:I105)>$H$1,\"\",INDEX(name,SMALL(IF(ISNUMBER(SEARCH($F$1,عملية)),ROW(عملية)-ROW(data!$I$3)+1),ROWS(drow!I$5:I105))))","v":""},{"$f":"IF(ROWS(J$5:J105)>$H$1,\"\",INDEX(name,SMALL(IF(ISNUMBER(SEARCH($F$1,عملية)),ROW(عملية)-ROW(data!$I$3)+1),ROWS(drow!J$5:J105))))","v":""}]
[{"$f":"IF(ROWS(A$5:A106)>$H$1,\"\",INDEX(name,SMALL(IF(ISNUMBER(SEARCH($F$1,عملية)),ROW(عملية)-ROW(data!$I$3)+1),ROWS(drow!A$5:A106))))","v":""},{"$f":"IF(ROWS(B$5:B106)>$H$1,\"\",INDEX(name,SMALL(IF(ISNUMBER(SEARCH($F$1,عملية)),ROW(عملية)-ROW(data!$I$3)+1),ROWS(drow!B$5:B106))))","v":""},{"$f":"IF(ROWS(C$5:C106)>$H$1,\"\",INDEX(name,SMALL(IF(ISNUMBER(SEARCH($F$1,عملية)),ROW(عملية)-ROW(data!$I$3)+1),ROWS(drow!C$5:C106))))","v":""},{"$f":"IF(ROWS(D$5:D106)>$H$1,\"\",INDEX(name,SMALL(IF(ISNUMBER(SEARCH($F$1,عملية)),ROW(عملية)-ROW(data!$I$3)+1),ROWS(drow!D$5:D106))))","v":""},{"$f":"IF(ROWS(E$5:E106)>$H$1,\"\",INDEX(name,SMALL(IF(ISNUMBER(SEARCH($F$1,عملية)),ROW(عملية)-ROW(data!$I$3)+1),ROWS(drow!E$5:E106))))","v":""},{"$f":"IF(ROWS(F$5:F106)>$H$1,\"\",INDEX(name,SMALL(IF(ISNUMBER(SEARCH($F$1,عملية)),ROW(عملية)-ROW(data!$I$3)+1),ROWS(drow!F$5:F106))))","v":""},{"$f":"IF(ROWS(G$5:G106)>$H$1,\"\",INDEX(name,SMALL(IF(ISNUMBER(SEARCH($F$1,عملية)),ROW(عملية)-ROW(data!$I$3)+1),ROWS(drow!G$5:G106))))","v":""},{"$f":"IF(ROWS(H$5:H106)>$H$1,\"\",INDEX(name,SMALL(IF(ISNUMBER(SEARCH($F$1,عملية)),ROW(عملية)-ROW(data!$I$3)+1),ROWS(drow!H$5:H106))))","v":""},{"$f":"IF(ROWS(I$5:I106)>$H$1,\"\",INDEX(name,SMALL(IF(ISNUMBER(SEARCH($F$1,عملية)),ROW(عملية)-ROW(data!$I$3)+1),ROWS(drow!I$5:I106))))","v":""},{"$f":"IF(ROWS(J$5:J106)>$H$1,\"\",INDEX(name,SMALL(IF(ISNUMBER(SEARCH($F$1,عملية)),ROW(عملية)-ROW(data!$I$3)+1),ROWS(drow!J$5:J106))))","v":""}]
[{"$f":"IF(ROWS(A$5:A107)>$H$1,\"\",INDEX(name,SMALL(IF(ISNUMBER(SEARCH($F$1,عملية)),ROW(عملية)-ROW(data!$I$3)+1),ROWS(drow!A$5:A107))))","v":""},{"$f":"IF(ROWS(B$5:B107)>$H$1,\"\",INDEX(name,SMALL(IF(ISNUMBER(SEARCH($F$1,عملية)),ROW(عملية)-ROW(data!$I$3)+1),ROWS(drow!B$5:B107))))","v":""},{"$f":"IF(ROWS(C$5:C107)>$H$1,\"\",INDEX(name,SMALL(IF(ISNUMBER(SEARCH($F$1,عملية)),ROW(عملية)-ROW(data!$I$3)+1),ROWS(drow!C$5:C107))))","v":""},{"$f":"IF(ROWS(D$5:D107)>$H$1,\"\",INDEX(name,SMALL(IF(ISNUMBER(SEARCH($F$1,عملية)),ROW(عملية)-ROW(data!$I$3)+1),ROWS(drow!D$5:D107))))","v":""},{"$f":"IF(ROWS(E$5:E107)>$H$1,\"\",INDEX(name,SMALL(IF(ISNUMBER(SEARCH($F$1,عملية)),ROW(عملية)-ROW(data!$I$3)+1),ROWS(drow!E$5:E107))))","v":""},{"$f":"IF(ROWS(F$5:F107)>$H$1,\"\",INDEX(name,SMALL(IF(ISNUMBER(SEARCH($F$1,عملية)),ROW(عملية)-ROW(data!$I$3)+1),ROWS(drow!F$5:F107))))","v":""},{"$f":"IF(ROWS(G$5:G107)>$H$1,\"\",INDEX(name,SMALL(IF(ISNUMBER(SEARCH($F$1,عملية)),ROW(عملية)-ROW(data!$I$3)+1),ROWS(drow!G$5:G107))))","v":""},{"$f":"IF(ROWS(H$5:H107)>$H$1,\"\",INDEX(name,SMALL(IF(ISNUMBER(SEARCH($F$1,عملية)),ROW(عملية)-ROW(data!$I$3)+1),ROWS(drow!H$5:H107))))","v":""},{"$f":"IF(ROWS(I$5:I107)>$H$1,\"\",INDEX(name,SMALL(IF(ISNUMBER(SEARCH($F$1,عملية)),ROW(عملية)-ROW(data!$I$3)+1),ROWS(drow!I$5:I107))))","v":""},{"$f":"IF(ROWS(J$5:J107)>$H$1,\"\",INDEX(name,SMALL(IF(ISNUMBER(SEARCH($F$1,عملية)),ROW(عملية)-ROW(data!$I$3)+1),ROWS(drow!J$5:J107))))","v":""}]
[{"$f":"IF(ROWS(A$5:A108)>$H$1,\"\",INDEX(name,SMALL(IF(ISNUMBER(SEARCH($F$1,عملية)),ROW(عملية)-ROW(data!$I$3)+1),ROWS(drow!A$5:A108))))","v":""},{"$f":"IF(ROWS(B$5:B108)>$H$1,\"\",INDEX(name,SMALL(IF(ISNUMBER(SEARCH($F$1,عملية)),ROW(عملية)-ROW(data!$I$3)+1),ROWS(drow!B$5:B108))))","v":""},{"$f":"IF(ROWS(C$5:C108)>$H$1,\"\",INDEX(name,SMALL(IF(ISNUMBER(SEARCH($F$1,عملية)),ROW(عملية)-ROW(data!$I$3)+1),ROWS(drow!C$5:C108))))","v":""},{"$f":"IF(ROWS(D$5:D108)>$H$1,\"\",INDEX(name,SMALL(IF(ISNUMBER(SEARCH($F$1,عملية)),ROW(عملية)-ROW(data!$I$3)+1),ROWS(drow!D$5:D108))))","v":""},{"$f":"IF(ROWS(E$5:E108)>$H$1,\"\",INDEX(name,SMALL(IF(ISNUMBER(SEARCH($F$1,عملية)),ROW(عملية)-ROW(data!$I$3)+1),ROWS(drow!E$5:E108))))","v":""},{"$f":"IF(ROWS(F$5:F108)>$H$1,\"\",INDEX(name,SMALL(IF(ISNUMBER(SEARCH($F$1,عملية)),ROW(عملية)-ROW(data!$I$3)+1),ROWS(drow!F$5:F108))))","v":""},{"$f":"IF(ROWS(G$5:G108)>$H$1,\"\",INDEX(name,SMALL(IF(ISNUMBER(SEARCH($F$1,عملية)),ROW(عملية)-ROW(data!$I$3)+1),ROWS(drow!G$5:G108))))","v":""},{"$f":"IF(ROWS(H$5:H108)>$H$1,\"\",INDEX(name,SMALL(IF(ISNUMBER(SEARCH($F$1,عملية)),ROW(عملية)-ROW(data!$I$3)+1),ROWS(drow!H$5:H108))))","v":""},{"$f":"IF(ROWS(I$5:I108)>$H$1,\"\",INDEX(name,SMALL(IF(ISNUMBER(SEARCH($F$1,عملية)),ROW(عملية)-ROW(data!$I$3)+1),ROWS(drow!I$5:I108))))","v":""},{"$f":"IF(ROWS(J$5:J108)>$H$1,\"\",INDEX(name,SMALL(IF(ISNUMBER(SEARCH($F$1,عملية)),ROW(عملية)-ROW(data!$I$3)+1),ROWS(drow!J$5:J108))))","v":""}]
[{"$f":"IF(ROWS(A$5:A109)>$H$1,\"\",INDEX(name,SMALL(IF(ISNUMBER(SEARCH($F$1,عملية)),ROW(عملية)-ROW(data!$I$3)+1),ROWS(drow!A$5:A109))))","v":""},{"$f":"IF(ROWS(B$5:B109)>$H$1,\"\",INDEX(name,SMALL(IF(ISNUMBER(SEARCH($F$1,عملية)),ROW(عملية)-ROW(data!$I$3)+1),ROWS(drow!B$5:B109))))","v":""},{"$f":"IF(ROWS(C$5:C109)>$H$1,\"\",INDEX(name,SMALL(IF(ISNUMBER(SEARCH($F$1,عملية)),ROW(عملية)-ROW(data!$I$3)+1),ROWS(drow!C$5:C109))))","v":""},{"$f":"IF(ROWS(D$5:D109)>$H$1,\"\",INDEX(name,SMALL(IF(ISNUMBER(SEARCH($F$1,عملية)),ROW(عملية)-ROW(data!$I$3)+1),ROWS(drow!D$5:D109))))","v":""},{"$f":"IF(ROWS(E$5:E109)>$H$1,\"\",INDEX(name,SMALL(IF(ISNUMBER(SEARCH($F$1,عملية)),ROW(عملية)-ROW(data!$I$3)+1),ROWS(drow!E$5:E109))))","v":""},{"$f":"IF(ROWS(F$5:F109)>$H$1,\"\",INDEX(name,SMALL(IF(ISNUMBER(SEARCH($F$1,عملية)),ROW(عملية)-ROW(data!$I$3)+1),ROWS(drow!F$5:F109))))","v":""},{"$f":"IF(ROWS(G$5:G109)>$H$1,\"\",INDEX(name,SMALL(IF(ISNUMBER(SEARCH($F$1,عملية)),ROW(عملية)-ROW(data!$I$3)+1),ROWS(drow!G$5:G109))))","v":""},{"$f":"IF(ROWS(H$5:H109)>$H$1,\"\",INDEX(name,SMALL(IF(ISNUMBER(SEARCH($F$1,عملية)),ROW(عملية)-ROW(data!$I$3)+1),ROWS(drow!H$5:H109))))","v":""},{"$f":"IF(ROWS(I$5:I109)>$H$1,\"\",INDEX(name,SMALL(IF(ISNUMBER(SEARCH($F$1,عملية)),ROW(عملية)-ROW(data!$I$3)+1),ROWS(drow!I$5:I109))))","v":""},{"$f":"IF(ROWS(J$5:J109)>$H$1,\"\",INDEX(name,SMALL(IF(ISNUMBER(SEARCH($F$1,عملية)),ROW(عملية)-ROW(data!$I$3)+1),ROWS(drow!J$5:J109))))","v":""}]
[{"$f":"IF(ROWS(A$5:A110)>$H$1,\"\",INDEX(name,SMALL(IF(ISNUMBER(SEARCH($F$1,عملية)),ROW(عملية)-ROW(data!$I$3)+1),ROWS(drow!A$5:A110))))","v":""},{"$f":"IF(ROWS(B$5:B110)>$H$1,\"\",INDEX(name,SMALL(IF(ISNUMBER(SEARCH($F$1,عملية)),ROW(عملية)-ROW(data!$I$3)+1),ROWS(drow!B$5:B110))))","v":""},{"$f":"IF(ROWS(C$5:C110)>$H$1,\"\",INDEX(name,SMALL(IF(ISNUMBER(SEARCH($F$1,عملية)),ROW(عملية)-ROW(data!$I$3)+1),ROWS(drow!C$5:C110))))","v":""},{"$f":"IF(ROWS(D$5:D110)>$H$1,\"\",INDEX(name,SMALL(IF(ISNUMBER(SEARCH($F$1,عملية)),ROW(عملية)-ROW(data!$I$3)+1),ROWS(drow!D$5:D110))))","v":""},{"$f":"IF(ROWS(E$5:E110)>$H$1,\"\",INDEX(name,SMALL(IF(ISNUMBER(SEARCH($F$1,عملية)),ROW(عملية)-ROW(data!$I$3)+1),ROWS(drow!E$5:E110))))","v":""},{"$f":"IF(ROWS(F$5:F110)>$H$1,\"\",INDEX(name,SMALL(IF(ISNUMBER(SEARCH($F$1,عملية)),ROW(عملية)-ROW(data!$I$3)+1),ROWS(drow!F$5:F110))))","v":""},{"$f":"IF(ROWS(G$5:G110)>$H$1,\"\",INDEX(name,SMALL(IF(ISNUMBER(SEARCH($F$1,عملية)),ROW(عملية)-ROW(data!$I$3)+1),ROWS(drow!G$5:G110))))","v":""},{"$f":"IF(ROWS(H$5:H110)>$H$1,\"\",INDEX(name,SMALL(IF(ISNUMBER(SEARCH($F$1,عملية)),ROW(عملية)-ROW(data!$I$3)+1),ROWS(drow!H$5:H110))))","v":""},{"$f":"IF(ROWS(I$5:I110)>$H$1,\"\",INDEX(name,SMALL(IF(ISNUMBER(SEARCH($F$1,عملية)),ROW(عملية)-ROW(data!$I$3)+1),ROWS(drow!I$5:I110))))","v":""},{"$f":"IF(ROWS(J$5:J110)>$H$1,\"\",INDEX(name,SMALL(IF(ISNUMBER(SEARCH($F$1,عملية)),ROW(عملية)-ROW(data!$I$3)+1),ROWS(drow!J$5:J110))))","v":""}]
[{"$f":"IF(ROWS(A$5:A111)>$H$1,\"\",INDEX(name,SMALL(IF(ISNUMBER(SEARCH($F$1,عملية)),ROW(عملية)-ROW(data!$I$3)+1),ROWS(drow!A$5:A111))))","v":""},{"$f":"IF(ROWS(B$5:B111)>$H$1,\"\",INDEX(name,SMALL(IF(ISNUMBER(SEARCH($F$1,عملية)),ROW(عملية)-ROW(data!$I$3)+1),ROWS(drow!B$5:B111))))","v":""},{"$f":"IF(ROWS(C$5:C111)>$H$1,\"\",INDEX(name,SMALL(IF(ISNUMBER(SEARCH($F$1,عملية)),ROW(عملية)-ROW(data!$I$3)+1),ROWS(drow!C$5:C111))))","v":""},{"$f":"IF(ROWS(D$5:D111)>$H$1,\"\",INDEX(name,SMALL(IF(ISNUMBER(SEARCH($F$1,عملية)),ROW(عملية)-ROW(data!$I$3)+1),ROWS(drow!D$5:D111))))","v":""},{"$f":"IF(ROWS(E$5:E111)>$H$1,\"\",INDEX(name,SMALL(IF(ISNUMBER(SEARCH($F$1,عملية)),ROW(عملية)-ROW(data!$I$3)+1),ROWS(drow!E$5:E111))))","v":""},{"$f":"IF(ROWS(F$5:F111)>$H$1,\"\",INDEX(name,SMALL(IF(ISNUMBER(SEARCH($F$1,عملية)),ROW(عملية)-ROW(data!$I$3)+1),ROWS(drow!F$5:F111))))","v":""},{"$f":"IF(ROWS(G$5:G111)>$H$1,\"\",INDEX(name,SMALL(IF(ISNUMBER(SEARCH($F$1,عملية)),ROW(عملية)-ROW(data!$I$3)+1),ROWS(drow!G$5:G111))))","v":""},{"$f":"IF(ROWS(H$5:H111)>$H$1,\"\",INDEX(name,SMALL(IF(ISNUMBER(SEARCH($F$1,عملية)),ROW(عملية)-ROW(data!$I$3)+1),ROWS(drow!H$5:H111))))","v":""},{"$f":"IF(ROWS(I$5:I111)>$H$1,\"\",INDEX(name,SMALL(IF(ISNUMBER(SEARCH($F$1,عملية)),ROW(عملية)-ROW(data!$I$3)+1),ROWS(drow!I$5:I111))))","v":""},{"$f":"IF(ROWS(J$5:J111)>$H$1,\"\",INDEX(name,SMALL(IF(ISNUMBER(SEARCH($F$1,عملية)),ROW(عملية)-ROW(data!$I$3)+1),ROWS(drow!J$5:J111))))","v":""}]
[{"$f":"IF(ROWS(A$5:A112)>$H$1,\"\",INDEX(name,SMALL(IF(ISNUMBER(SEARCH($F$1,عملية)),ROW(عملية)-ROW(data!$I$3)+1),ROWS(drow!A$5:A112))))","v":""},{"$f":"IF(ROWS(B$5:B112)>$H$1,\"\",INDEX(name,SMALL(IF(ISNUMBER(SEARCH($F$1,عملية)),ROW(عملية)-ROW(data!$I$3)+1),ROWS(drow!B$5:B112))))","v":""},{"$f":"IF(ROWS(C$5:C112)>$H$1,\"\",INDEX(name,SMALL(IF(ISNUMBER(SEARCH($F$1,عملية)),ROW(عملية)-ROW(data!$I$3)+1),ROWS(drow!C$5:C112))))","v":""},{"$f":"IF(ROWS(D$5:D112)>$H$1,\"\",INDEX(name,SMALL(IF(ISNUMBER(SEARCH($F$1,عملية)),ROW(عملية)-ROW(data!$I$3)+1),ROWS(drow!D$5:D112))))","v":""},{"$f":"IF(ROWS(E$5:E112)>$H$1,\"\",INDEX(name,SMALL(IF(ISNUMBER(SEARCH($F$1,عملية)),ROW(عملية)-ROW(data!$I$3)+1),ROWS(drow!E$5:E112))))","v":""},{"$f":"IF(ROWS(F$5:F112)>$H$1,\"\",INDEX(name,SMALL(IF(ISNUMBER(SEARCH($F$1,عملية)),ROW(عملية)-ROW(data!$I$3)+1),ROWS(drow!F$5:F112))))","v":""},{"$f":"IF(ROWS(G$5:G112)>$H$1,\"\",INDEX(name,SMALL(IF(ISNUMBER(SEARCH($F$1,عملية)),ROW(عملية)-ROW(data!$I$3)+1),ROWS(drow!G$5:G112))))","v":""},{"$f":"IF(ROWS(H$5:H112)>$H$1,\"\",INDEX(name,SMALL(IF(ISNUMBER(SEARCH($F$1,عملية)),ROW(عملية)-ROW(data!$I$3)+1),ROWS(drow!H$5:H112))))","v":""},{"$f":"IF(ROWS(I$5:I112)>$H$1,\"\",INDEX(name,SMALL(IF(ISNUMBER(SEARCH($F$1,عملية)),ROW(عملية)-ROW(data!$I$3)+1),ROWS(drow!I$5:I112))))","v":""},{"$f":"IF(ROWS(J$5:J112)>$H$1,\"\",INDEX(name,SMALL(IF(ISNUMBER(SEARCH($F$1,عملية)),ROW(عملية)-ROW(data!$I$3)+1),ROWS(drow!J$5:J112))))","v":""}]
[{"$f":"IF(ROWS(A$5:A113)>$H$1,\"\",INDEX(name,SMALL(IF(ISNUMBER(SEARCH($F$1,عملية)),ROW(عملية)-ROW(data!$I$3)+1),ROWS(drow!A$5:A113))))","v":""},{"$f":"IF(ROWS(B$5:B113)>$H$1,\"\",INDEX(name,SMALL(IF(ISNUMBER(SEARCH($F$1,عملية)),ROW(عملية)-ROW(data!$I$3)+1),ROWS(drow!B$5:B113))))","v":""},{"$f":"IF(ROWS(C$5:C113)>$H$1,\"\",INDEX(name,SMALL(IF(ISNUMBER(SEARCH($F$1,عملية)),ROW(عملية)-ROW(data!$I$3)+1),ROWS(drow!C$5:C113))))","v":""},{"$f":"IF(ROWS(D$5:D113)>$H$1,\"\",INDEX(name,SMALL(IF(ISNUMBER(SEARCH($F$1,عملية)),ROW(عملية)-ROW(data!$I$3)+1),ROWS(drow!D$5:D113))))","v":""},{"$f":"IF(ROWS(E$5:E113)>$H$1,\"\",INDEX(name,SMALL(IF(ISNUMBER(SEARCH($F$1,عملية)),ROW(عملية)-ROW(data!$I$3)+1),ROWS(drow!E$5:E113))))","v":""},{"$f":"IF(ROWS(F$5:F113)>$H$1,\"\",INDEX(name,SMALL(IF(ISNUMBER(SEARCH($F$1,عملية)),ROW(عملية)-ROW(data!$I$3)+1),ROWS(drow!F$5:F113))))","v":""},{"$f":"IF(ROWS(G$5:G113)>$H$1,\"\",INDEX(name,SMALL(IF(ISNUMBER(SEARCH($F$1,عملية)),ROW(عملية)-ROW(data!$I$3)+1),ROWS(drow!G$5:G113))))","v":""},{"$f":"IF(ROWS(H$5:H113)>$H$1,\"\",INDEX(name,SMALL(IF(ISNUMBER(SEARCH($F$1,عملية)),ROW(عملية)-ROW(data!$I$3)+1),ROWS(drow!H$5:H113))))","v":""},{"$f":"IF(ROWS(I$5:I113)>$H$1,\"\",INDEX(name,SMALL(IF(ISNUMBER(SEARCH($F$1,عملية)),ROW(عملية)-ROW(data!$I$3)+1),ROWS(drow!I$5:I113))))","v":""},{"$f":"IF(ROWS(J$5:J113)>$H$1,\"\",INDEX(name,SMALL(IF(ISNUMBER(SEARCH($F$1,عملية)),ROW(عملية)-ROW(data!$I$3)+1),ROWS(drow!J$5:J113))))","v":""}]
[{"$f":"IF(ROWS(A$5:A114)>$H$1,\"\",INDEX(name,SMALL(IF(ISNUMBER(SEARCH($F$1,عملية)),ROW(عملية)-ROW(data!$I$3)+1),ROWS(drow!A$5:A114))))","v":""},{"$f":"IF(ROWS(B$5:B114)>$H$1,\"\",INDEX(name,SMALL(IF(ISNUMBER(SEARCH($F$1,عملية)),ROW(عملية)-ROW(data!$I$3)+1),ROWS(drow!B$5:B114))))","v":""},{"$f":"IF(ROWS(C$5:C114)>$H$1,\"\",INDEX(name,SMALL(IF(ISNUMBER(SEARCH($F$1,عملية)),ROW(عملية)-ROW(data!$I$3)+1),ROWS(drow!C$5:C114))))","v":""},{"$f":"IF(ROWS(D$5:D114)>$H$1,\"\",INDEX(name,SMALL(IF(ISNUMBER(SEARCH($F$1,عملية)),ROW(عملية)-ROW(data!$I$3)+1),ROWS(drow!D$5:D114))))","v":""},{"$f":"IF(ROWS(E$5:E114)>$H$1,\"\",INDEX(name,SMALL(IF(ISNUMBER(SEARCH($F$1,عملية)),ROW(عملية)-ROW(data!$I$3)+1),ROWS(drow!E$5:E114))))","v":""},{"$f":"IF(ROWS(F$5:F114)>$H$1,\"\",INDEX(name,SMALL(IF(ISNUMBER(SEARCH($F$1,عملية)),ROW(عملية)-ROW(data!$I$3)+1),ROWS(drow!F$5:F114))))","v":""},{"$f":"IF(ROWS(G$5:G114)>$H$1,\"\",INDEX(name,SMALL(IF(ISNUMBER(SEARCH($F$1,عملية)),ROW(عملية)-ROW(data!$I$3)+1),ROWS(drow!G$5:G114))))","v":""},{"$f":"IF(ROWS(H$5:H114)>$H$1,\"\",INDEX(name,SMALL(IF(ISNUMBER(SEARCH($F$1,عملية)),ROW(عملية)-ROW(data!$I$3)+1),ROWS(drow!H$5:H114))))","v":""},{"$f":"IF(ROWS(I$5:I114)>$H$1,\"\",INDEX(name,SMALL(IF(ISNUMBER(SEARCH($F$1,عملية)),ROW(عملية)-ROW(data!$I$3)+1),ROWS(drow!I$5:I114))))","v":""},{"$f":"IF(ROWS(J$5:J114)>$H$1,\"\",INDEX(name,SMALL(IF(ISNUMBER(SEARCH($F$1,عملية)),ROW(عملية)-ROW(data!$I$3)+1),ROWS(drow!J$5:J114))))","v":""}]
[{"$f":"IF(ROWS(A$5:A115)>$H$1,\"\",INDEX(name,SMALL(IF(ISNUMBER(SEARCH($F$1,عملية)),ROW(عملية)-ROW(data!$I$3)+1),ROWS(drow!A$5:A115))))","v":""},{"$f":"IF(ROWS(B$5:B115)>$H$1,\"\",INDEX(name,SMALL(IF(ISNUMBER(SEARCH($F$1,عملية)),ROW(عملية)-ROW(data!$I$3)+1),ROWS(drow!B$5:B115))))","v":""},{"$f":"IF(ROWS(C$5:C115)>$H$1,\"\",INDEX(name,SMALL(IF(ISNUMBER(SEARCH($F$1,عملية)),ROW(عملية)-ROW(data!$I$3)+1),ROWS(drow!C$5:C115))))","v":""},{"$f":"IF(ROWS(D$5:D115)>$H$1,\"\",INDEX(name,SMALL(IF(ISNUMBER(SEARCH($F$1,عملية)),ROW(عملية)-ROW(data!$I$3)+1),ROWS(drow!D$5:D115))))","v":""},{"$f":"IF(ROWS(E$5:E115)>$H$1,\"\",INDEX(name,SMALL(IF(ISNUMBER(SEARCH($F$1,عملية)),ROW(عملية)-ROW(data!$I$3)+1),ROWS(drow!E$5:E115))))","v":""},{"$f":"IF(ROWS(F$5:F115)>$H$1,\"\",INDEX(name,SMALL(IF(ISNUMBER(SEARCH($F$1,عملية)),ROW(عملية)-ROW(data!$I$3)+1),ROWS(drow!F$5:F115))))","v":""},{"$f":"IF(ROWS(G$5:G115)>$H$1,\"\",INDEX(name,SMALL(IF(ISNUMBER(SEARCH($F$1,عملية)),ROW(عملية)-ROW(data!$I$3)+1),ROWS(drow!G$5:G115))))","v":""},{"$f":"IF(ROWS(H$5:H115)>$H$1,\"\",INDEX(name,SMALL(IF(ISNUMBER(SEARCH($F$1,عملية)),ROW(عملية)-ROW(data!$I$3)+1),ROWS(drow!H$5:H115))))","v":""},{"$f":"IF(ROWS(I$5:I115)>$H$1,\"\",INDEX(name,SMALL(IF(ISNUMBER(SEARCH($F$1,عملية)),ROW(عملية)-ROW(data!$I$3)+1),ROWS(drow!I$5:I115))))","v":""},{"$f":"IF(ROWS(J$5:J115)>$H$1,\"\",INDEX(name,SMALL(IF(ISNUMBER(SEARCH($F$1,عملية)),ROW(عملية)-ROW(data!$I$3)+1),ROWS(drow!J$5:J115))))","v":""}]
[{"$f":"IF(ROWS(A$5:A116)>$H$1,\"\",INDEX(name,SMALL(IF(ISNUMBER(SEARCH($F$1,عملية)),ROW(عملية)-ROW(data!$I$3)+1),ROWS(drow!A$5:A116))))","v":""},{"$f":"IF(ROWS(B$5:B116)>$H$1,\"\",INDEX(name,SMALL(IF(ISNUMBER(SEARCH($F$1,عملية)),ROW(عملية)-ROW(data!$I$3)+1),ROWS(drow!B$5:B116))))","v":""},{"$f":"IF(ROWS(C$5:C116)>$H$1,\"\",INDEX(name,SMALL(IF(ISNUMBER(SEARCH($F$1,عملية)),ROW(عملية)-ROW(data!$I$3)+1),ROWS(drow!C$5:C116))))","v":""},{"$f":"IF(ROWS(D$5:D116)>$H$1,\"\",INDEX(name,SMALL(IF(ISNUMBER(SEARCH($F$1,عملية)),ROW(عملية)-ROW(data!$I$3)+1),ROWS(drow!D$5:D116))))","v":""},{"$f":"IF(ROWS(E$5:E116)>$H$1,\"\",INDEX(name,SMALL(IF(ISNUMBER(SEARCH($F$1,عملية)),ROW(عملية)-ROW(data!$I$3)+1),ROWS(drow!E$5:E116))))","v":""},{"$f":"IF(ROWS(F$5:F116)>$H$1,\"\",INDEX(name,SMALL(IF(ISNUMBER(SEARCH($F$1,عملية)),ROW(عملية)-ROW(data!$I$3)+1),ROWS(drow!F$5:F116))))","v":""},{"$f":"IF(ROWS(G$5:G116)>$H$1,\"\",INDEX(name,SMALL(IF(ISNUMBER(SEARCH($F$1,عملية)),ROW(عملية)-ROW(data!$I$3)+1),ROWS(drow!G$5:G116))))","v":""},{"$f":"IF(ROWS(H$5:H116)>$H$1,\"\",INDEX(name,SMALL(IF(ISNUMBER(SEARCH($F$1,عملية)),ROW(عملية)-ROW(data!$I$3)+1),ROWS(drow!H$5:H116))))","v":""},{"$f":"IF(ROWS(I$5:I116)>$H$1,\"\",INDEX(name,SMALL(IF(ISNUMBER(SEARCH($F$1,عملية)),ROW(عملية)-ROW(data!$I$3)+1),ROWS(drow!I$5:I116))))","v":""},{"$f":"IF(ROWS(J$5:J116)>$H$1,\"\",INDEX(name,SMALL(IF(ISNUMBER(SEARCH($F$1,عملية)),ROW(عملية)-ROW(data!$I$3)+1),ROWS(drow!J$5:J116))))","v":""}]
[{"$f":"IF(ROWS(A$5:A117)>$H$1,\"\",INDEX(name,SMALL(IF(ISNUMBER(SEARCH($F$1,عملية)),ROW(عملية)-ROW(data!$I$3)+1),ROWS(drow!A$5:A117))))","v":""},{"$f":"IF(ROWS(B$5:B117)>$H$1,\"\",INDEX(name,SMALL(IF(ISNUMBER(SEARCH($F$1,عملية)),ROW(عملية)-ROW(data!$I$3)+1),ROWS(drow!B$5:B117))))","v":""},{"$f":"IF(ROWS(C$5:C117)>$H$1,\"\",INDEX(name,SMALL(IF(ISNUMBER(SEARCH($F$1,عملية)),ROW(عملية)-ROW(data!$I$3)+1),ROWS(drow!C$5:C117))))","v":""},{"$f":"IF(ROWS(D$5:D117)>$H$1,\"\",INDEX(name,SMALL(IF(ISNUMBER(SEARCH($F$1,عملية)),ROW(عملية)-ROW(data!$I$3)+1),ROWS(drow!D$5:D117))))","v":""},{"$f":"IF(ROWS(E$5:E117)>$H$1,\"\",INDEX(name,SMALL(IF(ISNUMBER(SEARCH($F$1,عملية)),ROW(عملية)-ROW(data!$I$3)+1),ROWS(drow!E$5:E117))))","v":""},{"$f":"IF(ROWS(F$5:F117)>$H$1,\"\",INDEX(name,SMALL(IF(ISNUMBER(SEARCH($F$1,عملية)),ROW(عملية)-ROW(data!$I$3)+1),ROWS(drow!F$5:F117))))","v":""},{"$f":"IF(ROWS(G$5:G117)>$H$1,\"\",INDEX(name,SMALL(IF(ISNUMBER(SEARCH($F$1,عملية)),ROW(عملية)-ROW(data!$I$3)+1),ROWS(drow!G$5:G117))))","v":""},{"$f":"IF(ROWS(H$5:H117)>$H$1,\"\",INDEX(name,SMALL(IF(ISNUMBER(SEARCH($F$1,عملية)),ROW(عملية)-ROW(data!$I$3)+1),ROWS(drow!H$5:H117))))","v":""},{"$f":"IF(ROWS(I$5:I117)>$H$1,\"\",INDEX(name,SMALL(IF(ISNUMBER(SEARCH($F$1,عملية)),ROW(عملية)-ROW(data!$I$3)+1),ROWS(drow!I$5:I117))))","v":""},{"$f":"IF(ROWS(J$5:J117)>$H$1,\"\",INDEX(name,SMALL(IF(ISNUMBER(SEARCH($F$1,عملية)),ROW(عملية)-ROW(data!$I$3)+1),ROWS(drow!J$5:J117))))","v":""}]
[{"$f":"IF(ROWS(A$5:A118)>$H$1,\"\",INDEX(name,SMALL(IF(ISNUMBER(SEARCH($F$1,عملية)),ROW(عملية)-ROW(data!$I$3)+1),ROWS(drow!A$5:A118))))","v":""},{"$f":"IF(ROWS(B$5:B118)>$H$1,\"\",INDEX(name,SMALL(IF(ISNUMBER(SEARCH($F$1,عملية)),ROW(عملية)-ROW(data!$I$3)+1),ROWS(drow!B$5:B118))))","v":""},{"$f":"IF(ROWS(C$5:C118)>$H$1,\"\",INDEX(name,SMALL(IF(ISNUMBER(SEARCH($F$1,عملية)),ROW(عملية)-ROW(data!$I$3)+1),ROWS(drow!C$5:C118))))","v":""},{"$f":"IF(ROWS(D$5:D118)>$H$1,\"\",INDEX(name,SMALL(IF(ISNUMBER(SEARCH($F$1,عملية)),ROW(عملية)-ROW(data!$I$3)+1),ROWS(drow!D$5:D118))))","v":""},{"$f":"IF(ROWS(E$5:E118)>$H$1,\"\",INDEX(name,SMALL(IF(ISNUMBER(SEARCH($F$1,عملية)),ROW(عملية)-ROW(data!$I$3)+1),ROWS(drow!E$5:E118))))","v":""},{"$f":"IF(ROWS(F$5:F118)>$H$1,\"\",INDEX(name,SMALL(IF(ISNUMBER(SEARCH($F$1,عملية)),ROW(عملية)-ROW(data!$I$3)+1),ROWS(drow!F$5:F118))))","v":""},{"$f":"IF(ROWS(G$5:G118)>$H$1,\"\",INDEX(name,SMALL(IF(ISNUMBER(SEARCH($F$1,عملية)),ROW(عملية)-ROW(data!$I$3)+1),ROWS(drow!G$5:G118))))","v":""},{"$f":"IF(ROWS(H$5:H118)>$H$1,\"\",INDEX(name,SMALL(IF(ISNUMBER(SEARCH($F$1,عملية)),ROW(عملية)-ROW(data!$I$3)+1),ROWS(drow!H$5:H118))))","v":""},{"$f":"IF(ROWS(I$5:I118)>$H$1,\"\",INDEX(name,SMALL(IF(ISNUMBER(SEARCH($F$1,عملية)),ROW(عملية)-ROW(data!$I$3)+1),ROWS(drow!I$5:I118))))","v":""},{"$f":"IF(ROWS(J$5:J118)>$H$1,\"\",INDEX(name,SMALL(IF(ISNUMBER(SEARCH($F$1,عملية)),ROW(عملية)-ROW(data!$I$3)+1),ROWS(drow!J$5:J118))))","v":""}]
[{"$f":"IF(ROWS(A$5:A119)>$H$1,\"\",INDEX(name,SMALL(IF(ISNUMBER(SEARCH($F$1,عملية)),ROW(عملية)-ROW(data!$I$3)+1),ROWS(drow!A$5:A119))))","v":""},{"$f":"IF(ROWS(B$5:B119)>$H$1,\"\",INDEX(name,SMALL(IF(ISNUMBER(SEARCH($F$1,عملية)),ROW(عملية)-ROW(data!$I$3)+1),ROWS(drow!B$5:B119))))","v":""},{"$f":"IF(ROWS(C$5:C119)>$H$1,\"\",INDEX(name,SMALL(IF(ISNUMBER(SEARCH($F$1,عملية)),ROW(عملية)-ROW(data!$I$3)+1),ROWS(drow!C$5:C119))))","v":""},{"$f":"IF(ROWS(D$5:D119)>$H$1,\"\",INDEX(name,SMALL(IF(ISNUMBER(SEARCH($F$1,عملية)),ROW(عملية)-ROW(data!$I$3)+1),ROWS(drow!D$5:D119))))","v":""},{"$f":"IF(ROWS(E$5:E119)>$H$1,\"\",INDEX(name,SMALL(IF(ISNUMBER(SEARCH($F$1,عملية)),ROW(عملية)-ROW(data!$I$3)+1),ROWS(drow!E$5:E119))))","v":""},{"$f":"IF(ROWS(F$5:F119)>$H$1,\"\",INDEX(name,SMALL(IF(ISNUMBER(SEARCH($F$1,عملية)),ROW(عملية)-ROW(data!$I$3)+1),ROWS(drow!F$5:F119))))","v":""},{"$f":"IF(ROWS(G$5:G119)>$H$1,\"\",INDEX(name,SMALL(IF(ISNUMBER(SEARCH($F$1,عملية)),ROW(عملية)-ROW(data!$I$3)+1),ROWS(drow!G$5:G119))))","v":""},{"$f":"IF(ROWS(H$5:H119)>$H$1,\"\",INDEX(name,SMALL(IF(ISNUMBER(SEARCH($F$1,عملية)),ROW(عملية)-ROW(data!$I$3)+1),ROWS(drow!H$5:H119))))","v":""},{"$f":"IF(ROWS(I$5:I119)>$H$1,\"\",INDEX(name,SMALL(IF(ISNUMBER(SEARCH($F$1,عملية)),ROW(عملية)-ROW(data!$I$3)+1),ROWS(drow!I$5:I119))))","v":""},{"$f":"IF(ROWS(J$5:J119)>$H$1,\"\",INDEX(name,SMALL(IF(ISNUMBER(SEARCH($F$1,عملية)),ROW(عملية)-ROW(data!$I$3)+1),ROWS(drow!J$5:J119))))","v":""}]
[{"$f":"IF(ROWS(A$5:A120)>$H$1,\"\",INDEX(name,SMALL(IF(ISNUMBER(SEARCH($F$1,عملية)),ROW(عملية)-ROW(data!$I$3)+1),ROWS(drow!A$5:A120))))","v":""},{"$f":"IF(ROWS(B$5:B120)>$H$1,\"\",INDEX(name,SMALL(IF(ISNUMBER(SEARCH($F$1,عملية)),ROW(عملية)-ROW(data!$I$3)+1),ROWS(drow!B$5:B120))))","v":""},{"$f":"IF(ROWS(C$5:C120)>$H$1,\"\",INDEX(name,SMALL(IF(ISNUMBER(SEARCH($F$1,عملية)),ROW(عملية)-ROW(data!$I$3)+1),ROWS(drow!C$5:C120))))","v":""},{"$f":"IF(ROWS(D$5:D120)>$H$1,\"\",INDEX(name,SMALL(IF(ISNUMBER(SEARCH($F$1,عملية)),ROW(عملية)-ROW(data!$I$3)+1),ROWS(drow!D$5:D120))))","v":""},{"$f":"IF(ROWS(E$5:E120)>$H$1,\"\",INDEX(name,SMALL(IF(ISNUMBER(SEARCH($F$1,عملية)),ROW(عملية)-ROW(data!$I$3)+1),ROWS(drow!E$5:E120))))","v":""},{"$f":"IF(ROWS(F$5:F120)>$H$1,\"\",INDEX(name,SMALL(IF(ISNUMBER(SEARCH($F$1,عملية)),ROW(عملية)-ROW(data!$I$3)+1),ROWS(drow!F$5:F120))))","v":""},{"$f":"IF(ROWS(G$5:G120)>$H$1,\"\",INDEX(name,SMALL(IF(ISNUMBER(SEARCH($F$1,عملية)),ROW(عملية)-ROW(data!$I$3)+1),ROWS(drow!G$5:G120))))","v":""},{"$f":"IF(ROWS(H$5:H120)>$H$1,\"\",INDEX(name,SMALL(IF(ISNUMBER(SEARCH($F$1,عملية)),ROW(عملية)-ROW(data!$I$3)+1),ROWS(drow!H$5:H120))))","v":""},{"$f":"IF(ROWS(I$5:I120)>$H$1,\"\",INDEX(name,SMALL(IF(ISNUMBER(SEARCH($F$1,عملية)),ROW(عملية)-ROW(data!$I$3)+1),ROWS(drow!I$5:I120))))","v":""},{"$f":"IF(ROWS(J$5:J120)>$H$1,\"\",INDEX(name,SMALL(IF(ISNUMBER(SEARCH($F$1,عملية)),ROW(عملية)-ROW(data!$I$3)+1),ROWS(drow!J$5:J120))))","v":""}]
[{"$f":"IF(ROWS(A$5:A121)>$H$1,\"\",INDEX(name,SMALL(IF(ISNUMBER(SEARCH($F$1,عملية)),ROW(عملية)-ROW(data!$I$3)+1),ROWS(drow!A$5:A121))))","v":""},{"$f":"IF(ROWS(B$5:B121)>$H$1,\"\",INDEX(name,SMALL(IF(ISNUMBER(SEARCH($F$1,عملية)),ROW(عملية)-ROW(data!$I$3)+1),ROWS(drow!B$5:B121))))","v":""},{"$f":"IF(ROWS(C$5:C121)>$H$1,\"\",INDEX(name,SMALL(IF(ISNUMBER(SEARCH($F$1,عملية)),ROW(عملية)-ROW(data!$I$3)+1),ROWS(drow!C$5:C121))))","v":""},{"$f":"IF(ROWS(D$5:D121)>$H$1,\"\",INDEX(name,SMALL(IF(ISNUMBER(SEARCH($F$1,عملية)),ROW(عملية)-ROW(data!$I$3)+1),ROWS(drow!D$5:D121))))","v":""},{"$f":"IF(ROWS(E$5:E121)>$H$1,\"\",INDEX(name,SMALL(IF(ISNUMBER(SEARCH($F$1,عملية)),ROW(عملية)-ROW(data!$I$3)+1),ROWS(drow!E$5:E121))))","v":""},{"$f":"IF(ROWS(F$5:F121)>$H$1,\"\",INDEX(name,SMALL(IF(ISNUMBER(SEARCH($F$1,عملية)),ROW(عملية)-ROW(data!$I$3)+1),ROWS(drow!F$5:F121))))","v":""},{"$f":"IF(ROWS(G$5:G121)>$H$1,\"\",INDEX(name,SMALL(IF(ISNUMBER(SEARCH($F$1,عملية)),ROW(عملية)-ROW(data!$I$3)+1),ROWS(drow!G$5:G121))))","v":""},{"$f":"IF(ROWS(H$5:H121)>$H$1,\"\",INDEX(name,SMALL(IF(ISNUMBER(SEARCH($F$1,عملية)),ROW(عملية)-ROW(data!$I$3)+1),ROWS(drow!H$5:H121))))","v":""},{"$f":"IF(ROWS(I$5:I121)>$H$1,\"\",INDEX(name,SMALL(IF(ISNUMBER(SEARCH($F$1,عملية)),ROW(عملية)-ROW(data!$I$3)+1),ROWS(drow!I$5:I121))))","v":""},{"$f":"IF(ROWS(J$5:J121)>$H$1,\"\",INDEX(name,SMALL(IF(ISNUMBER(SEARCH($F$1,عملية)),ROW(عملية)-ROW(data!$I$3)+1),ROWS(drow!J$5:J121))))","v":""}]
[{"$f":"IF(ROWS(A$5:A122)>$H$1,\"\",INDEX(name,SMALL(IF(ISNUMBER(SEARCH($F$1,عملية)),ROW(عملية)-ROW(data!$I$3)+1),ROWS(drow!A$5:A122))))","v":""},{"$f":"IF(ROWS(B$5:B122)>$H$1,\"\",INDEX(name,SMALL(IF(ISNUMBER(SEARCH($F$1,عملية)),ROW(عملية)-ROW(data!$I$3)+1),ROWS(drow!B$5:B122))))","v":""},{"$f":"IF(ROWS(C$5:C122)>$H$1,\"\",INDEX(name,SMALL(IF(ISNUMBER(SEARCH($F$1,عملية)),ROW(عملية)-ROW(data!$I$3)+1),ROWS(drow!C$5:C122))))","v":""},{"$f":"IF(ROWS(D$5:D122)>$H$1,\"\",INDEX(name,SMALL(IF(ISNUMBER(SEARCH($F$1,عملية)),ROW(عملية)-ROW(data!$I$3)+1),ROWS(drow!D$5:D122))))","v":""},{"$f":"IF(ROWS(E$5:E122)>$H$1,\"\",INDEX(name,SMALL(IF(ISNUMBER(SEARCH($F$1,عملية)),ROW(عملية)-ROW(data!$I$3)+1),ROWS(drow!E$5:E122))))","v":""},{"$f":"IF(ROWS(F$5:F122)>$H$1,\"\",INDEX(name,SMALL(IF(ISNUMBER(SEARCH($F$1,عملية)),ROW(عملية)-ROW(data!$I$3)+1),ROWS(drow!F$5:F122))))","v":""},{"$f":"IF(ROWS(G$5:G122)>$H$1,\"\",INDEX(name,SMALL(IF(ISNUMBER(SEARCH($F$1,عملية)),ROW(عملية)-ROW(data!$I$3)+1),ROWS(drow!G$5:G122))))","v":""},{"$f":"IF(ROWS(H$5:H122)>$H$1,\"\",INDEX(name,SMALL(IF(ISNUMBER(SEARCH($F$1,عملية)),ROW(عملية)-ROW(data!$I$3)+1),ROWS(drow!H$5:H122))))","v":""},{"$f":"IF(ROWS(I$5:I122)>$H$1,\"\",INDEX(name,SMALL(IF(ISNUMBER(SEARCH($F$1,عملية)),ROW(عملية)-ROW(data!$I$3)+1),ROWS(drow!I$5:I122))))","v":""},{"$f":"IF(ROWS(J$5:J122)>$H$1,\"\",INDEX(name,SMALL(IF(ISNUMBER(SEARCH($F$1,عملية)),ROW(عملية)-ROW(data!$I$3)+1),ROWS(drow!J$5:J122))))","v":""}]
[{"$f":"IF(ROWS(A$5:A123)>$H$1,\"\",INDEX(name,SMALL(IF(ISNUMBER(SEARCH($F$1,عملية)),ROW(عملية)-ROW(data!$I$3)+1),ROWS(drow!A$5:A123))))","v":""},{"$f":"IF(ROWS(B$5:B123)>$H$1,\"\",INDEX(name,SMALL(IF(ISNUMBER(SEARCH($F$1,عملية)),ROW(عملية)-ROW(data!$I$3)+1),ROWS(drow!B$5:B123))))","v":""},{"$f":"IF(ROWS(C$5:C123)>$H$1,\"\",INDEX(name,SMALL(IF(ISNUMBER(SEARCH($F$1,عملية)),ROW(عملية)-ROW(data!$I$3)+1),ROWS(drow!C$5:C123))))","v":""},{"$f":"IF(ROWS(D$5:D123)>$H$1,\"\",INDEX(name,SMALL(IF(ISNUMBER(SEARCH($F$1,عملية)),ROW(عملية)-ROW(data!$I$3)+1),ROWS(drow!D$5:D123))))","v":""},{"$f":"IF(ROWS(E$5:E123)>$H$1,\"\",INDEX(name,SMALL(IF(ISNUMBER(SEARCH($F$1,عملية)),ROW(عملية)-ROW(data!$I$3)+1),ROWS(drow!E$5:E123))))","v":""},{"$f":"IF(ROWS(F$5:F123)>$H$1,\"\",INDEX(name,SMALL(IF(ISNUMBER(SEARCH($F$1,عملية)),ROW(عملية)-ROW(data!$I$3)+1),ROWS(drow!F$5:F123))))","v":""},{"$f":"IF(ROWS(G$5:G123)>$H$1,\"\",INDEX(name,SMALL(IF(ISNUMBER(SEARCH($F$1,عملية)),ROW(عملية)-ROW(data!$I$3)+1),ROWS(drow!G$5:G123))))","v":""},{"$f":"IF(ROWS(H$5:H123)>$H$1,\"\",INDEX(name,SMALL(IF(ISNUMBER(SEARCH($F$1,عملية)),ROW(عملية)-ROW(data!$I$3)+1),ROWS(drow!H$5:H123))))","v":""},{"$f":"IF(ROWS(I$5:I123)>$H$1,\"\",INDEX(name,SMALL(IF(ISNUMBER(SEARCH($F$1,عملية)),ROW(عملية)-ROW(data!$I$3)+1),ROWS(drow!I$5:I123))))","v":""},{"$f":"IF(ROWS(J$5:J123)>$H$1,\"\",INDEX(name,SMALL(IF(ISNUMBER(SEARCH($F$1,عملية)),ROW(عملية)-ROW(data!$I$3)+1),ROWS(drow!J$5:J123))))","v":""}]
[{"$f":"IF(ROWS(A$5:A124)>$H$1,\"\",INDEX(name,SMALL(IF(ISNUMBER(SEARCH($F$1,عملية)),ROW(عملية)-ROW(data!$I$3)+1),ROWS(drow!A$5:A124))))","v":""},{"$f":"IF(ROWS(B$5:B124)>$H$1,\"\",INDEX(name,SMALL(IF(ISNUMBER(SEARCH($F$1,عملية)),ROW(عملية)-ROW(data!$I$3)+1),ROWS(drow!B$5:B124))))","v":""},{"$f":"IF(ROWS(C$5:C124)>$H$1,\"\",INDEX(name,SMALL(IF(ISNUMBER(SEARCH($F$1,عملية)),ROW(عملية)-ROW(data!$I$3)+1),ROWS(drow!C$5:C124))))","v":""},{"$f":"IF(ROWS(D$5:D124)>$H$1,\"\",INDEX(name,SMALL(IF(ISNUMBER(SEARCH($F$1,عملية)),ROW(عملية)-ROW(data!$I$3)+1),ROWS(drow!D$5:D124))))","v":""},{"$f":"IF(ROWS(E$5:E124)>$H$1,\"\",INDEX(name,SMALL(IF(ISNUMBER(SEARCH($F$1,عملية)),ROW(عملية)-ROW(data!$I$3)+1),ROWS(drow!E$5:E124))))","v":""},{"$f":"IF(ROWS(F$5:F124)>$H$1,\"\",INDEX(name,SMALL(IF(ISNUMBER(SEARCH($F$1,عملية)),ROW(عملية)-ROW(data!$I$3)+1),ROWS(drow!F$5:F124))))","v":""},{"$f":"IF(ROWS(G$5:G124)>$H$1,\"\",INDEX(name,SMALL(IF(ISNUMBER(SEARCH($F$1,عملية)),ROW(عملية)-ROW(data!$I$3)+1),ROWS(drow!G$5:G124))))","v":""},{"$f":"IF(ROWS(H$5:H124)>$H$1,\"\",INDEX(name,SMALL(IF(ISNUMBER(SEARCH($F$1,عملية)),ROW(عملية)-ROW(data!$I$3)+1),ROWS(drow!H$5:H124))))","v":""},{"$f":"IF(ROWS(I$5:I124)>$H$1,\"\",INDEX(name,SMALL(IF(ISNUMBER(SEARCH($F$1,عملية)),ROW(عملية)-ROW(data!$I$3)+1),ROWS(drow!I$5:I124))))","v":""},{"$f":"IF(ROWS(J$5:J124)>$H$1,\"\",INDEX(name,SMALL(IF(ISNUMBER(SEARCH($F$1,عملية)),ROW(عملية)-ROW(data!$I$3)+1),ROWS(drow!J$5:J124))))","v":""}]
[{"$f":"IF(ROWS(A$5:A125)>$H$1,\"\",INDEX(name,SMALL(IF(ISNUMBER(SEARCH($F$1,عملية)),ROW(عملية)-ROW(data!$I$3)+1),ROWS(drow!A$5:A125))))","v":""},{"$f":"IF(ROWS(B$5:B125)>$H$1,\"\",INDEX(name,SMALL(IF(ISNUMBER(SEARCH($F$1,عملية)),ROW(عملية)-ROW(data!$I$3)+1),ROWS(drow!B$5:B125))))","v":""},{"$f":"IF(ROWS(C$5:C125)>$H$1,\"\",INDEX(name,SMALL(IF(ISNUMBER(SEARCH($F$1,عملية)),ROW(عملية)-ROW(data!$I$3)+1),ROWS(drow!C$5:C125))))","v":""},{"$f":"IF(ROWS(D$5:D125)>$H$1,\"\",INDEX(name,SMALL(IF(ISNUMBER(SEARCH($F$1,عملية)),ROW(عملية)-ROW(data!$I$3)+1),ROWS(drow!D$5:D125))))","v":""},{"$f":"IF(ROWS(E$5:E125)>$H$1,\"\",INDEX(name,SMALL(IF(ISNUMBER(SEARCH($F$1,عملية)),ROW(عملية)-ROW(data!$I$3)+1),ROWS(drow!E$5:E125))))","v":""},{"$f":"IF(ROWS(F$5:F125)>$H$1,\"\",INDEX(name,SMALL(IF(ISNUMBER(SEARCH($F$1,عملية)),ROW(عملية)-ROW(data!$I$3)+1),ROWS(drow!F$5:F125))))","v":""},{"$f":"IF(ROWS(G$5:G125)>$H$1,\"\",INDEX(name,SMALL(IF(ISNUMBER(SEARCH($F$1,عملية)),ROW(عملية)-ROW(data!$I$3)+1),ROWS(drow!G$5:G125))))","v":""},{"$f":"IF(ROWS(H$5:H125)>$H$1,\"\",INDEX(name,SMALL(IF(ISNUMBER(SEARCH($F$1,عملية)),ROW(عملية)-ROW(data!$I$3)+1),ROWS(drow!H$5:H125))))","v":""},{"$f":"IF(ROWS(I$5:I125)>$H$1,\"\",INDEX(name,SMALL(IF(ISNUMBER(SEARCH($F$1,عملية)),ROW(عملية)-ROW(data!$I$3)+1),ROWS(drow!I$5:I125))))","v":""},{"$f":"IF(ROWS(J$5:J125)>$H$1,\"\",INDEX(name,SMALL(IF(ISNUMBER(SEARCH($F$1,عملية)),ROW(عملية)-ROW(data!$I$3)+1),ROWS(drow!J$5:J125))))","v":""}]
[{"$f":"IF(ROWS(A$5:A126)>$H$1,\"\",INDEX(name,SMALL(IF(ISNUMBER(SEARCH($F$1,عملية)),ROW(عملية)-ROW(data!$I$3)+1),ROWS(drow!A$5:A126))))","v":""},{"$f":"IF(ROWS(B$5:B126)>$H$1,\"\",INDEX(name,SMALL(IF(ISNUMBER(SEARCH($F$1,عملية)),ROW(عملية)-ROW(data!$I$3)+1),ROWS(drow!B$5:B126))))","v":""},{"$f":"IF(ROWS(C$5:C126)>$H$1,\"\",INDEX(name,SMALL(IF(ISNUMBER(SEARCH($F$1,عملية)),ROW(عملية)-ROW(data!$I$3)+1),ROWS(drow!C$5:C126))))","v":""},{"$f":"IF(ROWS(D$5:D126)>$H$1,\"\",INDEX(name,SMALL(IF(ISNUMBER(SEARCH($F$1,عملية)),ROW(عملية)-ROW(data!$I$3)+1),ROWS(drow!D$5:D126))))","v":""},{"$f":"IF(ROWS(E$5:E126)>$H$1,\"\",INDEX(name,SMALL(IF(ISNUMBER(SEARCH($F$1,عملية)),ROW(عملية)-ROW(data!$I$3)+1),ROWS(drow!E$5:E126))))","v":""},{"$f":"IF(ROWS(F$5:F126)>$H$1,\"\",INDEX(name,SMALL(IF(ISNUMBER(SEARCH($F$1,عملية)),ROW(عملية)-ROW(data!$I$3)+1),ROWS(drow!F$5:F126))))","v":""},{"$f":"IF(ROWS(G$5:G126)>$H$1,\"\",INDEX(name,SMALL(IF(ISNUMBER(SEARCH($F$1,عملية)),ROW(عملية)-ROW(data!$I$3)+1),ROWS(drow!G$5:G126))))","v":""},{"$f":"IF(ROWS(H$5:H126)>$H$1,\"\",INDEX(name,SMALL(IF(ISNUMBER(SEARCH($F$1,عملية)),ROW(عملية)-ROW(data!$I$3)+1),ROWS(drow!H$5:H126))))","v":""},{"$f":"IF(ROWS(I$5:I126)>$H$1,\"\",INDEX(name,SMALL(IF(ISNUMBER(SEARCH($F$1,عملية)),ROW(عملية)-ROW(data!$I$3)+1),ROWS(drow!I$5:I126))))","v":""},{"$f":"IF(ROWS(J$5:J126)>$H$1,\"\",INDEX(name,SMALL(IF(ISNUMBER(SEARCH($F$1,عملية)),ROW(عملية)-ROW(data!$I$3)+1),ROWS(drow!J$5:J126))))","v":""}]
[{"$f":"IF(ROWS(A$5:A127)>$H$1,\"\",INDEX(name,SMALL(IF(ISNUMBER(SEARCH($F$1,عملية)),ROW(عملية)-ROW(data!$I$3)+1),ROWS(drow!A$5:A127))))","v":""},{"$f":"IF(ROWS(B$5:B127)>$H$1,\"\",INDEX(name,SMALL(IF(ISNUMBER(SEARCH($F$1,عملية)),ROW(عملية)-ROW(data!$I$3)+1),ROWS(drow!B$5:B127))))","v":""},{"$f":"IF(ROWS(C$5:C127)>$H$1,\"\",INDEX(name,SMALL(IF(ISNUMBER(SEARCH($F$1,عملية)),ROW(عملية)-ROW(data!$I$3)+1),ROWS(drow!C$5:C127))))","v":""},{"$f":"IF(ROWS(D$5:D127)>$H$1,\"\",INDEX(name,SMALL(IF(ISNUMBER(SEARCH($F$1,عملية)),ROW(عملية)-ROW(data!$I$3)+1),ROWS(drow!D$5:D127))))","v":""},{"$f":"IF(ROWS(E$5:E127)>$H$1,\"\",INDEX(name,SMALL(IF(ISNUMBER(SEARCH($F$1,عملية)),ROW(عملية)-ROW(data!$I$3)+1),ROWS(drow!E$5:E127))))","v":""},{"$f":"IF(ROWS(F$5:F127)>$H$1,\"\",INDEX(name,SMALL(IF(ISNUMBER(SEARCH($F$1,عملية)),ROW(عملية)-ROW(data!$I$3)+1),ROWS(drow!F$5:F127))))","v":""},{"$f":"IF(ROWS(G$5:G127)>$H$1,\"\",INDEX(name,SMALL(IF(ISNUMBER(SEARCH($F$1,عملية)),ROW(عملية)-ROW(data!$I$3)+1),ROWS(drow!G$5:G127))))","v":""},{"$f":"IF(ROWS(H$5:H127)>$H$1,\"\",INDEX(name,SMALL(IF(ISNUMBER(SEARCH($F$1,عملية)),ROW(عملية)-ROW(data!$I$3)+1),ROWS(drow!H$5:H127))))","v":""},{"$f":"IF(ROWS(I$5:I127)>$H$1,\"\",INDEX(name,SMALL(IF(ISNUMBER(SEARCH($F$1,عملية)),ROW(عملية)-ROW(data!$I$3)+1),ROWS(drow!I$5:I127))))","v":""},{"$f":"IF(ROWS(J$5:J127)>$H$1,\"\",INDEX(name,SMALL(IF(ISNUMBER(SEARCH($F$1,عملية)),ROW(عملية)-ROW(data!$I$3)+1),ROWS(drow!J$5:J127))))","v":""}]
[{"$f":"IF(ROWS(A$5:A128)>$H$1,\"\",INDEX(name,SMALL(IF(ISNUMBER(SEARCH($F$1,عملية)),ROW(عملية)-ROW(data!$I$3)+1),ROWS(drow!A$5:A128))))","v":""},{"$f":"IF(ROWS(B$5:B128)>$H$1,\"\",INDEX(name,SMALL(IF(ISNUMBER(SEARCH($F$1,عملية)),ROW(عملية)-ROW(data!$I$3)+1),ROWS(drow!B$5:B128))))","v":""},{"$f":"IF(ROWS(C$5:C128)>$H$1,\"\",INDEX(name,SMALL(IF(ISNUMBER(SEARCH($F$1,عملية)),ROW(عملية)-ROW(data!$I$3)+1),ROWS(drow!C$5:C128))))","v":""},{"$f":"IF(ROWS(D$5:D128)>$H$1,\"\",INDEX(name,SMALL(IF(ISNUMBER(SEARCH($F$1,عملية)),ROW(عملية)-ROW(data!$I$3)+1),ROWS(drow!D$5:D128))))","v":""},{"$f":"IF(ROWS(E$5:E128)>$H$1,\"\",INDEX(name,SMALL(IF(ISNUMBER(SEARCH($F$1,عملية)),ROW(عملية)-ROW(data!$I$3)+1),ROWS(drow!E$5:E128))))","v":""},{"$f":"IF(ROWS(F$5:F128)>$H$1,\"\",INDEX(name,SMALL(IF(ISNUMBER(SEARCH($F$1,عملية)),ROW(عملية)-ROW(data!$I$3)+1),ROWS(drow!F$5:F128))))","v":""},{"$f":"IF(ROWS(G$5:G128)>$H$1,\"\",INDEX(name,SMALL(IF(ISNUMBER(SEARCH($F$1,عملية)),ROW(عملية)-ROW(data!$I$3)+1),ROWS(drow!G$5:G128))))","v":""},{"$f":"IF(ROWS(H$5:H128)>$H$1,\"\",INDEX(name,SMALL(IF(ISNUMBER(SEARCH($F$1,عملية)),ROW(عملية)-ROW(data!$I$3)+1),ROWS(drow!H$5:H128))))","v":""},{"$f":"IF(ROWS(I$5:I128)>$H$1,\"\",INDEX(name,SMALL(IF(ISNUMBER(SEARCH($F$1,عملية)),ROW(عملية)-ROW(data!$I$3)+1),ROWS(drow!I$5:I128))))","v":""},{"$f":"IF(ROWS(J$5:J128)>$H$1,\"\",INDEX(name,SMALL(IF(ISNUMBER(SEARCH($F$1,عملية)),ROW(عملية)-ROW(data!$I$3)+1),ROWS(drow!J$5:J128))))","v":""}]
[{"$f":"IF(ROWS(A$5:A129)>$H$1,\"\",INDEX(name,SMALL(IF(ISNUMBER(SEARCH($F$1,عملية)),ROW(عملية)-ROW(data!$I$3)+1),ROWS(drow!A$5:A129))))","v":""},{"$f":"IF(ROWS(B$5:B129)>$H$1,\"\",INDEX(name,SMALL(IF(ISNUMBER(SEARCH($F$1,عملية)),ROW(عملية)-ROW(data!$I$3)+1),ROWS(drow!B$5:B129))))","v":""},{"$f":"IF(ROWS(C$5:C129)>$H$1,\"\",INDEX(name,SMALL(IF(ISNUMBER(SEARCH($F$1,عملية)),ROW(عملية)-ROW(data!$I$3)+1),ROWS(drow!C$5:C129))))","v":""},{"$f":"IF(ROWS(D$5:D129)>$H$1,\"\",INDEX(name,SMALL(IF(ISNUMBER(SEARCH($F$1,عملية)),ROW(عملية)-ROW(data!$I$3)+1),ROWS(drow!D$5:D129))))","v":""},{"$f":"IF(ROWS(E$5:E129)>$H$1,\"\",INDEX(name,SMALL(IF(ISNUMBER(SEARCH($F$1,عملية)),ROW(عملية)-ROW(data!$I$3)+1),ROWS(drow!E$5:E129))))","v":""},{"$f":"IF(ROWS(F$5:F129)>$H$1,\"\",INDEX(name,SMALL(IF(ISNUMBER(SEARCH($F$1,عملية)),ROW(عملية)-ROW(data!$I$3)+1),ROWS(drow!F$5:F129))))","v":""},{"$f":"IF(ROWS(G$5:G129)>$H$1,\"\",INDEX(name,SMALL(IF(ISNUMBER(SEARCH($F$1,عملية)),ROW(عملية)-ROW(data!$I$3)+1),ROWS(drow!G$5:G129))))","v":""},{"$f":"IF(ROWS(H$5:H129)>$H$1,\"\",INDEX(name,SMALL(IF(ISNUMBER(SEARCH($F$1,عملية)),ROW(عملية)-ROW(data!$I$3)+1),ROWS(drow!H$5:H129))))","v":""},{"$f":"IF(ROWS(I$5:I129)>$H$1,\"\",INDEX(name,SMALL(IF(ISNUMBER(SEARCH($F$1,عملية)),ROW(عملية)-ROW(data!$I$3)+1),ROWS(drow!I$5:I129))))","v":""},{"$f":"IF(ROWS(J$5:J129)>$H$1,\"\",INDEX(name,SMALL(IF(ISNUMBER(SEARCH($F$1,عملية)),ROW(عملية)-ROW(data!$I$3)+1),ROWS(drow!J$5:J129))))","v":""}]
[{"$f":"IF(ROWS(A$5:A130)>$H$1,\"\",INDEX(name,SMALL(IF(ISNUMBER(SEARCH($F$1,عملية)),ROW(عملية)-ROW(data!$I$3)+1),ROWS(drow!A$5:A130))))","v":""},{"$f":"IF(ROWS(B$5:B130)>$H$1,\"\",INDEX(name,SMALL(IF(ISNUMBER(SEARCH($F$1,عملية)),ROW(عملية)-ROW(data!$I$3)+1),ROWS(drow!B$5:B130))))","v":""},{"$f":"IF(ROWS(C$5:C130)>$H$1,\"\",INDEX(name,SMALL(IF(ISNUMBER(SEARCH($F$1,عملية)),ROW(عملية)-ROW(data!$I$3)+1),ROWS(drow!C$5:C130))))","v":""},{"$f":"IF(ROWS(D$5:D130)>$H$1,\"\",INDEX(name,SMALL(IF(ISNUMBER(SEARCH($F$1,عملية)),ROW(عملية)-ROW(data!$I$3)+1),ROWS(drow!D$5:D130))))","v":""},{"$f":"IF(ROWS(E$5:E130)>$H$1,\"\",INDEX(name,SMALL(IF(ISNUMBER(SEARCH($F$1,عملية)),ROW(عملية)-ROW(data!$I$3)+1),ROWS(drow!E$5:E130))))","v":""},{"$f":"IF(ROWS(F$5:F130)>$H$1,\"\",INDEX(name,SMALL(IF(ISNUMBER(SEARCH($F$1,عملية)),ROW(عملية)-ROW(data!$I$3)+1),ROWS(drow!F$5:F130))))","v":""},{"$f":"IF(ROWS(G$5:G130)>$H$1,\"\",INDEX(name,SMALL(IF(ISNUMBER(SEARCH($F$1,عملية)),ROW(عملية)-ROW(data!$I$3)+1),ROWS(drow!G$5:G130))))","v":""},{"$f":"IF(ROWS(H$5:H130)>$H$1,\"\",INDEX(name,SMALL(IF(ISNUMBER(SEARCH($F$1,عملية)),ROW(عملية)-ROW(data!$I$3)+1),ROWS(drow!H$5:H130))))","v":""},{"$f":"IF(ROWS(I$5:I130)>$H$1,\"\",INDEX(name,SMALL(IF(ISNUMBER(SEARCH($F$1,عملية)),ROW(عملية)-ROW(data!$I$3)+1),ROWS(drow!I$5:I130))))","v":""},{"$f":"IF(ROWS(J$5:J130)>$H$1,\"\",INDEX(name,SMALL(IF(ISNUMBER(SEARCH($F$1,عملية)),ROW(عملية)-ROW(data!$I$3)+1),ROWS(drow!J$5:J130))))","v":""}]
[{"$f":"IF(ROWS(A$5:A131)>$H$1,\"\",INDEX(name,SMALL(IF(ISNUMBER(SEARCH($F$1,عملية)),ROW(عملية)-ROW(data!$I$3)+1),ROWS(drow!A$5:A131))))","v":""},{"$f":"IF(ROWS(B$5:B131)>$H$1,\"\",INDEX(name,SMALL(IF(ISNUMBER(SEARCH($F$1,عملية)),ROW(عملية)-ROW(data!$I$3)+1),ROWS(drow!B$5:B131))))","v":""},{"$f":"IF(ROWS(C$5:C131)>$H$1,\"\",INDEX(name,SMALL(IF(ISNUMBER(SEARCH($F$1,عملية)),ROW(عملية)-ROW(data!$I$3)+1),ROWS(drow!C$5:C131))))","v":""},{"$f":"IF(ROWS(D$5:D131)>$H$1,\"\",INDEX(name,SMALL(IF(ISNUMBER(SEARCH($F$1,عملية)),ROW(عملية)-ROW(data!$I$3)+1),ROWS(drow!D$5:D131))))","v":""},{"$f":"IF(ROWS(E$5:E131)>$H$1,\"\",INDEX(name,SMALL(IF(ISNUMBER(SEARCH($F$1,عملية)),ROW(عملية)-ROW(data!$I$3)+1),ROWS(drow!E$5:E131))))","v":""},{"$f":"IF(ROWS(F$5:F131)>$H$1,\"\",INDEX(name,SMALL(IF(ISNUMBER(SEARCH($F$1,عملية)),ROW(عملية)-ROW(data!$I$3)+1),ROWS(drow!F$5:F131))))","v":""},{"$f":"IF(ROWS(G$5:G131)>$H$1,\"\",INDEX(name,SMALL(IF(ISNUMBER(SEARCH($F$1,عملية)),ROW(عملية)-ROW(data!$I$3)+1),ROWS(drow!G$5:G131))))","v":""},{"$f":"IF(ROWS(H$5:H131)>$H$1,\"\",INDEX(name,SMALL(IF(ISNUMBER(SEARCH($F$1,عملية)),ROW(عملية)-ROW(data!$I$3)+1),ROWS(drow!H$5:H131))))","v":""},{"$f":"IF(ROWS(I$5:I131)>$H$1,\"\",INDEX(name,SMALL(IF(ISNUMBER(SEARCH($F$1,عملية)),ROW(عملية)-ROW(data!$I$3)+1),ROWS(drow!I$5:I131))))","v":""},{"$f":"IF(ROWS(J$5:J131)>$H$1,\"\",INDEX(name,SMALL(IF(ISNUMBER(SEARCH($F$1,عملية)),ROW(عملية)-ROW(data!$I$3)+1),ROWS(drow!J$5:J131))))","v":""}]
[{"$f":"IF(ROWS(A$5:A132)>$H$1,\"\",INDEX(name,SMALL(IF(ISNUMBER(SEARCH($F$1,عملية)),ROW(عملية)-ROW(data!$I$3)+1),ROWS(drow!A$5:A132))))","v":""},{"$f":"IF(ROWS(B$5:B132)>$H$1,\"\",INDEX(name,SMALL(IF(ISNUMBER(SEARCH($F$1,عملية)),ROW(عملية)-ROW(data!$I$3)+1),ROWS(drow!B$5:B132))))","v":""},{"$f":"IF(ROWS(C$5:C132)>$H$1,\"\",INDEX(name,SMALL(IF(ISNUMBER(SEARCH($F$1,عملية)),ROW(عملية)-ROW(data!$I$3)+1),ROWS(drow!C$5:C132))))","v":""},{"$f":"IF(ROWS(D$5:D132)>$H$1,\"\",INDEX(name,SMALL(IF(ISNUMBER(SEARCH($F$1,عملية)),ROW(عملية)-ROW(data!$I$3)+1),ROWS(drow!D$5:D132))))","v":""},{"$f":"IF(ROWS(E$5:E132)>$H$1,\"\",INDEX(name,SMALL(IF(ISNUMBER(SEARCH($F$1,عملية)),ROW(عملية)-ROW(data!$I$3)+1),ROWS(drow!E$5:E132))))","v":""},{"$f":"IF(ROWS(F$5:F132)>$H$1,\"\",INDEX(name,SMALL(IF(ISNUMBER(SEARCH($F$1,عملية)),ROW(عملية)-ROW(data!$I$3)+1),ROWS(drow!F$5:F132))))","v":""},{"$f":"IF(ROWS(G$5:G132)>$H$1,\"\",INDEX(name,SMALL(IF(ISNUMBER(SEARCH($F$1,عملية)),ROW(عملية)-ROW(data!$I$3)+1),ROWS(drow!G$5:G132))))","v":""},{"$f":"IF(ROWS(H$5:H132)>$H$1,\"\",INDEX(name,SMALL(IF(ISNUMBER(SEARCH($F$1,عملية)),ROW(عملية)-ROW(data!$I$3)+1),ROWS(drow!H$5:H132))))","v":""},{"$f":"IF(ROWS(I$5:I132)>$H$1,\"\",INDEX(name,SMALL(IF(ISNUMBER(SEARCH($F$1,عملية)),ROW(عملية)-ROW(data!$I$3)+1),ROWS(drow!I$5:I132))))","v":""},{"$f":"IF(ROWS(J$5:J132)>$H$1,\"\",INDEX(name,SMALL(IF(ISNUMBER(SEARCH($F$1,عملية)),ROW(عملية)-ROW(data!$I$3)+1),ROWS(drow!J$5:J132))))","v":""}]
[{"$f":"IF(ROWS(A$5:A133)>$H$1,\"\",INDEX(name,SMALL(IF(ISNUMBER(SEARCH($F$1,عملية)),ROW(عملية)-ROW(data!$I$3)+1),ROWS(drow!A$5:A133))))","v":""},{"$f":"IF(ROWS(B$5:B133)>$H$1,\"\",INDEX(name,SMALL(IF(ISNUMBER(SEARCH($F$1,عملية)),ROW(عملية)-ROW(data!$I$3)+1),ROWS(drow!B$5:B133))))","v":""},{"$f":"IF(ROWS(C$5:C133)>$H$1,\"\",INDEX(name,SMALL(IF(ISNUMBER(SEARCH($F$1,عملية)),ROW(عملية)-ROW(data!$I$3)+1),ROWS(drow!C$5:C133))))","v":""},{"$f":"IF(ROWS(D$5:D133)>$H$1,\"\",INDEX(name,SMALL(IF(ISNUMBER(SEARCH($F$1,عملية)),ROW(عملية)-ROW(data!$I$3)+1),ROWS(drow!D$5:D133))))","v":""},{"$f":"IF(ROWS(E$5:E133)>$H$1,\"\",INDEX(name,SMALL(IF(ISNUMBER(SEARCH($F$1,عملية)),ROW(عملية)-ROW(data!$I$3)+1),ROWS(drow!E$5:E133))))","v":""},{"$f":"IF(ROWS(F$5:F133)>$H$1,\"\",INDEX(name,SMALL(IF(ISNUMBER(SEARCH($F$1,عملية)),ROW(عملية)-ROW(data!$I$3)+1),ROWS(drow!F$5:F133))))","v":""},{"$f":"IF(ROWS(G$5:G133)>$H$1,\"\",INDEX(name,SMALL(IF(ISNUMBER(SEARCH($F$1,عملية)),ROW(عملية)-ROW(data!$I$3)+1),ROWS(drow!G$5:G133))))","v":""},{"$f":"IF(ROWS(H$5:H133)>$H$1,\"\",INDEX(name,SMALL(IF(ISNUMBER(SEARCH($F$1,عملية)),ROW(عملية)-ROW(data!$I$3)+1),ROWS(drow!H$5:H133))))","v":""},{"$f":"IF(ROWS(I$5:I133)>$H$1,\"\",INDEX(name,SMALL(IF(ISNUMBER(SEARCH($F$1,عملية)),ROW(عملية)-ROW(data!$I$3)+1),ROWS(drow!I$5:I133))))","v":""},{"$f":"IF(ROWS(J$5:J133)>$H$1,\"\",INDEX(name,SMALL(IF(ISNUMBER(SEARCH($F$1,عملية)),ROW(عملية)-ROW(data!$I$3)+1),ROWS(drow!J$5:J133))))","v":""}]
[{"$f":"IF(ROWS(A$5:A134)>$H$1,\"\",INDEX(name,SMALL(IF(ISNUMBER(SEARCH($F$1,عملية)),ROW(عملية)-ROW(data!$I$3)+1),ROWS(drow!A$5:A134))))","v":""},{"$f":"IF(ROWS(B$5:B134)>$H$1,\"\",INDEX(name,SMALL(IF(ISNUMBER(SEARCH($F$1,عملية)),ROW(عملية)-ROW(data!$I$3)+1),ROWS(drow!B$5:B134))))","v":""},{"$f":"IF(ROWS(C$5:C134)>$H$1,\"\",INDEX(name,SMALL(IF(ISNUMBER(SEARCH($F$1,عملية)),ROW(عملية)-ROW(data!$I$3)+1),ROWS(drow!C$5:C134))))","v":""},{"$f":"IF(ROWS(D$5:D134)>$H$1,\"\",INDEX(name,SMALL(IF(ISNUMBER(SEARCH($F$1,عملية)),ROW(عملية)-ROW(data!$I$3)+1),ROWS(drow!D$5:D134))))","v":""},{"$f":"IF(ROWS(E$5:E134)>$H$1,\"\",INDEX(name,SMALL(IF(ISNUMBER(SEARCH($F$1,عملية)),ROW(عملية)-ROW(data!$I$3)+1),ROWS(drow!E$5:E134))))","v":""},{"$f":"IF(ROWS(F$5:F134)>$H$1,\"\",INDEX(name,SMALL(IF(ISNUMBER(SEARCH($F$1,عملية)),ROW(عملية)-ROW(data!$I$3)+1),ROWS(drow!F$5:F134))))","v":""},{"$f":"IF(ROWS(G$5:G134)>$H$1,\"\",INDEX(name,SMALL(IF(ISNUMBER(SEARCH($F$1,عملية)),ROW(عملية)-ROW(data!$I$3)+1),ROWS(drow!G$5:G134))))","v":""},{"$f":"IF(ROWS(H$5:H134)>$H$1,\"\",INDEX(name,SMALL(IF(ISNUMBER(SEARCH($F$1,عملية)),ROW(عملية)-ROW(data!$I$3)+1),ROWS(drow!H$5:H134))))","v":""},{"$f":"IF(ROWS(I$5:I134)>$H$1,\"\",INDEX(name,SMALL(IF(ISNUMBER(SEARCH($F$1,عملية)),ROW(عملية)-ROW(data!$I$3)+1),ROWS(drow!I$5:I134))))","v":""},{"$f":"IF(ROWS(J$5:J134)>$H$1,\"\",INDEX(name,SMALL(IF(ISNUMBER(SEARCH($F$1,عملية)),ROW(عملية)-ROW(data!$I$3)+1),ROWS(drow!J$5:J134))))","v":""}]

{"sheet":"top3","index":2,"n_rows":13,"n_cols":10,"rows_kept":13,"cut":false,"hidden":false,"merged":[]}
[null,null,null,3,"Top",{"$f":"COUNTIF(data!H3:H52,\">=\"&LARGE(data!H3:H52,'top3'!D1))","v":3},"count"]
[]
[]
["الاسم والكنية ","اسم الأب","اسم الأم","المواليد","الجنس","تاريخ فتح الحساب","رقم الحساب","الرصيد","نوع آخر عملية للعميل","تاريخ آخر عملية"]
[{"$f":"IF(N(H5),INDEX(data!$A$3:$A$52,SMALL(IF(data!$H$3:$H$52=H5,ROW(data!$A$3:$A$52)-ROW(data!$A$3)+1),COUNTIF('top3'!H$5:H5,H5))),\"\")","v":"بانة الرحال"},null,null,null,null,null,null,{"$f":"IF(ROWS(H$5:H5)>F$1,\"\",LARGE(data!$H$3:$H$52,ROWS('top3'!H$5:H5)))","v":2342322546}]
[{"$f":"IF(N(H6),INDEX(data!$A$3:$A$52,SMALL(IF(data!$H$3:$H$52=H6,ROW(data!$A$3:$A$52)-ROW(data!$A$3)+1),COUNTIF('top3'!H$5:H6,H6))),\"\")","v":"إيمان يوسف"},null,null,null,null,null,null,{"$f":"IF(ROWS(H$5:H6)>F$1,\"\",LARGE(data!$H$3:$H$52,ROWS('top3'!H$5:H6)))","v":543000000}]
[{"$f":"IF(N(H7),INDEX(data!$A$3:$A$52,SMALL(IF(data!$H$3:$H$52=H7,ROW(data!$A$3:$A$52)-ROW(data!$A$3)+1),COUNTIF('top3'!H$5:H7,H7))),\"\")","v":"عواطف سلامة"},null,null,null,null,null,null,{"$f":"IF(ROWS(H$5:H7)>F$1,\"\",LARGE(data!$H$3:$H$52,ROWS('top3'!H$5:H7)))","v":488320000}]
[{"$f":"IF(N(H8),INDEX(data!$A$3:$A$52,SMALL(IF(data!$H$3:$H$52=H8,ROW(data!$A$3:$A$52)-ROW(data!$A$3)+1),COUNTIF('top3'!H$5:H8,H8))),\"\")","v":""},null,null,null,null,null,null,{"$f":"IF(ROWS(H$5:H8)>F$1,\"\",LARGE(data!$H$3:$H$52,ROWS('top3'!H$5:H8)))","v":""}]
[{"$f":"IF(N(H9),INDEX(data!$A$3:$A$52,SMALL(IF(data!$H$3:$H$52=H9,ROW(data!$A$3:$A$52)-ROW(data!$A$3)+1),COUNTIF('top3'!H$5:H9,H9))),\"\")","v":""},null,null,null,null,null,null,{"$f":"IF(ROWS(H$5:H9)>F$1,\"\",LARGE(data!$H$3:$H$52,ROWS('top3'!H$5:H9)))","v":""}]
[{"$f":"IF(N(H10),INDEX(data!$A$3:$A$52,SMALL(IF(data!$H$3:$H$52=H10,ROW(data!$A$3:$A$52)-ROW(data!$A$3)+1),COUNTIF('top3'!H$5:H10,H10))),\"\")","v":""},null,null,null,null,null,null,{"$f":"IF(ROWS(H$5:H10)>F$1,\"\",LARGE(data!$H$3:$H$52,ROWS('top3'!H$5:H10)))","v":""}]
[null,null,null,null,null,null,null,{"$f":"IF(ROWS(H$5:H11)>F$1,\"\",LARGE(data!$H$3:$H$52,ROWS('top3'!H$5:H11)))","v":""}]
[null,null,null,null,null,null,null,{"$f":"IF(ROWS(H$5:H12)>F$1,\"\",LARGE(data!$H$3:$H$52,ROWS('top3'!H$5:H12)))","v":""}]
[null,null,null,null,null,null,null,{"$f":"IF(ROWS(H$5:H13)>F$1,\"\",LARGE(data!$H$3:$H$52,ROWS('top3'!H$5:H13)))","v":""}]